﻿Köpare;Köpare centrum;Ver.nr;Period;Konto;Konto(T);Leverantör;Leverantörens organisationsnummer;Belopp
Region Östergötland;Regionfastigheter;432919323;202209;11710;Pågående till/ombyggn årets invest;Sweco Systems AB;5560309733;9 933,00
Region Östergötland;Regionfastigheter;432941565;202209;11710;Pågående till/ombyggn årets invest;Sweco Systems AB;5560309733;28 014,00
Region Östergötland;Folktandvården;433236270;202209;56260;Implantat tandvård;Nobelpharma AB;5560020231;19 124,00
Region Östergötland;Hjärtcentrum;433657151;202209;56390;Övrigt medicinskt material;INTRAMEDIC;5564413853;4 070,00
Region Östergötland;Hjärtcentrum;433660344;202209;56390;Övrigt medicinskt material;Abbott Medical Sweden AB;5564922317;2 000,00
Region Östergötland;Regionfastigheter;433711525;202209;11710;Pågående till/ombyggn årets invest;OTIS AB;5561293803;74 458,00
Region Östergötland;Regionfastigheter;433711526;202209;11710;Pågående till/ombyggn årets invest;OTIS AB;5561293803;74 458,00
Region Östergötland;Regionfastigheter;433711527;202209;11710;Pågående till/ombyggn årets invest;OTIS AB;5561293803;85 670,00
Region Östergötland;Regionfastigheter;433723100;202209;11710;Pågående till/ombyggn årets invest;Torpheimer i Linköping AB;5566584685;1 200 000,00
Region Östergötland;Centrum för kirurgi ortopedi och cancervård;433728079;202209;46160;Utbildning o konferens medarb. Sverige skattefritt;Swemac education Center AB;5565381836;56 979,25
Region Östergötland;Sinnescentrum;433733097;202209;57110;Synhjälpmedel;Synsam i Motala;5567687248;1 038,40
Region Östergötland;Regionfastigheter;433737749;202209;12811;Årets pågående konstinvestering;Studio Ebba Bohlin AB;5590335104;10 000,00
Region Östergötland;Regionfastigheter;433739583;202209;11885;Pågående markanl årets invest;ÅF-Infrastruktur AB;5561852103;40 113,00
Region Östergötland;Sinnescentrum;433740324;202209;56329;Övrigt operationsmaterial;Medilens AB;5565194171;2 050,00
Region Östergötland;Diagnostikcentrum;433742365;202209;75510;Konsultuppdrag;Sofus Regulatory Affairs AB;5566313036;46 375,00
Region Östergötland;Hjärtcentrum;433743203;202209;64171;Sjukvårdsutrustning;INTRAMEDIC;5564413853;8 690,00
Region Östergötland;Hälso- och sjukvården stab;433744574;202209;76965;Utbildning o konferens externa deltagare;Lingmerths Resebyrå AB;5560542747;1 058,71
Region Östergötland;Diagnostikcentrum;433747902;202209;56309;Övr lab o provtagningsmaterial;Fisher Scientific GTF AB;5561017111;776,19
Region Östergötland;Hjärtcentrum;433748905;202209;64171;Sjukvårdsutrustning;INTRAMEDIC;5564413853;6 690,00
Region Östergötland;Inköp service och logistik;433754107;202209;24150;Prel levskuld Lager;Mediq Sverige AB;5562522317;15 788,76
Region Östergötland;Sinnescentrum;433761477;202209;57110;Synhjälpmedel;Synsam i Motala;5567687248;800
Region Östergötland;Hjärtcentrum;433771789;202209;56352;Flaskgas;L&T FM AB;5564732260;497
Region Östergötland;Sinnescentrum;433772668;202209;56390;Övrigt medicinskt material;Smiths Medical Sverige AB;5565631537;490
Region Östergötland;Regionfastigheter;433775321;202209;11885;Pågående markanl årets invest;ÅF-Infrastruktur AB;5561852103;37 446,00
Region Östergötland;Medicincentrum;433777121;202209;75990;Övr div främm tjänst/verksamh;Universitetet i Linköping;2021003096;1 750,50
Region Östergötland;Närsjukvården i östra Östergötland;433777385;202209;46220;Företagshälsovård;Feelgood Företagshälsovård AB;5561856385;7 372,00
Region Östergötland;Hälso- och sjukvården stab;433777471;202209;65220;Underhållmtrl med tekn utrustn;Vingmed/Medtronic;5561988253;795,6
Region Östergötland;Sinnescentrum;433777696;202209;56390;Övrigt medicinskt material;Medifa AB;5568010630;17 676,00
Region Östergötland;Inköp service och logistik;433781221;202209;24150;Prel levskuld Lager;Mediplast AB;5561409011;56 164,75
Region Östergötland;Närsjukvården i östra Östergötland;433782760;202209;60311;Avfallshantering;San Sac Digero AB;5565011227;7 760,00
Region Östergötland;Medicincentrum;433786453;202209;85610;Avgifter PG/BG/bankkonton;Nets Branch Sweden;5164074709;200
Region Östergötland;Barn- och kvinnocentrum;433788513;202209;56390;Övrigt medicinskt material;Medtronic-Vingmed AB;5565255964;254 274,00
Region Östergötland;Hälso- och sjukvårdsnämnden;433790357;202209;57110;Synhjälpmedel;Synsam i Motala;5567687248;800
Region Östergötland;Regionledning;433790596;202209;68310;Kost och logi Sverige;Lingmerths Resebyrå AB;5560542747;1 550,21
Region Östergötland;Primärvårdscentrum;433791099;202209;55520;Inhyrd sjuksköterska;;;-101 270,00
Region Östergötland;Sinnescentrum;433791113;202209;56390;Övrigt medicinskt material;Smiths Medical Sverige AB;5565631537;294
Region Östergötland;Inköp service och logistik;433792979;202209;24150;Prel levskuld Lager;Mediq Sverige AB;5562522317;2 589,57
Region Östergötland;Inköp service och logistik;433793626;202209;24150;Prel levskuld Lager;Coloplast AB;5562075431;20 175,00
Region Östergötland;Hälso- och sjukvårdsnämnden;433793850;202209;26004;Avräkning läkemedel SV;ApoEx AB;5566334149;2 455,68
Region Östergötland;Hälso- och sjukvårdsnämnden;433793850;202209;26004;Avräkning läkemedel SV;ApoEx AB;5566334149;1 875,00
Region Östergötland;Hälso- och sjukvårdsnämnden;433793850;202209;67990;Övriga transporter o frakter;ApoEx AB;5566334149;200
Region Östergötland;Inköp service och logistik;433794001;202209;24150;Prel levskuld Lager;Smith o Nephew;5561988345;3 660,00
Region Östergötland;Regionfastigheter;433795668;202209;11710;Pågående till/ombyggn årets invest;Sundahus;5564041373;3 190,50
Region Östergötland;Sinnescentrum;433796259;202209;64810;Skydds-/arbkläder o skyddsmtrl;Ahlsell AB;5560129206;260,75
Region Östergötland;Folktandvården;433796441;202209;26004;Avräkning läkemedel SV;ApoEx AB;5566334149;7 976,52
Region Östergötland;Folktandvården;433796441;202209;26004;Avräkning läkemedel SV;ApoEx AB;5566334149;300
Region Östergötland;Sinnescentrum;433815436;202209;57110;Synhjälpmedel;Synsam i Motala;5567687248;800
Region Östergötland;Närsjukvården i östra Östergötland;433816831;202209;46160;Utbildning o konferens medarb. Sverige skattefritt;Ågrenhuset AB;5560588088;4 500,00
Region Östergötland;Inköp service och logistik;433819800;202209;24150;Prel levskuld Lager;Codan Triplus AB;5560808841;7 560,00
Region Östergötland;Centrum för kirurgi ortopedi och cancervård;433819916;202209;56390;Övrigt medicinskt material;Medtronic-Vingmed AB;5565255964;93 600,00
Region Östergötland;Hälso- och sjukvårdsnämnden;433820018;202209;26004;Avräkning läkemedel SV;ApoEx AB;5566334149;25,94
Region Östergötland;Hälso- och sjukvårdsnämnden;433820018;202209;26004;Avräkning läkemedel SV;ApoEx AB;5566334149;75
Region Östergötland;Sinnescentrum;433821069;202209;17105;Interimsbokade anläggningstillgångar;Storz Endoskop Sverige AB;5564307600;891 612,00
Region Östergötland;Sinnescentrum;433821102;202209;56390;Övrigt medicinskt material;Solann AB;5566566286;9 160,00
Region Östergötland;Närsjukvården i östra Östergötland;433821505;202209;64649;Övrigt förbrukningsmaterial;Procurator Sverige AB;5560576554;6 344,75
Region Östergötland;Primärvårdscentrum;433823944;202209;46315;Intern representation;MOTALA KOMMUN;2120002817;508,88
Region Östergötland;Barn- och kvinnocentrum;433823949;202209;46725;Personalvård;MOTALA KOMMUN;2120002817;513,42
Region Östergötland;Sinnescentrum;433824611;202209;56323;Kirurgiska instrument;Medtronic-Vingmed AB;5565255964;25 950,00
Region Östergötland;Diagnostikcentrum;433824984;202209;46160;Utbildning o konferens medarb. Sverige skattefritt;SFMSR;8024400866;274 357,00
Region Östergötland;Hälso- och sjukvården stab;433825568;202209;65220;Underhållmtrl med tekn utrustn;Hettich Labinstrument AB;5564826039;1 124,75
Region Östergötland;Primärvårdscentrum;433825840;202209;72341;Datakommunikation abonnemang;Universitetet i Linköping;2021003096;2 448,00
Region Östergötland;Sinnescentrum;433826243;202209;56390;Övrigt medicinskt material;Olympus Sverige AB;5561892794;9 639,25
Region Östergötland;Inköp service och logistik;433826485;202209;24150;Prel levskuld Lager;Becton Dickinsson AB;5561456756;1 100,00
Region Östergötland;Regionfastigheter;433827397;202209;11710;Pågående till/ombyggn årets invest;Sundahus;5564041373;8 930,50
Region Östergötland;Regionfastigheter;433827642;202209;56353;Centralgas;Air Liquide Gas AB;5560193764;1 829,82
Region Östergötland;Folktandvården;433828949;202209;53115;Köpt tandvård barn;Folktandvården Sörmland AB;5568202625;1 281,00
Region Östergötland;Närsjukvården i östra Östergötland;433830023;202209;57119;Hjälpmedel köp;Hjälpmedelscentrum i Österg;5566690433;-57
Region Östergötland;Inköp service och logistik;433831734;202209;24150;Prel levskuld Lager;Mediq Sverige AB;5562522317;3 998,40
Region Östergötland;Diagnostikcentrum;433832546;202209;75990;Övr div främm tjänst/verksamh;Sectra Skandinavien AB;5564839479;1 850,00
Region Östergötland;Hälso- och sjukvården stab;433832546;202209;75990;Övr div främm tjänst/verksamh;Sectra Skandinavien AB;5564839479;1 850,00
Region Östergötland;Regionfastigheter;433833779;202209;11710;Pågående till/ombyggn årets invest;Swedsign AB;5560783465;867,12
Region Östergötland;Sinnescentrum;433833796;202209;56759;Övriga implantat;Johnson & Johnson AB;5560632514;5 112,00
Region Östergötland;Inköp service och logistik;433833841;202209;24150;Prel levskuld Lager;Coloplast AB;5562075431;88 470,00
Region Östergötland;Centrum för kirurgi ortopedi och cancervård;433833905;202209;56323;Kirurgiska instrument;Medtronic-Vingmed AB;5565255964;11 078,08
Region Östergötland;Centrum för kirurgi ortopedi och cancervård;433833905;202209;56390;Övrigt medicinskt material;Medtronic-Vingmed AB;5565255964;8 874,00
Region Östergötland;Inköp service och logistik;433833954;202209;24150;Prel levskuld Lager;Lager;;84 615,48
Region Östergötland;Inköp service och logistik;433834467;202209;24150;Prel levskuld Lager;Attends AB;5567577258;165 593,28
Region Östergötland;Regionutvecklingsnämnden;433834528;202209;75990;Övr div främm tjänst/verksamh;Debbie & Lasse;5511141151;4 500,00
Region Östergötland;Hälso- och sjukvårdsnämnden;433835558;202209;26030;Avräkning KUL;Region Stockholm;2321000016;82 287,97
Region Östergötland;Sinnescentrum;433835761;202209;56323;Kirurgiska instrument;Medtronic-Vingmed AB;5565255964;4 902,00
Region Östergötland;Regionfastigheter;433836945;202209;60820;Konsulter fastighetsunderhåll;Informationsbyggarna AB;5568591027;3 735,00
Region Östergötland;Primärvårdscentrum;433839177;202209;57210;Livsmedel råvaror;MOTALA KOMMUN;2120002817;861,95
Region Östergötland;Sinnescentrum;433839969;202209;26004;Avräkning läkemedel SV;ApoEx AB;5566334149;25,1
Region Östergötland;Sinnescentrum;433839969;202209;26004;Avräkning läkemedel SV;ApoEx AB;5566334149;75
Region Östergötland;Barn- och kvinnocentrum;433840918;202209;56390;Övrigt medicinskt material;Solann AB;5566566286;4 060,00
Region Östergötland;Centrum för kirurgi ortopedi och cancervård;433841254;202209;57210;Livsmedel råvaror;Jacobs Douwe Egberts AB;5569755621;300
Region Östergötland;Centrum för kirurgi ortopedi och cancervård;433841256;202209;57210;Livsmedel råvaror;Jacobs Douwe Egberts AB;5569755621;300
Region Östergötland;Centrum för kirurgi ortopedi och cancervård;433841258;202209;57210;Livsmedel råvaror;Jacobs Douwe Egberts AB;5569755621;300
Region Östergötland;Centrum för kirurgi ortopedi och cancervård;433841260;202209;57210;Livsmedel råvaror;Jacobs Douwe Egberts AB;5569755621;300
Region Östergötland;Centrum för kirurgi ortopedi och cancervård;433841261;202209;57210;Livsmedel råvaror;Jacobs Douwe Egberts AB;5569755621;600
Region Östergötland;Centrum för kirurgi ortopedi och cancervård;433841263;202209;57210;Livsmedel råvaror;Jacobs Douwe Egberts AB;5569755621;300
Region Östergötland;Centrum för kirurgi ortopedi och cancervård;433841265;202209;57210;Livsmedel råvaror;Jacobs Douwe Egberts AB;5569755621;300
Region Östergötland;Centrum för kirurgi ortopedi och cancervård;433841267;202209;57210;Livsmedel råvaror;Jacobs Douwe Egberts AB;5569755621;300
Region Östergötland;Centrum för kirurgi ortopedi och cancervård;433841269;202209;57210;Livsmedel råvaror;Jacobs Douwe Egberts AB;5569755621;300
Region Östergötland;Centrum för kirurgi ortopedi och cancervård;433841271;202209;57210;Livsmedel råvaror;Jacobs Douwe Egberts AB;5569755621;300
Region Östergötland;Centrum för kirurgi ortopedi och cancervård;433841273;202209;57210;Livsmedel råvaror;Jacobs Douwe Egberts AB;5569755621;300
Region Östergötland;Centrum för kirurgi ortopedi och cancervård;433841275;202209;57210;Livsmedel råvaror;Jacobs Douwe Egberts AB;5569755621;300
Region Östergötland;Centrum för kirurgi ortopedi och cancervård;433841278;202209;57210;Livsmedel råvaror;Jacobs Douwe Egberts AB;5569755621;300
Region Östergötland;Centrum för kirurgi ortopedi och cancervård;433841280;202209;57210;Livsmedel råvaror;Jacobs Douwe Egberts AB;5569755621;300
Region Östergötland;Centrum för kirurgi ortopedi och cancervård;433841282;202209;57210;Livsmedel råvaror;Jacobs Douwe Egberts AB;5569755621;300
Region Östergötland;Centrum för kirurgi ortopedi och cancervård;433841284;202209;57210;Livsmedel råvaror;Jacobs Douwe Egberts AB;5569755621;300
Region Östergötland;Centrum för kirurgi ortopedi och cancervård;433841286;202209;57210;Livsmedel råvaror;Jacobs Douwe Egberts AB;5569755621;300
Region Östergötland;Centrum för kirurgi ortopedi och cancervård;433841288;202209;57210;Livsmedel råvaror;Jacobs Douwe Egberts AB;5569755621;300
Region Östergötland;Centrum för kirurgi ortopedi och cancervård;433841290;202209;57210;Livsmedel råvaror;Jacobs Douwe Egberts AB;5569755621;300
Region Östergötland;Centrum för kirurgi ortopedi och cancervård;433841292;202209;57210;Livsmedel råvaror;Jacobs Douwe Egberts AB;5569755621;300
Region Östergötland;Centrum för kirurgi ortopedi och cancervård;433841294;202209;57210;Livsmedel råvaror;Jacobs Douwe Egberts AB;5569755621;300
Region Östergötland;Centrum för kirurgi ortopedi och cancervård;433841296;202209;57210;Livsmedel råvaror;Jacobs Douwe Egberts AB;5569755621;300
Region Östergötland;Hälso- och sjukvården stab;433841340;202209;64649;Övrigt förbrukningsmaterial;Elfa Distrelec AB;5567511414;356,95
Region Östergötland;Inköp service och logistik;433841807;202209;56390;Övrigt medicinskt material;Kungshusen Medicinska AB;5561960641;17 500,00
Region Östergötland;Centrum för kirurgi ortopedi och cancervård;433841875;202209;56339;Förbandsartiklar;Essity Hygiene and Health AB;5560072356;464
Region Östergötland;Hälso- och sjukvårdsnämnden;433841935;202209;26004;Avräkning läkemedel SV;ApoEx AB;5566334149;467,06
Region Östergötland;Hälso- och sjukvårdsnämnden;433841935;202209;26004;Avräkning läkemedel SV;ApoEx AB;5566334149;300
Region Östergötland;Hälso- och sjukvårdsnämnden;433841935;202209;67990;Övriga transporter o frakter;ApoEx AB;5566334149;200
Region Östergötland;Närsjukvården i västra Östergötland;433842496;202209;55955;Köpt tjänst tolk;Språkservice Sverige AB;5566291513;458,43
Region Östergötland;Diagnostikcentrum;433842497;202209;55955;Köpt tjänst tolk;Språkservice Sverige AB;5566291513;1 315,38
Region Östergötland;Hälso- och sjukvårdsnämnden;433843067;202209;26004;Avräkning läkemedel SV;ApoEx AB;5566334149;24
Region Östergötland;Hälso- och sjukvårdsnämnden;433843067;202209;26004;Avräkning läkemedel SV;ApoEx AB;5566334149;75
Region Östergötland;Hälso- och sjukvårdsnämnden;433843067;202209;67990;Övriga transporter o frakter;ApoEx AB;5566334149;200
Region Östergötland;Diagnostikcentrum;433843229;202209;14511;Kem lab förråd;Merck Millipore Sweden;5561203000;3 940,00
Region Östergötland;Diagnostikcentrum;433843229;202209;57930;Omkostnader vid inköp;Merck Millipore Sweden;5561203000;165
Region Östergötland;Folktandvården;433843844;202209;26004;Avräkning läkemedel SV;ApoEx AB;5566334149;3 634,56
Region Östergötland;Folktandvården;433843844;202209;26004;Avräkning läkemedel SV;ApoEx AB;5566334149;525
Region Östergötland;Sinnescentrum;433843856;202209;26004;Avräkning läkemedel SV;ApoEx AB;5566334149;274
Region Östergötland;Sinnescentrum;433843856;202209;26004;Avräkning läkemedel SV;ApoEx AB;5566334149;75
Region Östergötland;Hjärtcentrum;433844972;202209;64148;Kontorsutrustning;Input Interiör Öst AB;5563195030;977
Region Östergötland;Hjärtcentrum;433844973;202209;64148;Kontorsutrustning;Input Interiör Öst AB;5563195030;11 188,00
Region Östergötland;Regionfastigheter;433845383;202209;11710;Pågående till/ombyggn årets invest;Swedsign AB;5560783465;20 050,00
Region Östergötland;Regionfastigheter;433845384;202209;11710;Pågående till/ombyggn årets invest;Swedsign AB;5560783465;10 198,00
Region Östergötland;Regionfastigheter;433845385;202209;11710;Pågående till/ombyggn årets invest;Swedsign AB;5560783465;1 732,00
Region Östergötland;Hälso- och sjukvården stab;433845401;202209;65210;Service/underh/rep medtekn app;Miele;5561389668;8 160,00
Region Östergötland;Barn- och kvinnocentrum;433845659;202209;64649;Övrigt förbrukningsmaterial;Procurator Sverige AB;5560576554;556,89
Region Östergötland;Finansförvaltningen;433845875;202209;39910;Intäkter påminnelseavgifter/inkasso;Visma Financial Solutions;5564395670;-1 935,76
Region Östergötland;Finansförvaltningen;433845875;202209;75330;Inkassotjänster;Visma Financial Solutions;5564395670;1 935,76
Region Östergötland;Finansförvaltningen;433845875;202209;85990;Övriga finansiella kostnader;Visma Financial Solutions;5564395670;540
Region Östergötland;Finansförvaltningen;433845877;202209;39910;Intäkter påminnelseavgifter/inkasso;Visma Financial Solutions;5564395670;-245 354,68
Region Östergötland;Finansförvaltningen;433845877;202209;75330;Inkassotjänster;Visma Financial Solutions;5564395670;245 354,68
Region Östergötland;Finansförvaltningen;433845877;202209;85990;Övriga finansiella kostnader;Visma Financial Solutions;5564395670;2 538,31
Region Östergötland;Hälso- och sjukvården stab;433845903;202209;65990;Service/underh/rep övr inv/utr;Medtronic-Vingmed AB;5565255964;95 876,00
Region Östergötland;Sinnescentrum;433846000;202209;57110;Synhjälpmedel;Synsam i Motala;5567687248;800
Region Östergötland;Barn- och kvinnocentrum;433847482;202209;68120;Biljetter och resor i utlandet;Lingmerths Resebyrå AB;5560542747;5 160,00
Region Östergötland;Inköp service och logistik;433847768;202209;24150;Prel levskuld Lager;Essity Hygiene and Health AB;5560072356;25 716,00
Region Östergötland;Inköp service och logistik;433847880;202209;24150;Prel levskuld Lager;Nordenta AB;5560494899;16 746,35
Region Östergötland;IT;433848141;202209;64127;IT-utrustning;AVS i Sverige AB;5562739358;2 866,00
Region Östergötland;Sinnescentrum;433848236;202209;56322;Sutur;Medtronic-Vingmed AB;5565255964;400,72
Region Östergötland;Sinnescentrum;433848275;202209;56390;Övrigt medicinskt material;Solann AB;5566566286;9 160,00
Region Östergötland;Sinnescentrum;433848282;202209;56390;Övrigt medicinskt material;Catell AB;5567699920;390,4
Region Östergötland;Hälso- och sjukvårdsnämnden;433848389;202209;26004;Avräkning läkemedel SV;ApoEx AB;5566334149;916,56
Region Östergötland;Hälso- och sjukvårdsnämnden;433848389;202209;26004;Avräkning läkemedel SV;ApoEx AB;5566334149;225
Region Östergötland;Hälso- och sjukvårdsnämnden;433848389;202209;67990;Övriga transporter o frakter;ApoEx AB;5566334149;200
Region Östergötland;Sinnescentrum;433848531;202209;57112;Övr hjälpmedel kommunikation;Xena Medical;5565022323;13 990,00
Region Östergötland;Folktandvården;433848669;202209;46315;Intern representation;Astrid Lindgrens Värld AB;5563033033;2 216,59
Region Östergötland;Folktandvården;433848669;202209;46315;Intern representation;Astrid Lindgrens Värld AB;5563033033;2 204,00
Region Östergötland;Folktandvården;433848669;202209;46315;Intern representation;Astrid Lindgrens Värld AB;5563033033;2 204,00
Region Östergötland;Primärvårdscentrum;433849229;202209;17105;Interimsbokade anläggningstillgångar;Olympus Sverige AB;5561892794;45 874,37
Region Östergötland;Hälso- och sjukvårdsnämnden;433849337;202209;26004;Avräkning läkemedel SV;ApoEx AB;5566334149;1 683,74
Region Östergötland;Centrum för kirurgi ortopedi och cancervård;433849337;202209;67990;Övriga transporter o frakter;ApoEx AB;5566334149;200
Region Östergötland;Primärvårdscentrum;433849431;202209;17105;Interimsbokade anläggningstillgångar;Olympus Sverige AB;5561892794;3 300,00
Region Östergötland;Primärvårdscentrum;433849433;202209;17105;Interimsbokade anläggningstillgångar;Olympus Sverige AB;5561892794;10 035,25
Region Östergötland;Primärvårdscentrum;433849435;202209;17105;Interimsbokade anläggningstillgångar;Olympus Sverige AB;5561892794;288 001,60
Region Östergötland;Närsjukvården i centrala Östergötland;433849794;202209;68110;Biljetter och resor i Sverige;Lingmerths Resebyrå AB;5560542747;7 471,00
Region Östergötland;Närsjukvården i centrala Östergötland;433849794;202209;68120;Biljetter och resor i utlandet;Lingmerths Resebyrå AB;5560542747;1 379,00
Region Östergötland;Närsjukvården i centrala Östergötland;433849979;202209;56339;Förbandsartiklar;Camp Scandinavia;5562218270;458
Region Östergötland;Närsjukvården i centrala Östergötland;433849979;202209;57131;Ortoser;Camp Scandinavia;5562218270;237
Region Östergötland;Hjärtcentrum;433850048;202209;56390;Övrigt medicinskt material;Meliora Medtech AB;5568669245;5 960,00
Region Östergötland;Hjärtcentrum;433850048;202209;67990;Övriga transporter o frakter;Meliora Medtech AB;5568669245;195
Region Östergötland;Diagnostikcentrum;433850095;202209;26004;Avräkning läkemedel SV;ApoEx AB;5566334149;9 920,00
Region Östergötland;Diagnostikcentrum;433850095;202209;26004;Avräkning läkemedel SV;ApoEx AB;5566334149;375
Region Östergötland;Diagnostikcentrum;433850220;202209;85510;Dröjsmålsränta (kostnad);ApoEx AB;5566334149;558,97
Region Östergötland;Finansförvaltningen;433850331;202209;25650;Varor från 3:e land 25%;Utländska företag;;-702,59
Region Östergötland;Sinnescentrum;433850331;202209;56302;Infusion-tappnings-injektmtrl;Utländska företag;;2 810,34
Region Östergötland;Hjärtcentrum;433850527;202209;55990;Köpt verksamhetsnära tjänster övr;Zenicor Medical Systems AB;5566423678;157 080,00
Region Östergötland;Inköp service och logistik;433850770;202209;24150;Prel levskuld Lager;Smith o Nephew;5561988345;8 900,75
Region Östergötland;Hjärtcentrum;433850795;202209;56322;Sutur;Medtronic-Vingmed AB;5565255964;810
Region Östergötland;Hjärtcentrum;433850801;202209;64171;Sjukvårdsutrustning;Medtronic-Vingmed AB;5565255964;1 040,00
Region Östergötland;Inköp service och logistik;433850844;202209;24150;Prel levskuld Lager;One Med Sverige AB;5567644140;143 646,40
Region Östergötland;Diagnostikcentrum;433851184;202209;14511;Kem lab förråd;Thermo Fisher Diagnostics AB;5564013794;47 736,00
Region Östergötland;Hjärtcentrum;433851300;202209;56352;Flaskgas;L&T FM AB;5564732260;8 093,56
Region Östergötland;Psykiatricentrum;433851468;202209;56349;Terapimaterial för patienter;Region Skåne;2321000255;22 135,00
Region Östergötland;Primärvårdscentrum;433851627;202209;46490;Övr kostn personalrekrytering;Experis AB;5568551104;3 000,00
Region Östergötland;Primärvårdscentrum;433851650;202209;56356;Förbruknmaterial diagnostik;Wing-Plast AB;5560967522;1 608,00
Region Östergötland;Sinnescentrum;433851683;202209;56309;Övr lab o provtagningsmaterial;Histolab Products AB;5560986811;1 000,00
Region Östergötland;Sinnescentrum;433851683;202209;67990;Övriga transporter o frakter;Histolab Products AB;5560986811;250,4
Region Östergötland;Regionledning;433852243;202209;72510;Portokostnader;PostNord Sverige AB;5567115695;200
Region Östergötland;Diagnostikcentrum;433852500;202209;68110;Biljetter och resor i Sverige;Lingmerths Resebyrå AB;5560542747;202,42
Region Östergötland;Diagnostikcentrum;433852500;202209;68120;Biljetter och resor i utlandet;Lingmerths Resebyrå AB;5560542747;12 127,00
Region Östergötland;Diagnostikcentrum;433852500;202209;68410;Kost och logi utlandet;Lingmerths Resebyrå AB;5560542747;1 880,00
Region Östergötland;Närsjukvården i västra Östergötland;433852795;202209;60312;Städning;Sodexo AB;5565282984;697,25
Region Östergötland;Närsjukvården i västra Östergötland;433852795;202209;75110;Tjänster verksamhetsservice fast;Sodexo AB;5565282984;459,69
Region Östergötland;Inköp service och logistik;433852992;202209;24150;Prel levskuld Lager;Vingmed/Medtronic;5561988253;57 304,00
Region Östergötland;Sinnescentrum;433853077;202209;26004;Avräkning läkemedel SV;ApoEx AB;5566334149;3 504,96
Region Östergötland;Primärvårdscentrum;433853167;202209;26004;Avräkning läkemedel SV;ApoEx AB;5566334149;1 084,29
Region Östergötland;Primärvårdscentrum;433853167;202209;26004;Avräkning läkemedel SV;ApoEx AB;5566334149;1 050,00
Region Östergötland;Primärvårdscentrum;433853189;202209;56302;Infusion-tappnings-injektmtrl;Becton Dickinsson AB;5561456756;1 775,00
Region Östergötland;Primärvårdscentrum;433853189;202209;67990;Övriga transporter o frakter;Becton Dickinsson AB;5561456756;350
Region Östergötland;Hälso- och sjukvården stab;433853236;202209;65220;Underhållmtrl med tekn utrustn;Svenska Batterilagret AB;5565478012;1 520,00
Region Östergötland;Regionfastigheter;433854496;202209;11710;Pågående till/ombyggn årets invest;Sodexo AB;5565282984;5 520,00
Region Östergötland;Hjärtcentrum;433854593;202209;64510;Kontorsmaterial;Atea Sverige AB;5564480282;2 659,25
Region Östergötland;Hjärtcentrum;433854613;202209;56390;Övrigt medicinskt material;MeritMedical Systems AB;5567084115;10 620,00
Region Östergötland;Inköp service och logistik;433854629;202209;24150;Prel levskuld Lager;Lager;;24 370,46
Region Östergötland;Centrum för kirurgi ortopedi och cancervård;433854809;202209;75990;Övr div främm tjänst/verksamh;AMRA Medical AB;5568043227;383 122,50
Region Östergötland;Regionfastigheter;433855075;202209;11710;Pågående till/ombyggn årets invest;L&T FM AB;5564732260;46 639,00
Region Östergötland;Sinnescentrum;433855375;202209;76909;Kostnad påminnelseavgifter/inkassoavgifter;ApoEx AB;5566334149;450
Region Östergötland;Diagnostikcentrum;433855381;202209;76909;Kostnad påminnelseavgifter/inkassoavgifter;ApoEx AB;5566334149;450
Region Östergötland;Diagnostikcentrum;433855412;202209;76909;Kostnad påminnelseavgifter/inkassoavgifter;ApoEx AB;5566334149;450
Region Östergötland;Diagnostikcentrum;433855413;202209;76909;Kostnad påminnelseavgifter/inkassoavgifter;ApoEx AB;5566334149;450
Region Östergötland;Diagnostikcentrum;433855419;202209;76909;Kostnad påminnelseavgifter/inkassoavgifter;ApoEx AB;5566334149;450
Region Östergötland;Psykiatricentrum;433855424;202209;68310;Kost och logi Sverige;Lingmerths Resebyrå AB;5560542747;8 703,54
Region Östergötland;Sinnescentrum;433855663;202209;56390;Övrigt medicinskt material;Staples Sweden AB;5560913591;209
Region Östergötland;Hjärtcentrum;433855694;202209;64510;Kontorsmaterial;Atea Sverige AB;5564480282;2 659,25
Region Östergötland;Psykiatricentrum;433855763;202209;26004;Avräkning läkemedel SV;ApoEx AB;5566334149;697,84
Region Östergötland;Psykiatricentrum;433855763;202209;26004;Avräkning läkemedel SV;ApoEx AB;5566334149;75
Region Östergötland;Psykiatricentrum;433855775;202209;26004;Avräkning läkemedel SV;ApoEx AB;5566334149;112,94
Region Östergötland;Psykiatricentrum;433855775;202209;26004;Avräkning läkemedel SV;ApoEx AB;5566334149;75
Region Östergötland;Primärvårdscentrum;433856121;202209;56339;Förbandsartiklar;Mölnlycke Health Care AB;5565475489;1 470,00
Region Östergötland;Hälso- och sjukvårdsnämnden;433856262;202209;26030;Avräkning KUL;Region Skåne;2321000255;18 326,00
Region Östergötland;Regionfastigheter;433856315;202209;12055;Påg arb årets inv byggninv omb;PlanProj AB;5568754526;8 144,00
Region Östergötland;Regionfastigheter;433856326;202209;11710;Pågående till/ombyggn årets invest;PlanProj AB;5568754526;31 144,00
Region Östergötland;Närsjukvården i västra Östergötland;433856448;202209;68310;Kost och logi Sverige;Lingmerths Resebyrå AB;5560542747;982,15
Region Östergötland;Primärvårdscentrum;433856816;202209;26004;Avräkning läkemedel SV;ApoEx AB;5566334149;792,89
Region Östergötland;Primärvårdscentrum;433856816;202209;26004;Avräkning läkemedel SV;ApoEx AB;5566334149;450
Region Östergötland;Diagnostikcentrum;433856851;202209;26004;Avräkning läkemedel SV;ApoEx AB;5566334149;650
Region Östergötland;Diagnostikcentrum;433856851;202209;26004;Avräkning läkemedel SV;ApoEx AB;5566334149;75
Region Östergötland;Diagnostikcentrum;433856852;202209;26004;Avräkning läkemedel SV;ApoEx AB;5566334149;2 490,00
Region Östergötland;Diagnostikcentrum;433856852;202209;26004;Avräkning läkemedel SV;ApoEx AB;5566334149;75
Region Östergötland;Hälso- och sjukvården stab;433856925;202209;65990;Service/underh/rep övr inv/utr;Siemens Healthcare Diagnostics AB;5561572636;70 196,00
Region Östergötland;Hälso- och sjukvården stab;433856925;202209;75420;Driftkostnad IT-system;Siemens Healthcare Diagnostics AB;5561572636;83 660,00
Region Östergötland;Primärvårdscentrum;433856980;202209;55520;Inhyrd sjuksköterska;;;109 491,25
Region Östergötland;Hälso- och sjukvården stab;433857113;202209;65220;Underhållmtrl med tekn utrustn;Liko AB;5562026004;547,96
Region Östergötland;Diagnostikcentrum;433857265;202209;67990;Övriga transporter o frakter;Fonus Öst;7250004467;9 334,91
Region Östergötland;Finansförvaltningen;433857374;202209;25620;Varor från annat EG-land 25%;EU-företag utländska;;-12 609,00
Region Östergötland;Diagnostikcentrum;433857374;202209;56390;Övrigt medicinskt material;EU-företag utländska;;50 436,00
Region Östergötland;Hälso- och sjukvården stab;433857438;202209;65990;Service/underh/rep övr inv/utr;Pelican Rouge Coffee Solutions AB;5563072171;450
Region Östergötland;Psykiatricentrum;433857503;202209;68910;Övriga resekostnader;EasyPark AB;5566267893;498
Region Östergötland;Närsjukvården i östra Östergötland;433857569;202209;55520;Inhyrd sjuksköterska;;;60 185,00
Region Östergötland;Psykiatricentrum;433857577;202209;66410;Hyra/leasing fordon;Swedbank AB;5020177753;585,88
Region Östergötland;Psykiatricentrum;433857578;202209;66410;Hyra/leasing fordon;Swedbank AB;5020177753;728,26
Region Östergötland;Diagnostikcentrum;433857633;202209;68310;Kost och logi Sverige;Lingmerths Resebyrå AB;5560542747;2 827,00
Region Östergötland;IT;433857636;202209;68110;Biljetter och resor i Sverige;Lingmerths Resebyrå AB;5560542747;625,58
Region Östergötland;Sinnescentrum;433857645;202209;68310;Kost och logi Sverige;Lingmerths Resebyrå AB;5560542747;4 364,50
Region Östergötland;Regionfastigheter;433858197;202209;60820;Konsulter fastighetsunderhåll;Sweco Sverige AB;5567679849;3 264,00
Region Östergötland;Diagnostikcentrum;433858224;202209;56309;Övr lab o provtagningsmaterial;Fisher Scientific GTF AB;5561017111;2 230,00
Region Östergötland;Primärvårdscentrum;433858242;202209;56329;Övrigt operationsmaterial;Hartmann - SCANDICARE AB;5563669828;826,56
Region Östergötland;Primärvårdscentrum;433858284;202209;56339;Förbandsartiklar;Essity Hygiene and Health AB;5560072356;88,32
Region Östergötland;Psykiatricentrum;433858352;202209;26004;Avräkning läkemedel SV;ApoEx AB;5566334149;58 063,01
Region Östergötland;Psykiatricentrum;433858352;202209;26004;Avräkning läkemedel SV;ApoEx AB;5566334149;2 325,00
Region Östergötland;Psykiatricentrum;433858364;202209;26004;Avräkning läkemedel SV;ApoEx AB;5566334149;1 090,55
Region Östergötland;Psykiatricentrum;433858364;202209;26004;Avräkning läkemedel SV;ApoEx AB;5566334149;600
Region Östergötland;Primärvårdscentrum;433858373;202209;26004;Avräkning läkemedel SV;ApoEx AB;5566334149;0,01
Region Östergötland;Primärvårdscentrum;433858373;202209;26004;Avräkning läkemedel SV;ApoEx AB;5566334149;75
Region Östergötland;Närsjukvården i västra Östergötland;433858615;202209;57120;Hjälpmedel hyrda;Hjälpmedelscentrum i Österg;5566690433;397,28
Region Östergötland;Psykiatricentrum;433858728;202209;57120;Hjälpmedel hyrda;Hjälpmedelscentrum i Österg;5566690433;13
Region Östergötland;Hälso- och sjukvården stab;433858858;202209;65990;Service/underh/rep övr inv/utr;Tecan Nordic AB;5566170022;74 733,30
Region Östergötland;Primärvårdscentrum;433858888;202209;57135;Kompressionsbandage;Juzo Scandinavia AB;5568789316;-669,5
Region Östergötland;Hälso- och sjukvården stab;433858959;202209;65220;Underhållmtrl med tekn utrustn;Philips AB;5561052613;36 646,65
Region Östergötland;Hälso- och sjukvården stab;433858959;202209;67990;Övriga transporter o frakter;Philips AB;5561052613;510
Region Östergötland;Hälso- och sjukvården stab;433858989;202209;65220;Underhållmtrl med tekn utrustn;Vingmed/Medtronic;5561988253;667,5
Region Östergötland;Hälso- och sjukvården stab;433858989;202209;65220;Underhållmtrl med tekn utrustn;Vingmed/Medtronic;5561988253;667,5
Region Östergötland;Regionfastigheter;433859086;202209;11710;Pågående till/ombyggn årets invest;L&T FM AB;5564732260;1 452,50
Region Östergötland;Sinnescentrum;433859109;202209;56390;Övrigt medicinskt material;Stryker AB;5565161352;1 174,00
Region Östergötland;Diagnostikcentrum;433859155;202209;56303;Reagensmaterial;Qiagen AB;5566725122;143 988,00
Region Östergötland;Sinnescentrum;433859404;202209;57111;Hörselhjälpmedel;Region Jönköpings län;2321000057;500
Region Östergötland;Diagnostikcentrum;433859500;202209;76909;Kostnad påminnelseavgifter/inkassoavgifter;ApoEx AB;5566334149;450
Region Östergötland;Diagnostikcentrum;433859501;202209;76909;Kostnad påminnelseavgifter/inkassoavgifter;ApoEx AB;5566334149;450
Region Östergötland;Primärvårdscentrum;433860128;202209;56321;Narkos och sugmaterial;Philips AB;5561052613;344
Region Östergötland;Medicincentrum;433860146;202209;56302;Infusion-tappnings-injektmtrl;B.Braun Medical AB;5562515170;3 520,00
Region Östergötland;Sinnescentrum;433860173;202209;56390;Övrigt medicinskt material;Medtronic-Vingmed AB;5565255964;1 222,00
Region Östergötland;Sinnescentrum;433860195;202209;56390;Övrigt medicinskt material;P O Medica AB;5565476198;5 952,00
Region Östergötland;Sinnescentrum;433860318;202209;56390;Övrigt medicinskt material;Cardinal Health Sweden 512 AB;5590179809;1 720,00
Region Östergötland;Sinnescentrum;433860340;202209;55310;Köpt klin kemisk provanalys;Region Stockholm;2321000016;574
Region Östergötland;Folktandvården;433860443;202209;53210;Köpta tandtekntjänster vuxna;Nordentic Dental Labs AB;5567024715;7 940,00
Region Östergötland;Regionfastigheter;433860543;202209;73710;Larm och bevakning;Securitas Bevakning AB;5561086082;12 352,60
Region Östergötland;Regionfastigheter;433860543;202209;73710;Larm och bevakning;Securitas Bevakning AB;5561086082;7 239,60
Region Östergötland;Regionfastigheter;433860543;202209;73710;Larm och bevakning;Securitas Bevakning AB;5561086082;2 714,85
Region Östergötland;Regionfastigheter;433860543;202209;73710;Larm och bevakning;Securitas Bevakning AB;5561086082;904,95
Region Östergötland;Regionfastigheter;433860548;202209;73710;Larm och bevakning;Securitas Bevakning AB;5561086082;2 634,00
Region Östergötland;Regionfastigheter;433860548;202209;73710;Larm och bevakning;Securitas Bevakning AB;5561086082;141
Region Östergötland;Regionfastigheter;433860550;202209;73710;Larm och bevakning;Securitas Bevakning AB;5561086082;810
Region Östergötland;Regionfastigheter;433860553;202209;73710;Larm och bevakning;Securitas Bevakning AB;5561086082;1 899,00
Region Östergötland;Regionfastigheter;433860553;202209;73710;Larm och bevakning;Securitas Bevakning AB;5561086082;57
Region Östergötland;Regionfastigheter;433860553;202209;73710;Larm och bevakning;Securitas Bevakning AB;5561086082;318
Region Östergötland;Regionfastigheter;433860556;202209;73710;Larm och bevakning;Securitas Bevakning AB;5561086082;1 296,00
Region Östergötland;Diagnostikcentrum;433860720;202209;64110;Inredning och textilier;L&T FM AB;5564732260;745,5
Region Östergötland;Barn- och kvinnocentrum;433860730;202209;60390;Övrig fastighetsservice;L&T FM AB;5564732260;48 982,18
Region Östergötland;Hälso- och sjukvården stab;433860738;202209;65220;Underhållmtrl med tekn utrustn;L&T FM AB;5564732260;30 469,00
Region Östergötland;Centrum för kirurgi ortopedi och cancervård;433860790;202209;65220;Underhållmtrl med tekn utrustn;SynMed Medicinteknik AB;5566615893;18 500,00
Region Östergötland;Diagnostikcentrum;433860914;202209;55990;Köpt verksamhetsnära tjänster övr;EU-företag utländska;;320 176,27
Region Östergötland;Hälso- och sjukvården stab;433860970;202209;68310;Kost och logi Sverige;Lingmerths Resebyrå AB;5560542747;2 291,29
Region Östergötland;Hälso- och sjukvården stab;433860970;202209;76965;Utbildning o konferens externa deltagare;Lingmerths Resebyrå AB;5560542747;444,46
Region Östergötland;Hälso- och sjukvården stab;433860976;202209;76965;Utbildning o konferens externa deltagare;Lingmerths Resebyrå AB;5560542747;8 600,67
Region Östergötland;Inköp service och logistik;433861115;202209;24150;Prel levskuld Lager;Lager;;21 960,00
Region Östergötland;Folktandvården;433861185;202209;26004;Avräkning läkemedel SV;ApoEx AB;5566334149;273,75
Region Östergötland;Folktandvården;433861185;202209;26004;Avräkning läkemedel SV;ApoEx AB;5566334149;150
Region Östergötland;Primärvårdscentrum;433861283;202209;57310;Rengörings och hygienmaterial;Cleanhouse Städmaterial & Hygien in Scandinavia AB;5568937329;37,94
Region Östergötland;Centrum för kirurgi ortopedi och cancervård;433861312;202209;56302;Infusion-tappnings-injektmtrl;Becton Dickinsson AB;5561456756;9 000,00
Region Östergötland;Primärvårdscentrum;433861337;202209;56302;Infusion-tappnings-injektmtrl;Becton Dickinsson AB;5561456756;1 775,00
Region Östergötland;Inköp service och logistik;433861337;202209;67990;Övriga transporter o frakter;Becton Dickinsson AB;5561456756;350
Region Östergötland;Primärvårdscentrum;433861384;202209;46315;Intern representation;Statt Koferens & Event Event i Motala;5590716741;3 571,43
Region Östergötland;Inköp service och logistik;433861391;202209;24150;Prel levskuld Lager;Procurator Sverige AB;5560576554;3 109,55
Region Östergötland;Diagnostikcentrum;433861472;202209;56303;Reagensmaterial;Sarstedt AB;5561857565;775
Region Östergötland;Diagnostikcentrum;433861475;202209;56319;Radiologisk material;Vingmed/Medtronic;5561988253;5 280,00
Region Östergötland;IT;433861484;202209;65110;Service/underh/rep IT-utrustning;Combitech AB;5562186790;180 000,00
Region Östergötland;Primärvårdscentrum;433861621;202209;66410;Hyra/leasing fordon;V.A.G Finans AB;5562588904;-86 783,80
Region Östergötland;Psykiatricentrum;433861634;202209;66410;Hyra/leasing fordon;V.A.G Finans AB;5562588904;388
Region Östergötland;IT;433861705;202209;66410;Hyra/leasing fordon;V.A.G Finans AB;5562588904;3 937,69
Region Östergötland;Primärvårdscentrum;433861791;202209;56390;Övrigt medicinskt material;Supinator Radings AB;5563396398;733,65
Region Östergötland;Regionfastigheter;433861849;202209;75110;Tjänster verksamhetsservice fast;L&T FM AB;5564732260;1 787,00
Region Östergötland;Hjärtcentrum;433861883;202209;60390;Övrig fastighetsservice;L&T FM AB;5564732260;1 920,00
Region Östergötland;Inköp service och logistik;433861974;202209;64290;Programvara IT-system;Pitney Bowes;5560616533;64 994,00
Region Östergötland;Sinnescentrum;433861976;202209;56329;Övrigt operationsmaterial;Brookhaven Instruments AB;5564499043;64 000,00
Region Östergötland;Sinnescentrum;433862000;202209;56323;Kirurgiska instrument;Steripolar AB;5569034076;2 625,00
Region Östergötland;Inköp service och logistik;433862244;202209;24150;Prel levskuld Lager;Coloplast AB;5562075431;10 695,00
Region Östergötland;Hjärtcentrum;433862265;202209;64510;Kontorsmaterial;Atea Sverige AB;5564480282;9 768,00
Region Östergötland;Sinnescentrum;433862270;202209;56390;Övrigt medicinskt material;Medtronic-Vingmed AB;5565255964;4 060,00
Region Östergötland;Primärvårdscentrum;433862300;202209;56390;Övrigt medicinskt material;3M;5560219684;4 737,60
Region Östergötland;Närsjukvården i östra Östergötland;433862310;202209;57131;Ortoser;Catell AB;5567699920;1 490,40
Region Östergötland;Centrum för kirurgi ortopedi och cancervård;433862333;202209;26004;Avräkning läkemedel SV;ApoEx AB;5566334149;3 180,00
Region Östergötland;Centrum för kirurgi ortopedi och cancervård;433862333;202209;26004;Avräkning läkemedel SV;ApoEx AB;5566334149;75
Region Östergötland;Barn- och kvinnocentrum;433862560;202209;56110;Läkemedel rekvisition;Kronans Droghandel Apotek AB;5567872048;1 432,00
Region Östergötland;Primärvårdscentrum;433862580;202209;55395;Köpt ospec diagnostisk provanalys;Region Jönköpings län;2321000057;617
Region Östergötland;Hälso- och sjukvården stab;433862628;202209;65220;Underhållmtrl med tekn utrustn;Dräger Medical;5566295100;35 718,00
Region Östergötland;Regionfastigheter;433862645;202209;11710;Pågående till/ombyggn årets invest;Ramboll Sweden AB;5561330506;44 919,00
Region Östergötland;Hälso- och sjukvården stab;433862667;202209;65220;Underhållmtrl med tekn utrustn;Medema Physio AB;5563997542;7 898,00
Region Östergötland;Diagnostikcentrum;433862783;202209;60895;Felavhjälpande underhåll;L&T FM AB;5564732260;248,5
Region Östergötland;Diagnostikcentrum;433862786;202209;60895;Felavhjälpande underhåll;L&T FM AB;5564732260;248,5
Region Östergötland;Hälso- och sjukvården stab;433862798;202209;60390;Övrig fastighetsservice;L&T FM AB;5564732260;3 220,00
Region Östergötland;Hälso- och sjukvården stab;433863025;202209;65220;Underhållmtrl med tekn utrustn;Bluegrass AB;5566709241;10 140,00
Region Östergötland;Sinnescentrum;433863028;202209;65990;Service/underh/rep övr inv/utr;Pelican Rouge Coffee Solutions AB;5563072171;1 338,00
Region Östergötland;Sinnescentrum;433863291;202209;68110;Biljetter och resor i Sverige;Lingmerths Resebyrå AB;5560542747;1 183,46
Region Östergötland;Sinnescentrum;433863291;202209;68310;Kost och logi Sverige;Lingmerths Resebyrå AB;5560542747;6 225,42
Region Östergötland;Hälso- och sjukvården stab;433863296;202209;68310;Kost och logi Sverige;Lingmerths Resebyrå AB;5560542747;2 496,64
Region Östergötland;Centrum för kirurgi ortopedi och cancervård;433863297;202209;68310;Kost och logi Sverige;Lingmerths Resebyrå AB;5560542747;2 496,64
Region Östergötland;Sinnescentrum;433863307;202209;68310;Kost och logi Sverige;Lingmerths Resebyrå AB;5560542747;4 404,00
Region Östergötland;Barn- och kvinnocentrum;433863315;202209;46160;Utbildning o konferens medarb. Sverige skattefritt;SFOG;5590766431;8 000,00
Region Östergötland;Närsjukvården i östra Östergötland;433863336;202209;55520;Inhyrd sjuksköterska;;;74 825,00
Region Östergötland;Regionfastigheter;433863415;202209;11710;Pågående till/ombyggn årets invest;Sweco Sverige AB;5567679849;11 550,00
Region Östergötland;Regionfastigheter;433863432;202209;12055;Påg arb årets inv byggninv omb;Sweco Sverige AB;5567679849;1 572,00
Region Östergötland;Regionfastigheter;433863438;202209;12055;Påg arb årets inv byggninv omb;Sweco Sverige AB;5567679849;17 186,00
Region Östergötland;Naturbruksgymnasiet Östergötland;433863458;202209;64649;Övrigt förbrukningsmaterial;Procurator Sverige AB;5560576554;3 443,40
Region Östergötland;Inköp service och logistik;433865444;202209;24150;Prel levskuld Lager;Lager;;54 106,35
Region Östergötland;Hälso- och sjukvården stab;433866525;202209;65220;Underhållmtrl med tekn utrustn;Philips AB;5561052613;16 465,03
Region Östergötland;Hälso- och sjukvården stab;433866525;202209;67990;Övriga transporter o frakter;Philips AB;5561052613;510
Region Östergötland;Regionfastigheter;433866552;202209;11810;Pågående nybyggn årets invest;ÅF-Infrastruktur AB;5561852103;5 187,00
Region Östergötland;Regionfastigheter;433866558;202209;11885;Pågående markanl årets invest;ÅF-Infrastruktur AB;5561852103;1 260,00
Region Östergötland;Diagnostikcentrum;433866572;202209;65990;Service/underh/rep övr inv/utr;Input Interiör Öst AB;5563195030;31 012,00
Region Östergötland;Hälso- och sjukvården stab;433866573;202209;64649;Övrigt förbrukningsmaterial;Input Interiör Öst AB;5563195030;2 658,00
Region Östergötland;Närsjukvården i östra Östergötland;433866584;202209;60390;Övrig fastighetsservice;Miljöbyggarna Entrepenad;5564411188;32 114,84
Region Östergötland;Hälso- och sjukvårdsnämnden;433866596;202209;57111;Hörselhjälpmedel;Sonova Nordic AB;5564413762;3 000,00
Region Östergötland;Diagnostikcentrum;433866625;202209;75110;Tjänster verksamhetsservice fast;L&T FM AB;5564732260;1 888,25
Region Östergötland;IT;433866641;202209;72342;Datakommunikation nyinstallat;L&T FM AB;5564732260;855
Region Östergötland;Diagnostikcentrum;433866646;202209;60390;Övrig fastighetsservice;L&T FM AB;5564732260;3 440,50
Region Östergötland;Regionfastigheter;433866689;202209;11710;Pågående till/ombyggn årets invest;L&T FM AB;5564732260;12 000,00
Region Östergötland;Diagnostikcentrum;433866716;202209;55955;Köpt tjänst tolk;Språkservice Sverige AB;5566291513;9 642,96
Region Östergötland;Primärvårdscentrum;433866765;202209;55955;Köpt tjänst tolk;Språkservice Sverige AB;5566291513;72 743,28
Region Östergötland;Psykiatricentrum;433866807;202209;55955;Köpt tjänst tolk;Språkservice Sverige AB;5566291513;1 564,53
Region Östergötland;Psykiatricentrum;433866807;202209;55955;Köpt tjänst tolk;Språkservice Sverige AB;5566291513;1 667,90
Region Östergötland;Psykiatricentrum;433866807;202209;55955;Köpt tjänst tolk;Språkservice Sverige AB;5566291513;1 042,00
Region Östergötland;Primärvårdscentrum;433866893;202209;55955;Köpt tjänst tolk;Språkservice Sverige AB;5566291513;6 562,14
Region Östergötland;Folktandvården;433866911;202209;73710;Larm och bevakning;Key Finder Sverige AB;5566386677;1 060,00
Region Östergötland;Sinnescentrum;433866934;202209;56329;Övrigt operationsmaterial;SECMA AB;5567197487;17 600,00
Region Östergötland;Psykiatricentrum;433866963;202209;46720;Uppvaktning blommor kondoleans;Filmstaden AB;5560351651;2 195,00
Region Östergötland;Regionfastigheter;433866970;202209;11810;Pågående nybyggn årets invest;White arkitekter AB;5561401018;4 957,00
Region Östergötland;Sinnescentrum;433866988;202209;56329;Övrigt operationsmaterial;Allkett AB;5562641737;4 340,00
Region Östergötland;Hälso- och sjukvården stab;433867052;202209;76965;Utbildning o konferens externa deltagare;Lingmerths Resebyrå AB;5560542747;388,26
Region Östergötland;Sinnescentrum;433867056;202209;68110;Biljetter och resor i Sverige;Lingmerths Resebyrå AB;5560542747;2 408,00
Region Östergötland;Sinnescentrum;433867056;202209;68310;Kost och logi Sverige;Lingmerths Resebyrå AB;5560542747;2 216,29
Region Östergötland;Regionledning;433867057;202209;68110;Biljetter och resor i Sverige;Lingmerths Resebyrå AB;5560542747;1 164,36
Region Östergötland;Hälso- och sjukvården stab;433867060;202209;68110;Biljetter och resor i Sverige;Lingmerths Resebyrå AB;5560542747;450,11
Region Östergötland;Hälso- och sjukvården stab;433867065;202209;76965;Utbildning o konferens externa deltagare;Lingmerths Resebyrå AB;5560542747;15 224,13
Region Östergötland;Primärvårdscentrum;433867070;202209;60390;Övrig fastighetsservice;Expandia Moduluthyrning AB;5563457687;21 886,00
Region Östergötland;IT;433867073;202209;64127;IT-utrustning;AVS i Sverige AB;5562739358;37 946,00
Region Östergötland;Regionfastigheter;433867130;202209;11810;Pågående nybyggn årets invest;BEST Marknad AB;5592324718;294 910,56
Region Östergötland;Regionfastigheter;433867138;202209;11885;Pågående markanl årets invest;Nordisk Mark och Anläggning AB;5591694939;759 648,00
Region Östergötland;Regionfastigheter;433867140;202209;60820;Konsulter fastighetsunderhåll;Nordisk Mark och Anläggning AB;5591694939;26 139,00
Region Östergötland;Centrum för kirurgi ortopedi och cancervård;433867422;202209;56339;Förbandsartiklar;Smith o Nephew;5561988345;3 600,00
Region Östergötland;Sinnescentrum;433867466;202209;56390;Övrigt medicinskt material;Care of Sweden;5565240578;5 192,00
Region Östergötland;Sinnescentrum;433867472;202209;56390;Övrigt medicinskt material;MeritMedical Systems AB;5567084115;625
Region Östergötland;Sinnescentrum;433867487;202209;56390;Övrigt medicinskt material;Spox medtech AB;5568644065;4 240,80
Region Östergötland;Sinnescentrum;433867488;202209;56390;Övrigt medicinskt material;Spox medtech AB;5568644065;11 018,40
Region Östergötland;Primärvårdscentrum;433867574;202209;26004;Avräkning läkemedel SV;ApoEx AB;5566334149;0,05
Region Östergötland;Primärvårdscentrum;433867574;202209;26004;Avräkning läkemedel SV;ApoEx AB;5566334149;75
Region Östergötland;Hjärtcentrum;433867582;202209;26004;Avräkning läkemedel SV;ApoEx AB;5566334149;19 750,80
Region Östergötland;Hjärtcentrum;433867582;202209;26004;Avräkning läkemedel SV;ApoEx AB;5566334149;75
Region Östergötland;Närsjukvården i västra Östergötland;433867583;202209;26004;Avräkning läkemedel SV;ApoEx AB;5566334149;527,12
Region Östergötland;Närsjukvården i västra Östergötland;433867583;202209;26004;Avräkning läkemedel SV;ApoEx AB;5566334149;225
Region Östergötland;Sinnescentrum;433867606;202209;56390;Övrigt medicinskt material;Mediplast AB;5561409011;1 632,90
Region Östergötland;Sinnescentrum;433867637;202209;56322;Sutur;Medtronic-Vingmed AB;5565255964;801,44
Region Östergötland;Sinnescentrum;433867639;202209;56322;Sutur;Medtronic-Vingmed AB;5565255964;400,72
Region Östergötland;Inköp service och logistik;433867641;202209;24150;Prel levskuld Lager;Lager;;14 680,00
Region Östergötland;Hjärtcentrum;433867643;202209;56356;Förbruknmaterial diagnostik;Abbott Rapid Diagnostic;5565794301;6 000,00
Region Östergötland;Diagnostikcentrum;433867676;202209;26004;Avräkning läkemedel SV;ApoEx AB;5566334149;2 490,00
Region Östergötland;Diagnostikcentrum;433867676;202209;26004;Avräkning läkemedel SV;ApoEx AB;5566334149;75
Region Östergötland;Hjärtcentrum;433867679;202209;26004;Avräkning läkemedel SV;ApoEx AB;5566334149;1 635,84
Region Östergötland;Hjärtcentrum;433867679;202209;26004;Avräkning läkemedel SV;ApoEx AB;5566334149;150
Region Östergötland;Diagnostikcentrum;433867752;202209;26004;Avräkning läkemedel SV;ApoEx AB;5566334149;19 515,00
Region Östergötland;Diagnostikcentrum;433867752;202209;26004;Avräkning läkemedel SV;ApoEx AB;5566334149;525
Region Östergötland;Diagnostikcentrum;433867752;202209;67990;Övriga transporter o frakter;ApoEx AB;5566334149;200
Region Östergötland;Närsjukvården i östra Östergötland;433867755;202209;26004;Avräkning läkemedel SV;ApoEx AB;5566334149;1 680,00
Region Östergötland;Närsjukvården i östra Östergötland;433867755;202209;26004;Avräkning läkemedel SV;ApoEx AB;5566334149;225
Region Östergötland;Folktandvården;433867792;202209;56290;Övrigt tandvårdsmaterial;Nordenta AB;5560494899;8 528,37
Region Östergötland;IT;433867794;202209;64649;Övrigt förbrukningsmaterial;Clas Ohlson AB;5560358672;1 016,80
Region Östergötland;Hälso- och sjukvården stab;433867884;202209;65220;Underhållmtrl med tekn utrustn;Philips AB;5561052613;1 129,78
Region Östergötland;Hälso- och sjukvården stab;433867884;202209;67990;Övriga transporter o frakter;Philips AB;5561052613;510
Region Östergötland;Diagnostikcentrum;433867905;202209;57292;Mtrl för ers/gåva till blodgiv;Fiskars Sweden AB;5562860477;1 782,00
Region Östergötland;Diagnostikcentrum;433867906;202209;57292;Mtrl för ers/gåva till blodgiv;Fiskars Sweden AB;5562860477;1 386,00
Region Östergötland;Diagnostikcentrum;433867907;202209;57292;Mtrl för ers/gåva till blodgiv;Fiskars Sweden AB;5562860477;3 168,00
Region Östergötland;Diagnostikcentrum;433867920;202209;14511;Kem lab förråd;Thermo Fisher Diagnostics AB;5564013794;2 852,05
Region Östergötland;Psykiatricentrum;433868035;202209;60390;Övrig fastighetsservice;L&T FM AB;5564732260;1 497,00
Region Östergötland;Centrum för kirurgi ortopedi och cancervård;433868057;202209;56752;Höftimplantat;Stryker AB;5565161352;16 270,00
Region Östergötland;Närsjukvården i centrala Östergötland;433868119;202209;64510;Kontorsmaterial;Office Depot Svenska AB;5560249558;634,45
Region Östergötland;Närsjukvården i östra Östergötland;433868292;202209;46220;Företagshälsovård;Feelgood Företagshälsovård AB;5561856385;1 946,00
Region Östergötland;Primärvårdscentrum;433868347;202209;46220;Företagshälsovård;Feelgood Företagshälsovård AB;5561856385;1 946,00
Region Östergötland;Närsjukvården i östra Östergötland;433868418;202209;68110;Biljetter och resor i Sverige;Lingmerths Resebyrå AB;5560542747;9 975,98
Region Östergötland;Regionledning;433868423;202209;68110;Biljetter och resor i Sverige;Lingmerths Resebyrå AB;5560542747;731,24
Region Östergötland;Diagnostikcentrum;433868427;202209;68110;Biljetter och resor i Sverige;Lingmerths Resebyrå AB;5560542747;837,96
Region Östergötland;Diagnostikcentrum;433868427;202209;68310;Kost och logi Sverige;Lingmerths Resebyrå AB;5560542747;1 348,43
Region Östergötland;Hälso- och sjukvården stab;433868431;202209;76965;Utbildning o konferens externa deltagare;Lingmerths Resebyrå AB;5560542747;8 880,36
Region Östergötland;Närsjukvården i östra Östergötland;433868462;202209;55520;Inhyrd sjuksköterska;;;102 942,70
Region Östergötland;Centrum för kirurgi ortopedi och cancervård;433868467;202209;55520;Inhyrd sjuksköterska;;;120 571,00
Region Östergötland;Centrum för kirurgi ortopedi och cancervård;433868468;202209;55520;Inhyrd sjuksköterska;;;133 696,25
Region Östergötland;Centrum för kirurgi ortopedi och cancervård;433868504;202209;55520;Inhyrd sjuksköterska;;;36 227,70
Region Östergötland;Inköp service och logistik;433868532;202209;24150;Prel levskuld Lager;Johnson & Johnson AB;5560632514;19 000,00
Region Östergötland;Primärvårdscentrum;433868554;202209;17105;Interimsbokade anläggningstillgångar;Olympus Sverige AB;5561892794;88 431,11
Region Östergötland;Inköp service och logistik;433868557;202209;24150;Prel levskuld Lager;Coloplast AB;5562075431;20 565,00
Region Östergötland;Sinnescentrum;433868560;202209;24150;Prel levskuld Lager;B.Braun Medical AB;5562515170;576
Region Östergötland;Medicincentrum;433868564;202209;56302;Infusion-tappnings-injektmtrl;B.Braun Medical AB;5562515170;3 520,00
Region Östergötland;Närsjukvården i östra Östergötland;433868565;202209;56302;Infusion-tappnings-injektmtrl;B.Braun Medical AB;5562515170;3 520,00
Region Östergötland;Närsjukvården i västra Östergötland;433868580;202209;64510;Kontorsmaterial;Atea Sverige AB;5564480282;1 709,50
Region Östergötland;Sinnescentrum;433868595;202209;56322;Sutur;Medtronic-Vingmed AB;5565255964;400,72
Region Östergötland;Primärvårdscentrum;433868600;202209;56339;Förbandsartiklar;Mölnlycke Health Care AB;5565475489;3 200,00
Region Östergötland;Inköp service och logistik;433868608;202209;24150;Prel levskuld Lager;Lager;;1 280,00
Region Östergötland;Inköp service och logistik;433868646;202209;24150;Prel levskuld Lager;Nestle Sverige AB;5565780722;41 932,80
Region Östergötland;Primärvårdscentrum;433868663;202209;26004;Avräkning läkemedel SV;ApoEx AB;5566334149;6 850,00
Region Östergötland;Primärvårdscentrum;433868667;202209;26004;Avräkning läkemedel SV;ApoEx AB;5566334149;7 260,30
Region Östergötland;Primärvårdscentrum;433868667;202209;26004;Avräkning läkemedel SV;ApoEx AB;5566334149;225
Region Östergötland;Centrum för kirurgi ortopedi och cancervård;433868668;202209;26004;Avräkning läkemedel SV;ApoEx AB;5566334149;73 902,00
Region Östergötland;Centrum för kirurgi ortopedi och cancervård;433868668;202209;26004;Avräkning läkemedel SV;ApoEx AB;5566334149;75
Region Östergötland;Närsjukvården i östra Östergötland;433868676;202209;26004;Avräkning läkemedel SV;ApoEx AB;5566334149;15 176,41
Region Östergötland;Närsjukvården i östra Östergötland;433868676;202209;26004;Avräkning läkemedel SV;ApoEx AB;5566334149;2 625,00
Region Östergötland;Diagnostikcentrum;433868678;202209;26004;Avräkning läkemedel SV;ApoEx AB;5566334149;56 840,76
Region Östergötland;Diagnostikcentrum;433868678;202209;26004;Avräkning läkemedel SV;ApoEx AB;5566334149;900
Region Östergötland;Primärvårdscentrum;433868692;202209;26004;Avräkning läkemedel SV;ApoEx AB;5566334149;385,6
Region Östergötland;Primärvårdscentrum;433868692;202209;26004;Avräkning läkemedel SV;ApoEx AB;5566334149;150
Region Östergötland;Primärvårdscentrum;433868697;202209;26004;Avräkning läkemedel SV;ApoEx AB;5566334149;16 115,06
Region Östergötland;Primärvårdscentrum;433868697;202209;26004;Avräkning läkemedel SV;ApoEx AB;5566334149;1 125,00
Region Östergötland;Primärvårdscentrum;433868698;202209;26004;Avräkning läkemedel SV;ApoEx AB;5566334149;4 734,05
Region Östergötland;Primärvårdscentrum;433868698;202209;26004;Avräkning läkemedel SV;ApoEx AB;5566334149;525
Region Östergötland;Primärvårdscentrum;433868703;202209;26004;Avräkning läkemedel SV;ApoEx AB;5566334149;204,96
Region Östergötland;Primärvårdscentrum;433868703;202209;26004;Avräkning läkemedel SV;ApoEx AB;5566334149;75
Region Östergötland;Barn- och kvinnocentrum;433868704;202209;26004;Avräkning läkemedel SV;ApoEx AB;5566334149;17 290,22
Region Östergötland;Barn- och kvinnocentrum;433868704;202209;26004;Avräkning läkemedel SV;ApoEx AB;5566334149;750
Region Östergötland;Hälso- och sjukvårdsnämnden;433868705;202209;26004;Avräkning läkemedel SV;ApoEx AB;5566334149;1 266,51
Region Östergötland;Hälso- och sjukvårdsnämnden;433868705;202209;26004;Avräkning läkemedel SV;ApoEx AB;5566334149;900
Region Östergötland;Hälso- och sjukvårdsnämnden;433868705;202209;67990;Övriga transporter o frakter;ApoEx AB;5566334149;200
Region Östergötland;Centrum för kirurgi ortopedi och cancervård;433868706;202209;26004;Avräkning läkemedel SV;ApoEx AB;5566334149;3 895,50
Region Östergötland;Hälso- och sjukvården stab;433868808;202209;65990;Service/underh/rep övr inv/utr;Histolab Products AB;5560986811;27 850,50
Region Östergötland;Hälso- och sjukvården stab;433868809;202209;65990;Service/underh/rep övr inv/utr;Histolab Products AB;5560986811;27 850,50
Region Östergötland;Sinnescentrum;433868947;202209;56390;Övrigt medicinskt material;Getinge Sverige AB;5565099511;13 864,00
Region Östergötland;Hjärtcentrum;433868954;202209;56759;Övriga implantat;Medtronic-Vingmed AB;5565255964;-2 106,00
Region Östergötland;Centrum för kirurgi ortopedi och cancervård;433868955;202209;56329;Övrigt operationsmaterial;Zimmer Biomet Sweden AB;5565335238;360
Region Östergötland;Centrum för kirurgi ortopedi och cancervård;433868956;202209;56759;Övriga implantat;Zimmer Biomet Sweden AB;5565335238;15 814,00
Region Östergötland;Folktandvården;433868960;202209;56290;Övrigt tandvårdsmaterial;Dentalmind AB;5566232483;533,6
Region Östergötland;Regionledning;433868983;202209;75420;Driftkostnad IT-system;SKL Kommentus AB;5560261900;25 000,00
Region Östergötland;Psykiatricentrum;433868996;202209;76710;Facklitteratur;Hogrefe Psykologiförlaget;5567118202;3 135,00
Region Östergötland;Diagnostikcentrum;433869211;202209;68110;Biljetter och resor i Sverige;Lingmerths Resebyrå AB;5560542747;782,19
Region Östergötland;Hjärtcentrum;433869212;202209;68410;Kost och logi utlandet;Lingmerths Resebyrå AB;5560542747;29 189,40
Region Östergötland;Hjärtcentrum;433869212;202209;68410;Kost och logi utlandet;Lingmerths Resebyrå AB;5560542747;19 377,60
Region Östergötland;Regionledning;433869214;202209;68110;Biljetter och resor i Sverige;Lingmerths Resebyrå AB;5560542747;5 400,25
Region Östergötland;Sinnescentrum;433869215;202209;68110;Biljetter och resor i Sverige;Lingmerths Resebyrå AB;5560542747;1 324,74
Region Östergötland;Sinnescentrum;433869215;202209;68310;Kost och logi Sverige;Lingmerths Resebyrå AB;5560542747;7 787,72
Region Östergötland;Hälso- och sjukvården stab;433869217;202209;76965;Utbildning o konferens externa deltagare;Lingmerths Resebyrå AB;5560542747;531,25
Region Östergötland;Hälso- och sjukvården stab;433869219;202209;76965;Utbildning o konferens externa deltagare;Lingmerths Resebyrå AB;5560542747;6 198,68
Region Östergötland;Medicincentrum;433869222;202209;68120;Biljetter och resor i utlandet;Lingmerths Resebyrå AB;5560542747;12 602,00
Region Östergötland;Medicincentrum;433869222;202209;68410;Kost och logi utlandet;Lingmerths Resebyrå AB;5560542747;22 418,00
Region Östergötland;Hälso- och sjukvården stab;433869224;202209;76965;Utbildning o konferens externa deltagare;Lingmerths Resebyrå AB;5560542747;10 136,04
Region Östergötland;Regionledning;433869226;202209;68310;Kost och logi Sverige;Lingmerths Resebyrå AB;5560542747;7 636,14
Region Östergötland;Centrum för kirurgi ortopedi och cancervård;433869227;202209;68110;Biljetter och resor i Sverige;Lingmerths Resebyrå AB;5560542747;3 176,00
Region Östergötland;Centrum för kirurgi ortopedi och cancervård;433869227;202209;68120;Biljetter och resor i utlandet;Lingmerths Resebyrå AB;5560542747;5 465,00
Region Östergötland;Centrum för kirurgi ortopedi och cancervård;433869227;202209;68410;Kost och logi utlandet;Lingmerths Resebyrå AB;5560542747;14 002,00
Region Östergötland;Regionledning;433869228;202209;68110;Biljetter och resor i Sverige;Lingmerths Resebyrå AB;5560542747;4 163,59
Region Östergötland;Regionledning;433869230;202209;68110;Biljetter och resor i Sverige;Lingmerths Resebyrå AB;5560542747;550,11
Region Östergötland;Naturbruksgymnasiet Östergötland;433869240;202209;64649;Övrigt förbrukningsmaterial;Cleanhouse Städmaterial & Hygien in Scandinavia AB;5568937329;6 260,76
Region Östergötland;Inköp service och logistik;433869272;202209;24150;Prel levskuld Lager;Smiths Medical Sverige AB;5565631537;3 724,00
Region Östergötland;Inköp service och logistik;433869287;202209;24150;Prel levskuld Lager;Smiths Medical Sverige AB;5565631537;11 340,00
Region Östergötland;Centrum för kirurgi ortopedi och cancervård;433869289;202209;56329;Övrigt operationsmaterial;Arthrex Sverige AB;5566593868;4 450,00
Region Östergötland;Folktandvården;433869298;202209;56290;Övrigt tandvårdsmaterial;Gama Dental AB;5560395161;28 435,91
Region Östergötland;Inköp service och logistik;433869300;202209;24150;Prel levskuld Lager;Procurator Sverige AB;5560576554;12 088,86
Region Östergötland;Inköp service och logistik;433869302;202209;24150;Prel levskuld Lager;Procurator Sverige AB;5560576554;569,65
Region Östergötland;Närsjukvården i östra Östergötland;433869344;202209;55395;Köpt ospec diagnostisk provanalys;Region Kalmar;2321000073;175,68
Region Östergötland;Primärvårdscentrum;433869449;202209;57135;Kompressionsbandage;Juzo Scandinavia AB;5568789316;1 339,00
Region Östergötland;Primärvårdscentrum;433869451;202209;57135;Kompressionsbandage;Juzo Scandinavia AB;5568789316;915,2
Region Östergötland;Sinnescentrum;433869503;202209;56759;Övriga implantat;Johnson & Johnson AB;5560632514;14 964,00
Region Östergötland;Inköp service och logistik;433869521;202209;24150;Prel levskuld Lager;Smith o Nephew;5561988345;8 823,25
Region Östergötland;Sinnescentrum;433869531;202209;56329;Övrigt operationsmaterial;B.Braun Medical AB;5562515170;659
Region Östergötland;Medicincentrum;433869537;202209;56302;Infusion-tappnings-injektmtrl;B.Braun Medical AB;5562515170;3 520,00
Region Östergötland;Inköp service och logistik;433869548;202209;24150;Prel levskuld Lager;Lager;;22 583,00
Region Östergötland;Diagnostikcentrum;433869549;202209;56390;Övrigt medicinskt material;Cook Sweden AB;5562461086;4 120,00
Region Östergötland;Närsjukvården i västra Östergötland;433869557;202209;64510;Kontorsmaterial;Atea Sverige AB;5564480282;3 244,75
Region Östergötland;Medicincentrum;433869583;202209;56339;Förbandsartiklar;MediRoyal Nordic AB;5566307970;212
Region Östergötland;Närsjukvården i östra Östergötland;433869587;202209;56390;Övrigt medicinskt material;Primed AB;5566536974;6 900,00
Region Östergötland;Medicincentrum;433869599;202209;56339;Förbandsartiklar;Catell AB;5567699920;470,4
Region Östergötland;Sinnescentrum;433869602;202209;56339;Förbandsartiklar;One Med Sverige AB;5567644140;586,19
Region Östergötland;Diagnostikcentrum;433869610;202209;56390;Övrigt medicinskt material;Ewimed Sweden AB;5566908207;6 400,00
Region Östergötland;Hjärtcentrum;433869619;202209;65220;Underhållmtrl med tekn utrustn;MM Anders konsult AB;5569331423;2 100,00
Region Östergötland;Hjärtcentrum;433869629;202209;26004;Avräkning läkemedel SV;ApoEx AB;5566334149;1 154,40
Region Östergötland;Hjärtcentrum;433869629;202209;26004;Avräkning läkemedel SV;ApoEx AB;5566334149;75
Region Östergötland;Närsjukvården i östra Östergötland;433869673;202209;26004;Avräkning läkemedel SV;ApoEx AB;5566334149;167
Region Östergötland;Närsjukvården i östra Östergötland;433869673;202209;26004;Avräkning läkemedel SV;ApoEx AB;5566334149;75
Region Östergötland;Sinnescentrum;433869693;202209;26004;Avräkning läkemedel SV;ApoEx AB;5566334149;3 338,00
Region Östergötland;Sinnescentrum;433869693;202209;26004;Avräkning läkemedel SV;ApoEx AB;5566334149;450
Region Östergötland;Naturbruksgymnasiet Östergötland;433869729;202209;57310;Rengörings och hygienmaterial;Cleanhouse Städmaterial & Hygien in Scandinavia AB;5568937329;195,25
Region Östergötland;Hjärtcentrum;433869762;202209;56301;Katetrar ledare;Abbott Medical Sweden AB;5564922317;1 900,00
Region Östergötland;Sinnescentrum;433869797;202209;56390;Övrigt medicinskt material;Smiths Medical Sverige AB;5565631537;895
Region Östergötland;Centrum för kirurgi ortopedi och cancervård;433869813;202209;46490;Övr kostn personalrekrytering;Human Performance Consulting Sverige AB;5567694855;16 000,00
Region Östergötland;Sinnescentrum;433869877;202209;56390;Övrigt medicinskt material;Smiths Medical Sverige AB;5565631537;1 029,00
Region Östergötland;Sinnescentrum;433869903;202209;56390;Övrigt medicinskt material;Mediq Sverige AB;5562522317;1 800,00
Region Östergötland;Diagnostikcentrum;433869907;202209;68120;Biljetter och resor i utlandet;Lingmerths Resebyrå AB;5560542747;-2 132,07
Region Östergötland;Psykiatricentrum;433869961;202209;55395;Köpt ospec diagnostisk provanalys;Region Jönköpings län;2321000057;1 962,00
Region Östergötland;Folktandvården;433870058;202209;53115;Köpt tandvård barn;Region Kalmar;2321000073;540
Region Östergötland;Regionfastigheter;433870190;202209;60820;Konsulter fastighetsunderhåll;Haga ROT Servcie i Norrköping AB;5565367959;116 304,00
Region Östergötland;Regionledning;433870243;202209;72510;Portokostnader;Strålfors Svenska AB;5561029843;1 012,00
Region Östergötland;Närsjukvården i västra Östergötland;433870296;202209;55990;Köpt verksamhetsnära tjänster övr;Capio Movement AB;5565920864;46 704,00
Region Östergötland;Närsjukvården i östra Östergötland;433870325;202209;46725;Personalvård;VERA Design & Interiör AB;5567195960;184
Region Östergötland;Psykiatricentrum;433870352;202209;55310;Köpt klin kemisk provanalys;Region Skåne;2321000255;353
Region Östergötland;Psykiatricentrum;433870354;202209;56118;Lt-subvention av läkemedel;Kronans Droghandel Apotek AB;5567872048;1 926,79
Region Östergötland;Inköp service och logistik;433870366;202209;24150;Prel levskuld Lager;Martin & Servera Restauranghandel AB;5591355549;4 625,56
Region Östergötland;Inköp service och logistik;433870367;202209;24150;Prel levskuld Lager;Martin & Servera Restauranghandel AB;5591355549;71,24
Region Östergötland;Inköp service och logistik;433870368;202209;24150;Prel levskuld Lager;Martin & Servera Restauranghandel AB;5591355549;553,55
Region Östergötland;Barn- och kvinnocentrum;433870388;202209;56390;Övrigt medicinskt material;ROSÖR AB;5593675027;1 800,00
Region Östergötland;Barn- och kvinnocentrum;433870388;202209;67990;Övriga transporter o frakter;ROSÖR AB;5593675027;165
Region Östergötland;Psykiatricentrum;433870391;202209;57291;Råvaror social träning;Willy:s Lågpris AB;5561632232;67,9
Region Östergötland;Psykiatricentrum;433870394;202209;56390;Övrigt medicinskt material;Qbtech AB;5566246996;5 220,00
Region Östergötland;Sinnescentrum;433870400;202209;56390;Övrigt medicinskt material;Iphonebutiken;5568184880;239,2
Region Östergötland;Sinnescentrum;433870400;202209;67990;Övriga transporter o frakter;Iphonebutiken;5568184880;79,2
Region Östergötland;Närsjukvården i centrala Östergötland;433870408;202209;76980;Övriga externa kostnader;Trafikverket;2021006297;6 500,00
Region Östergötland;Sinnescentrum;433870416;202209;64110;Inredning och textilier;Clas Ohlson AB;5560358672;697,47
Region Östergötland;Sinnescentrum;433870416;202209;67990;Övriga transporter o frakter;Clas Ohlson AB;5560358672;100,16
Region Östergötland;Sinnescentrum;433870445;202209;56329;Övrigt operationsmaterial;Gunnar Engstrand AB;5560485194;3 854,50
Region Östergötland;Regionfastigheter;433870446;202209;11710;Pågående till/ombyggn årets invest;WSP Sverige AB;5560574880;122 872,50
Region Östergötland;Barn- och kvinnocentrum;433870449;202209;56325;Laparoskopimaterial engångs;Johnson & Johnson AB;5560632514;15 240,00
Region Östergötland;Regionfastigheter;433870456;202209;12055;Påg arb årets inv byggninv omb;Carlstedt Arkitekter AB;5560700089;50 123,00
Region Östergötland;Regionfastigheter;433870458;202209;11810;Pågående nybyggn årets invest;Åby Eltjänst AB;5560876913;760 000,00
Region Östergötland;Regionfastigheter;433870459;202209;11710;Pågående till/ombyggn årets invest;Åby Eltjänst AB;5560876913;600 000,00
Region Östergötland;Regionfastigheter;433870460;202209;11710;Pågående till/ombyggn årets invest;Åby Eltjänst AB;5560876913;348 000,00
Region Östergötland;Regionfastigheter;433870480;202209;12065;Påg år förbudg ej egen fastighet;Hifab Byggprojektledaren AB;5561257881;1 006,50
Region Östergötland;Regionledning;433870496;202209;46721;25-årsgåva;Söderköpings Brunn;5561493288;2 016,79
Region Östergötland;Sinnescentrum;433870539;202209;65810;Tvätt;TVNO Textilservice AB;5561946152;85,8
Region Östergötland;Diagnostikcentrum;433870570;202209;65810;Tvätt;TVNO Textilservice AB;5561946152;7 508,10
Region Östergötland;Diagnostikcentrum;433870571;202209;65810;Tvätt;TVNO Textilservice AB;5561946152;496,05
Region Östergötland;Diagnostikcentrum;433870603;202209;65810;Tvätt;TVNO Textilservice AB;5561946152;10 945,24
Region Östergötland;Sinnescentrum;433870604;202209;65810;Tvätt;TVNO Textilservice AB;5561946152;4 454,46
Region Östergötland;Närsjukvården i västra Östergötland;433870643;202209;65810;Tvätt;TVNO Textilservice AB;5561946152;4 303,25
Region Östergötland;Närsjukvården i västra Östergötland;433870644;202209;65810;Tvätt;TVNO Textilservice AB;5561946152;10 280,74
Region Östergötland;Barn- och kvinnocentrum;433870651;202209;65810;Tvätt;TVNO Textilservice AB;5561946152;116,5
Region Östergötland;Närsjukvården i östra Östergötland;433870653;202209;65810;Tvätt;TVNO Textilservice AB;5561946152;4 334,66
Region Östergötland;Primärvårdscentrum;433870745;202209;65810;Tvätt;TVNO Textilservice AB;5561946152;2 593,71
Region Östergötland;Primärvårdscentrum;433870756;202209;65810;Tvätt;TVNO Textilservice AB;5561946152;4 219,15
Region Östergötland;Barn- och kvinnocentrum;433870802;202209;65810;Tvätt;TVNO Textilservice AB;5561946152;1 903,23
Region Östergötland;Regionfastigheter;433870805;202209;12055;Påg arb årets inv byggninv omb;Bravida Sverige AB;5561974188;150 000,00
Region Östergötland;Diagnostikcentrum;433870822;202209;57292;Mtrl för ers/gåva till blodgiv;Fiskars Sweden AB;5562860477;3 168,00
Region Östergötland;Diagnostikcentrum;433870826;202209;14511;Kem lab förråd;Histolab Products AB;5560986811;16 600,00
Region Östergötland;Diagnostikcentrum;433870859;202209;60895;Felavhjälpande underhåll;L&T FM AB;5564732260;5 881,50
Region Östergötland;Diagnostikcentrum;433870878;202209;65210;Service/underh/rep medtekn app;L&T FM AB;5564732260;594
Region Östergötland;Diagnostikcentrum;433870926;202209;56352;Flaskgas;L&T FM AB;5564732260;1 076,00
Region Östergötland;Hjärtcentrum;433870959;202209;56390;Övrigt medicinskt material;L&T FM AB;5564732260;500
Region Östergötland;Hjärtcentrum;433870960;202209;56390;Övrigt medicinskt material;L&T FM AB;5564732260;2 408,07
Region Östergötland;Diagnostikcentrum;433871031;202209;55355;Köpt klin genetisk provanalys;UNIVERSITETET I LUND;2021003211;119 000,00
Region Östergötland;Diagnostikcentrum;433871032;202209;55355;Köpt klin genetisk provanalys;UNIVERSITETET I LUND;2021003211;25 500,00
Region Östergötland;Diagnostikcentrum;433871033;202209;55355;Köpt klin genetisk provanalys;UNIVERSITETET I LUND;2021003211;203 000,00
Region Östergötland;Folktandvården;433871037;202209;56290;Övrigt tandvårdsmaterial;Plandent AB;5563471076;51,87
Region Östergötland;Inköp service och logistik;433871040;202209;24150;Prel levskuld Lager;Plandent AB;5563471076;1 380,00
Region Östergötland;Hälso- och sjukvården stab;433871046;202209;65220;Underhållmtrl med tekn utrustn;Ahlsell AB;5560129206;970
Region Östergötland;Naturbruksgymnasiet Östergötland;433871055;202209;75990;Övr div främm tjänst/verksamh;ANTICIMEX;5560329285;5 408,21
Region Östergötland;Finansförvaltningen;433871058;202209;25620;Varor från annat EG-land 25%;EU-företag utländska;;-22 965,00
Region Östergötland;Diagnostikcentrum;433871058;202209;56302;Infusion-tappnings-injektmtrl;EU-företag utländska;;91 860,00
Region Östergötland;Finansförvaltningen;433871061;202209;25620;Varor från annat EG-land 25%;EU-företag utländska;;-768
Region Östergötland;Diagnostikcentrum;433871061;202209;56390;Övrigt medicinskt material;EU-företag utländska;;3 072,00
Region Östergötland;Primärvårdscentrum;433871120;202209;46725;Personalvård;Lanemo Konditori & Bageri AB;5568307457;803,57
Region Östergötland;Medicincentrum;433871121;202209;46160;Utbildning o konferens medarb. Sverige skattefritt;Hexanova Events AB;5567726194;18 500,00
Region Östergötland;Naturbruksgymnasiet Östergötland;433871135;202209;57221;Konditori-/ kioskvaror;Pelican Rouge Coffee Solutions AB;5563072171;12 774,00
Region Östergötland;Regionledningskontoret stab;433871160;202209;46720;Uppvaktning blommor kondoleans;Voky AB;5568159072;278,2
Region Östergötland;Centrum för kirurgi ortopedi och cancervård;433871161;202209;46160;Utbildning o konferens medarb. Sverige skattefritt;Svensk Kirurgisk Förenings Verksamheter AB;5569930554;18 200,00
Region Östergötland;Centrum för kirurgi ortopedi och cancervård;433871162;202209;46160;Utbildning o konferens medarb. Sverige skattefritt;Svensk Kirurgisk Förenings Verksamheter AB;5569930554;18 200,00
Region Östergötland;Centrum för kirurgi ortopedi och cancervård;433871163;202209;46160;Utbildning o konferens medarb. Sverige skattefritt;Svensk Kirurgisk Förenings Verksamheter AB;5569930554;7 700,00
Region Östergötland;Centrum för kirurgi ortopedi och cancervård;433871164;202209;46160;Utbildning o konferens medarb. Sverige skattefritt;Svensk Kirurgisk Förenings Verksamheter AB;5569930554;6 700,00
Region Östergötland;Sinnescentrum;433871165;202209;46160;Utbildning o konferens medarb. Sverige skattefritt;Svensk Kirurgisk Förenings Verksamheter AB;5569930554;7 700,00
Region Östergötland;Regionfastigheter;433871169;202209;11885;Pågående markanl årets invest;Eitech Electro AB;5564690732;20 940,00
Region Östergötland;Närsjukvården i östra Östergötland;433871171;202209;55510;Inhyrd läkare;;;100 232,00
Region Östergötland;Diagnostikcentrum;433871182;202209;68410;Kost och logi utlandet;Lingmerths Resebyrå AB;5560542747;9 461,00
Region Östergötland;Regionledning;433871197;202209;68110;Biljetter och resor i Sverige;Lingmerths Resebyrå AB;5560542747;658,61
Region Östergötland;Regionledning;433871198;202209;68110;Biljetter och resor i Sverige;Lingmerths Resebyrå AB;5560542747;1 310,86
Region Östergötland;Regionfastigheter;433871205;202209;11810;Pågående nybyggn årets invest;Häv & Gräv i Östergötland AB;5566889829;1 000 000,00
Region Östergötland;Regionfastigheter;433871210;202209;11710;Pågående till/ombyggn årets invest;Zynka BIM AB;5569602864;6 615,00
Region Östergötland;Regionfastigheter;433871215;202209;12055;Påg arb årets inv byggninv omb;Zynka BIM AB;5569602864;1 744,00
Region Östergötland;Närsjukvården i västra Östergötland;433871237;202209;56390;Övrigt medicinskt material;Primetex AB;5562533819;10 071,25
Region Östergötland;Regionfastigheter;433871243;202209;11710;Pågående till/ombyggn årets invest;Sweco Sverige AB;5567679849;18 975,00
Region Östergötland;Regionfastigheter;433871244;202209;12055;Påg arb årets inv byggninv omb;Sweco Sverige AB;5567679849;35 475,00
Region Östergötland;Diagnostikcentrum;433871273;202209;46720;Uppvaktning blommor kondoleans;Swedsign AB;5560783465;116
Region Östergötland;Inköp service och logistik;433871289;202209;24150;Prel levskuld Lager;Philips AB;5561052613;25 900,00
Region Östergötland;Sinnescentrum;433871327;202209;56390;Övrigt medicinskt material;Instrumenta AB;5563761310;1 875,00
Region Östergötland;Inköp service och logistik;433871352;202209;24150;Prel levskuld Lager;Mölnlycke Health Care AB;5565475489;437 950,47
Region Östergötland;Inköp service och logistik;433871353;202209;24150;Prel levskuld Lager;Dolema AB;5566158373;2 600,00
Region Östergötland;Centrum för kirurgi ortopedi och cancervård;433871354;202209;57131;Ortoser;MediRoyal Nordic AB;5566307970;2 792,00
Region Östergötland;Inköp service och logistik;433871357;202209;24150;Prel levskuld Lager;ViTri Medical;5566776679;1 571,20
Region Östergötland;Inköp service och logistik;433871359;202209;24150;Prel levskuld Lager;Lager;;22 472,00
Region Östergötland;Primärvårdscentrum;433871372;202209;56339;Förbandsartiklar;One Med Sverige AB;5567644140;438,29
Region Östergötland;Inköp service och logistik;433871375;202209;56390;Övrigt medicinskt material;Mediq Sverige AB;5562522317;4 650,50
Region Östergötland;Medicincentrum;433871377;202209;56390;Övrigt medicinskt material;Corona Industrier AB;5562431022;2 900,00
Region Östergötland;Medicincentrum;433871377;202209;67990;Övriga transporter o frakter;Corona Industrier AB;5562431022;300
Region Östergötland;Sinnescentrum;433871396;202209;26004;Avräkning läkemedel SV;ApoEx AB;5566334149;11 200,00
Region Östergötland;Sinnescentrum;433871396;202209;26004;Avräkning läkemedel SV;ApoEx AB;5566334149;75
Region Östergötland;Sinnescentrum;433871397;202209;26004;Avräkning läkemedel SV;ApoEx AB;5566334149;950
Region Östergötland;Sinnescentrum;433871397;202209;26004;Avräkning läkemedel SV;ApoEx AB;5566334149;75
Region Östergötland;Primärvårdscentrum;433871399;202209;26004;Avräkning läkemedel SV;ApoEx AB;5566334149;2 496,70
Region Östergötland;Primärvårdscentrum;433871399;202209;26004;Avräkning läkemedel SV;ApoEx AB;5566334149;225
Region Östergötland;Närsjukvården i östra Östergötland;433871410;202209;26004;Avräkning läkemedel SV;ApoEx AB;5566334149;179
Region Östergötland;Närsjukvården i östra Östergötland;433871410;202209;26004;Avräkning läkemedel SV;ApoEx AB;5566334149;75
Region Östergötland;Hälso- och sjukvården stab;433871464;202209;64188;Övriga förbrukningsinventarier;System Technology;5562807890;3 550,00
Region Östergötland;Hälso- och sjukvården stab;433871464;202209;67990;Övriga transporter o frakter;System Technology;5562807890;274
Region Östergötland;Diagnostikcentrum;433871482;202209;65990;Service/underh/rep övr inv/utr;Jobmeal AB Norrköping;5565765954;1 534,50
Region Östergötland;Sinnescentrum;433871483;202209;44131;Försäkravg särskild p-försäkring;Folksam;5020061585;63 000,00
Region Östergötland;Regionledning;433871483;202209;44131;Försäkravg särskild p-försäkring;Folksam;5020061585;20 436,00
Region Östergötland;Sinnescentrum;433871496;202209;56390;Övrigt medicinskt material;PARTNERMED AB;5567605521;2 284,56
Region Östergötland;Inköp service och logistik;433871503;202209;24150;Prel levskuld Lager;Swereco AB;5592339807;17 272,05
Region Östergötland;Närsjukvården i östra Östergötland;433871634;202209;55395;Köpt ospec diagnostisk provanalys;Region Dalarna;2321000180;550
Region Östergötland;Regionfastigheter;433871688;202209;12055;Påg arb årets inv byggninv omb;Expandia Moduluthyrning AB;5563457687;693 000,00
Region Östergötland;IT;433871691;202209;64290;Programvara IT-system;Qnister AB;5591166433;2 499,58
Region Östergötland;Folktandvården;433871695;202209;56290;Övrigt tandvårdsmaterial;Nordenta AB;5560494899;3 827,50
Region Östergötland;Sinnescentrum;433871697;202209;56390;Övrigt medicinskt material;Clas Ohlson AB;5560358672;108,56
Region Östergötland;Sinnescentrum;433871697;202209;64110;Inredning och textilier;Clas Ohlson AB;5560358672;100,3
Region Östergötland;Regionfastigheter;433871715;202209;11710;Pågående till/ombyggn årets invest;WSP Sverige AB;5560574880;20 246,00
Region Östergötland;Regionfastigheter;433871720;202209;12055;Påg arb årets inv byggninv omb;AE:s Elektriska;5560585589;17 957,00
Region Östergötland;Regionfastigheter;433871721;202209;11710;Pågående till/ombyggn årets invest;AE:s Elektriska;5560585589;27 454,00
Region Östergötland;Regionfastigheter;433871722;202209;12055;Påg arb årets inv byggninv omb;AE:s Elektriska;5560585589;51 694,00
Region Östergötland;Regionfastigheter;433871741;202209;11810;Pågående nybyggn årets invest;Hifab Byggprojektledaren AB;5561257881;1 320,00
Region Östergötland;Regionfastigheter;433871761;202209;11885;Pågående markanl årets invest;ÅF-Infrastruktur AB;5561852103;8 160,00
Region Östergötland;Psykiatricentrum;433871770;202209;75112;Tjänster fastighetsutrustning;Bravida Sverige AB;5561974188;2 778,40
Region Östergötland;Hjärtcentrum;433871790;202209;64148;Kontorsutrustning;Input Interiör Öst AB;5563195030;1 429,00
Region Östergötland;Finansförvaltningen;433871815;202209;39910;Intäkter påminnelseavgifter/inkasso;Visma Financial Solutions;5564395670;-273 883,20
Region Östergötland;Finansförvaltningen;433871815;202209;75330;Inkassotjänster;Visma Financial Solutions;5564395670;273 883,20
Region Östergötland;Finansförvaltningen;433871815;202209;85990;Övriga finansiella kostnader;Visma Financial Solutions;5564395670;4 243,72
Region Östergötland;Hälso- och sjukvårdsnämnden;433871820;202209;57111;Hörselhjälpmedel;Sonova Nordic AB;5564413762;9
Region Östergötland;Psykiatricentrum;433871855;202209;46160;Utbildning o konferens medarb. Sverige skattefritt;IHPU;5564701125;15 500,00
Region Östergötland;Regionfastigheter;433871871;202209;75110;Tjänster verksamhetsservice fast;L&T FM AB;5564732260;207,5
Region Östergötland;Diagnostikcentrum;433871893;202209;56352;Flaskgas;L&T FM AB;5564732260;1 250,00
Region Östergötland;Diagnostikcentrum;433871910;202209;56352;Flaskgas;L&T FM AB;5564732260;574
Region Östergötland;Hälso- och sjukvården stab;433871937;202209;65220;Underhållmtrl med tekn utrustn;Hettich Labinstrument AB;5564826039;-1 124,75
Region Östergötland;Psykiatricentrum;433872053;202209;75420;Driftkostnad IT-system;Psykologernas W&W AB;5565925368;2 917,00
Region Östergötland;Hjärtcentrum;433872064;202209;46131;Utbildning och konferens utland skattefritt;Malmö Kongressbyrå AB;5566209986;2 645,10
Region Östergötland;Hjärtcentrum;433872064;202209;68410;Kost och logi utlandet;Malmö Kongressbyrå AB;5566209986;2 116,08
Region Östergötland;Närsjukvården i östra Östergötland;433872093;202209;66110;Driv- och smörjmedel fordon;Svensk Biogas i Linköping AB;5560348228;1 042,69
Region Östergötland;Naturbruksgymnasiet Östergötland;433872136;202209;64110;Inredning och textilier;CWS-boco Sweden AB;5562948777;1 864,20
Region Östergötland;Regionfastigheter;433872141;202209;11885;Pågående markanl årets invest;Assemblin Ventilation AB;5567289177;25 000,00
Region Östergötland;Hälso- och sjukvården stab;433872150;202209;64510;Kontorsmaterial;Axiell Sverige AB;5567398218;1 700,00
Region Östergötland;Hälso- och sjukvårdsnämnden;433872154;202209;57110;Synhjälpmedel;Synsam i Motala;5567687248;800
Region Östergötland;Hälso- och sjukvårdsnämnden;433872161;202209;57110;Synhjälpmedel;Synsam i Motala;5567687248;800
Region Östergötland;Hälso- och sjukvårdsnämnden;433872165;202209;57110;Synhjälpmedel;Synsam i Motala;5567687248;800
Region Östergötland;Hälso- och sjukvårdsnämnden;433872198;202209;57110;Synhjälpmedel;Synsam i Motala;5567687248;800
Region Östergötland;Folktandvården;433872350;202209;68110;Biljetter och resor i Sverige;Lingmerths Resebyrå AB;5560542747;2 971,36
Region Östergötland;IT;433872351;202209;68110;Biljetter och resor i Sverige;Lingmerths Resebyrå AB;5560542747;1 456,00
Region Östergötland;IT;433872351;202209;68120;Biljetter och resor i utlandet;Lingmerths Resebyrå AB;5560542747;2 185,00
Region Östergötland;IT;433872351;202209;68410;Kost och logi utlandet;Lingmerths Resebyrå AB;5560542747;21 089,72
Region Östergötland;Centrum för kirurgi ortopedi och cancervård;433872353;202209;68310;Kost och logi Sverige;Lingmerths Resebyrå AB;5560542747;12 194,16
Region Östergötland;Centrum för kirurgi ortopedi och cancervård;433872354;202209;68110;Biljetter och resor i Sverige;Lingmerths Resebyrå AB;5560542747;7 391,89
Region Östergötland;Folktandvården;433872356;202209;68310;Kost och logi Sverige;Lingmerths Resebyrå AB;5560542747;3 809,14
Region Östergötland;Centrum för kirurgi ortopedi och cancervård;433872364;202209;68110;Biljetter och resor i Sverige;Lingmerths Resebyrå AB;5560542747;1 494,02
Region Östergötland;Centrum för kirurgi ortopedi och cancervård;433872364;202209;68310;Kost och logi Sverige;Lingmerths Resebyrå AB;5560542747;2 475,42
Region Östergötland;Primärvårdscentrum;433872376;202209;60390;Övrig fastighetsservice;Fastighetssnabben AB;5561977033;7 869,65
Region Östergötland;Regionfastigheter;433872469;202209;11710;Pågående till/ombyggn årets invest;Sweco Sverige AB;5567679849;503,5
Region Östergötland;Hälso- och sjukvården stab;433872500;202209;57410;Undervisningsmaterial;Bokus AB;5564930492;7 547,20
Region Östergötland;Hälso- och sjukvården stab;433872502;202209;76710;Facklitteratur;Bokus AB;5564930492;491,51
Region Östergötland;Hälso- och sjukvården stab;433872503;202209;76710;Facklitteratur;Bokus AB;5564930492;694,34
Region Östergötland;Inköp service och logistik;433872509;202209;24150;Prel levskuld Lager;Lager;;6 480,00
Region Östergötland;Folktandvården;433872513;202209;56390;Övrigt medicinskt material;Dandent Ab;5561336487;65 592,80
Region Östergötland;Inköp service och logistik;433872527;202209;24150;Prel levskuld Lager;Smith o Nephew;5561988345;12 580,00
Region Östergötland;Sinnescentrum;433872537;202209;56390;Övrigt medicinskt material;B.Braun Medical AB;5562515170;1 318,00
Region Östergötland;Diagnostikcentrum;433872547;202209;56390;Övrigt medicinskt material;Cook Sweden AB;5562461086;11 790,50
Region Östergötland;Närsjukvården i västra Östergötland;433872551;202209;64510;Kontorsmaterial;Atea Sverige AB;5564480282;3 616,00
Region Östergötland;Hjärtcentrum;433872565;202209;56356;Förbruknmaterial diagnostik;Abbott Rapid Diagnostic;5565794301;3 000,00
Region Östergötland;Inköp service och logistik;433872567;202209;24150;Prel levskuld Lager;Dolema AB;5566158373;9 390,50
Region Östergötland;Sinnescentrum;433872571;202209;56390;Övrigt medicinskt material;P O Medica AB;5565476198;3 423,00
Region Östergötland;Barn- och kvinnocentrum;433872594;202209;56321;Narkos och sugmaterial;Fisher & Paykel Healthcare AB;5567298822;300
Region Östergötland;Centrum för kirurgi ortopedi och cancervård;433872596;202209;57131;Ortoser;Catell AB;5567699920;3 435,20
Region Östergötland;Närsjukvården i östra Östergötland;433872599;202209;57131;Ortoser;Catell AB;5567699920;1 559,20
Region Östergötland;Närsjukvården i centrala Östergötland;433872615;202209;64171;Sjukvårdsutrustning;Timik AB;5569686537;4 329,60
Region Östergötland;Hjärtcentrum;433872623;202209;26004;Avräkning läkemedel SV;ApoEx AB;5566334149;173,46
Region Östergötland;Hjärtcentrum;433872623;202209;26004;Avräkning läkemedel SV;ApoEx AB;5566334149;75
Region Östergötland;Hälso- och sjukvårdsnämnden;433872626;202209;26004;Avräkning läkemedel SV;ApoEx AB;5566334149;592,65
Region Östergötland;Hälso- och sjukvårdsnämnden;433872626;202209;26004;Avräkning läkemedel SV;ApoEx AB;5566334149;450
Region Östergötland;Hälso- och sjukvårdsnämnden;433872626;202209;67990;Övriga transporter o frakter;ApoEx AB;5566334149;200
Region Östergötland;Psykiatricentrum;433872633;202209;26004;Avräkning läkemedel SV;ApoEx AB;5566334149;68 619,51
Region Östergötland;Psykiatricentrum;433872633;202209;26004;Avräkning läkemedel SV;ApoEx AB;5566334149;750
Region Östergötland;Folktandvården;433872650;202209;26004;Avräkning läkemedel SV;ApoEx AB;5566334149;181,86
Region Östergötland;Folktandvården;433872650;202209;26004;Avräkning läkemedel SV;ApoEx AB;5566334149;150
Region Östergötland;Närsjukvården i centrala Östergötland;433872652;202209;26004;Avräkning läkemedel SV;ApoEx AB;5566334149;9 443,39
Region Östergötland;Närsjukvården i centrala Östergötland;433872652;202209;26004;Avräkning läkemedel SV;ApoEx AB;5566334149;1 050,00
Region Östergötland;Närsjukvården i centrala Östergötland;433872659;202209;26004;Avräkning läkemedel SV;ApoEx AB;5566334149;3 905,82
Region Östergötland;Närsjukvården i centrala Östergötland;433872659;202209;26004;Avräkning läkemedel SV;ApoEx AB;5566334149;1 575,00
Region Östergötland;Centrum för kirurgi ortopedi och cancervård;433872685;202209;26004;Avräkning läkemedel SV;ApoEx AB;5566334149;259 678,64
Region Östergötland;Centrum för kirurgi ortopedi och cancervård;433872685;202209;26004;Avräkning läkemedel SV;ApoEx AB;5566334149;600
Region Östergötland;Folktandvården;433872693;202209;26004;Avräkning läkemedel SV;ApoEx AB;5566334149;328,34
Region Östergötland;Folktandvården;433872693;202209;26004;Avräkning läkemedel SV;ApoEx AB;5566334149;150
Region Östergötland;Närsjukvården i centrala Östergötland;433872707;202209;26004;Avräkning läkemedel SV;ApoEx AB;5566334149;4 249,55
Region Östergötland;Närsjukvården i centrala Östergötland;433872707;202209;26004;Avräkning läkemedel SV;ApoEx AB;5566334149;1 350,00
Region Östergötland;Närsjukvården i centrala Östergötland;433872714;202209;26004;Avräkning läkemedel SV;ApoEx AB;5566334149;12 115,52
Region Östergötland;Närsjukvården i centrala Östergötland;433872714;202209;26004;Avräkning läkemedel SV;ApoEx AB;5566334149;2 100,00
Region Östergötland;Inköp service och logistik;433872721;202209;24150;Prel levskuld Lager;Lager;;53 432,64
Region Östergötland;Regionledning;433872728;202209;46160;Utbildning o konferens medarb. Sverige skattefritt;Lingmerths Resebyrå AB;5560542747;11 355,50
Region Östergötland;Finansförvaltningen;433872845;202209;25640;Tjänst från 3:e land 25%;Utländska företag;;-749,08
Region Östergötland;Diagnostikcentrum;433872845;202209;67930;Post- och material transport;Utländska företag;;2 996,22
Region Östergötland;Hjärtcentrum;433872857;202209;46160;Utbildning o konferens medarb. Sverige skattefritt;Athenas Sverige AB;5569321655;70 069,00
Region Östergötland;Regionfastigheter;433872869;202209;12055;Påg arb årets inv byggninv omb;Häv & Gräv i Östergötland AB;5566889829;652 306,50
Region Östergötland;Hälso- och sjukvården stab;433872936;202209;65220;Underhållmtrl med tekn utrustn;Ljungberg & Kögel AB;5564936598;710
Region Östergötland;Psykiatricentrum;433872941;202209;26030;Avräkning KUL;Egehem AB;5566381280;0
Region Östergötland;Hälso- och sjukvårdsnämnden;433872941;202209;26030;Avräkning KUL;Egehem AB;5566381280;97 960,00
Region Östergötland;Närsjukvården i östra Östergötland;433872957;202209;56110;Läkemedel rekvisition;Kronans Droghandel Apotek AB;5567872048;9 968,00
Region Östergötland;Regionfastigheter;433873008;202209;11810;Pågående nybyggn årets invest;WSP Sverige AB;5560574880;2 850,00
Region Östergötland;Regionfastigheter;433873013;202209;11710;Pågående till/ombyggn årets invest;WSP Sverige AB;5560574880;7 344,00
Region Östergötland;Primärvårdscentrum;433873029;202209;56390;Övrigt medicinskt material;Staples Sweden AB;5560913591;156
Region Östergötland;Psykiatricentrum;433873051;202209;55560;Inhyrd övrig personal;NORRKÖPINGS KOMMUN;2120000456;116 969,00
Region Östergötland;Sinnescentrum;433873053;202209;56329;Övrigt operationsmaterial;Mediplast AB;5561409011;1 392,00
Region Östergötland;Hälso- och sjukvårdsnämnden;433873097;202209;57111;Hörselhjälpmedel;Sonova Nordic AB;5564413762;24 240,00
Region Östergötland;Primärvårdscentrum;433873143;202209;56352;Flaskgas;L&T FM AB;5564732260;2 574,00
Region Östergötland;Diagnostikcentrum;433873147;202209;56352;Flaskgas;L&T FM AB;5564732260;560
Region Östergötland;Diagnostikcentrum;433873157;202209;56352;Flaskgas;L&T FM AB;5564732260;660
Region Östergötland;Diagnostikcentrum;433873158;202209;56309;Övr lab o provtagningsmaterial;Hettich Labinstrument AB;5564826039;1 124,75
Region Östergötland;Hjärtcentrum;433873166;202209;56759;Övriga implantat;Medtronic-Vingmed AB;5565255964;42 260,00
Region Östergötland;Diagnostikcentrum;433873202;202209;46160;Utbildning o konferens medarb. Sverige skattefritt;Malmö Kongressbyrå AB;5566209986;7 900,00
Region Östergötland;Diagnostikcentrum;433873203;202209;46160;Utbildning o konferens medarb. Sverige skattefritt;Malmö Kongressbyrå AB;5566209986;7 900,00
Region Östergötland;Diagnostikcentrum;433873204;202209;46160;Utbildning o konferens medarb. Sverige skattefritt;Malmö Kongressbyrå AB;5566209986;7 900,00
Region Östergötland;Diagnostikcentrum;433873205;202209;46160;Utbildning o konferens medarb. Sverige skattefritt;Malmö Kongressbyrå AB;5566209986;5 700,00
Region Östergötland;Diagnostikcentrum;433873206;202209;46160;Utbildning o konferens medarb. Sverige skattefritt;Malmö Kongressbyrå AB;5566209986;7 900,00
Region Östergötland;Diagnostikcentrum;433873207;202209;46160;Utbildning o konferens medarb. Sverige skattefritt;Malmö Kongressbyrå AB;5566209986;7 900,00
Region Östergötland;Diagnostikcentrum;433873208;202209;46160;Utbildning o konferens medarb. Sverige skattefritt;Malmö Kongressbyrå AB;5566209986;7 900,00
Region Östergötland;Diagnostikcentrum;433873210;202209;46160;Utbildning o konferens medarb. Sverige skattefritt;Malmö Kongressbyrå AB;5566209986;7 900,00
Region Östergötland;Regionfastigheter;433873225;202209;11710;Pågående till/ombyggn årets invest;Torpheimer i Linköping AB;5566584685;440 000,00
Region Östergötland;Regionfastigheter;433873226;202209;11810;Pågående nybyggn årets invest;Torpheimer i Linköping AB;5566584685;100 000,00
Region Östergötland;Regionfastigheter;433873227;202209;11710;Pågående till/ombyggn årets invest;Torpheimer i Linköping AB;5566584685;200 000,00
Region Östergötland;Inköp service och logistik;433873231;202209;24150;Prel levskuld Lager;Plandent AB;5563471076;27 129,82
Region Östergötland;Hjärtcentrum;433873248;202209;56301;Katetrar ledare;Abbott Medical Sweden AB;5564922317;39 000,00
Region Östergötland;Hjärtcentrum;433873249;202209;64127;IT-utrustning;Dustin AB;5566661012;9 138,50
Region Östergötland;Regionfastigheter;433873258;202209;60310;Restprodukt/avfall;Bokbackens Fastigheter AB;5563405538;2 666,00
Region Östergötland;Regionfastigheter;433873259;202209;60310;Restprodukt/avfall;Bokbackens Fastigheter AB;5563405538;1 142,00
Region Östergötland;Primärvårdscentrum;433873267;202209;56323;Kirurgiska instrument;Sundtorp Innovation AB;5567262901;2 346,50
Region Östergötland;Diagnostikcentrum;433873281;202209;67990;Övriga transporter o frakter;GDL Transport AB;5563465706;1 784,73
Region Östergötland;Diagnostikcentrum;433873298;202209;56309;Övr lab o provtagningsmaterial;BVI Sweden AB;5568657224;4 362,00
Region Östergötland;Naturbruksgymnasiet Östergötland;433873307;202209;64649;Övrigt förbrukningsmaterial;Jula Sverige AB;5569447856;1 803,94
Region Östergötland;Psykiatricentrum;433873309;202209;55510;Inhyrd läkare;;;97 619,00
Region Östergötland;Centrum för kirurgi ortopedi och cancervård;433873319;202209;46160;Utbildning o konferens medarb. Sverige skattefritt;Svensk Kirurgisk Förenings Verksamheter AB;5569930554;7 200,00
Region Östergötland;Närsjukvården i centrala Östergötland;433873325;202209;46160;Utbildning o konferens medarb. Sverige skattefritt;Meetagain Konferens AB;5567390009;9 350,00
Region Östergötland;Närsjukvården i centrala Östergötland;433873327;202209;46160;Utbildning o konferens medarb. Sverige skattefritt;Meetagain Konferens AB;5567390009;9 350,00
Region Östergötland;Närsjukvården i centrala Östergötland;433873328;202209;46160;Utbildning o konferens medarb. Sverige skattefritt;Meetagain Konferens AB;5567390009;9 350,00
Region Östergötland;Närsjukvården i centrala Östergötland;433873340;202209;46160;Utbildning o konferens medarb. Sverige skattefritt;Meetagain Konferens AB;5567390009;8 950,00
Region Östergötland;Närsjukvården i östra Östergötland;433873345;202209;46160;Utbildning o konferens medarb. Sverige skattefritt;Meetagain Konferens AB;5567390009;11 350,50
Region Östergötland;Sinnescentrum;433873353;202209;68120;Biljetter och resor i utlandet;Lingmerths Resebyrå AB;5560542747;3 603,00
Region Östergötland;Sinnescentrum;433873354;202209;68120;Biljetter och resor i utlandet;Lingmerths Resebyrå AB;5560542747;3 603,00
Region Östergötland;Regionfastigheter;433873356;202209;68110;Biljetter och resor i Sverige;Lingmerths Resebyrå AB;5560542747;1 097,28
Region Östergötland;Regionledning;433873359;202209;68110;Biljetter och resor i Sverige;Lingmerths Resebyrå AB;5560542747;670,87
Region Östergötland;Sinnescentrum;433873360;202209;68110;Biljetter och resor i Sverige;Lingmerths Resebyrå AB;5560542747;785,65
Region Östergötland;Sinnescentrum;433873361;202209;68110;Biljetter och resor i Sverige;Lingmerths Resebyrå AB;5560542747;748,23
Region Östergötland;Sinnescentrum;433873363;202209;68110;Biljetter och resor i Sverige;Lingmerths Resebyrå AB;5560542747;570,86
Region Östergötland;Sinnescentrum;433873369;202209;68110;Biljetter och resor i Sverige;Lingmerths Resebyrå AB;5560542747;836,49
Region Östergötland;Sinnescentrum;433873369;202209;68120;Biljetter och resor i utlandet;Lingmerths Resebyrå AB;5560542747;3 425,00
Region Östergötland;Sinnescentrum;433873370;202209;68110;Biljetter och resor i Sverige;Lingmerths Resebyrå AB;5560542747;1 100,00
Region Östergötland;Sinnescentrum;433873370;202209;68120;Biljetter och resor i utlandet;Lingmerths Resebyrå AB;5560542747;673
Region Östergötland;Sinnescentrum;433873370;202209;68410;Kost och logi utlandet;Lingmerths Resebyrå AB;5560542747;1 373,00
Region Östergötland;Hjärtcentrum;433873372;202209;68120;Biljetter och resor i utlandet;Lingmerths Resebyrå AB;5560542747;5 808,35
Region Östergötland;Regionledning;433873374;202209;68110;Biljetter och resor i Sverige;Lingmerths Resebyrå AB;5560542747;1 828,52
Region Östergötland;Regionledning;433873378;202209;68110;Biljetter och resor i Sverige;Lingmerths Resebyrå AB;5560542747;693,3
Region Östergötland;Hälso- och sjukvården stab;433873379;202209;76965;Utbildning o konferens externa deltagare;Lingmerths Resebyrå AB;5560542747;17 088,23
Region Östergötland;Regionfastigheter;433873381;202209;12055;Påg arb årets inv byggninv omb;Cad & Konstruktion i Motala AB;5566126677;1 470,00
Region Östergötland;Närsjukvården i östra Östergötland;433873383;202209;55520;Inhyrd sjuksköterska;;;41 811,50
Region Östergötland;Närsjukvården i östra Östergötland;433873384;202209;55520;Inhyrd sjuksköterska;;;87 904,50
Region Östergötland;Regionutvecklingsnämnden;433873398;202209;75490;Övriga IT-konsulttjänster;Bulta ek för;7696330690;5 400,00
Region Östergötland;Barn- och kvinnocentrum;433873401;202209;55395;Köpt ospec diagnostisk provanalys;Kry Primärvård AB;5566658364;226
Region Östergötland;Centrum för kirurgi ortopedi och cancervård;433873411;202209;55310;Köpt klin kemisk provanalys;Kry Primärvård AB;5566658364;113
Region Östergötland;IT;433873426;202209;46725;Personalvård;SB Stora Torget 5 AB;5592271950;2 083,02
Region Östergötland;IT;433873427;202209;46725;Personalvård;SB Stora Torget 5 AB;5592271950;1 837,49
Region Östergötland;Hälso- och sjukvården stab;433873439;202209;76710;Facklitteratur;Bokus AB;5564930492;874,53
Region Östergötland;Hälso- och sjukvården stab;433873440;202209;76710;Facklitteratur;Bokus AB;5564930492;622,65
Region Östergötland;Närsjukvården i västra Östergötland;433873451;202209;64710;Trycksaker (ej info och PR);Swedsign AB;5560783465;116
Region Östergötland;Sinnescentrum;433873455;202209;64710;Trycksaker (ej info och PR);Swedsign AB;5560783465;53
Region Östergötland;Sinnescentrum;433873480;202209;56390;Övrigt medicinskt material;Mediplast AB;5561409011;2 400,00
Region Östergötland;Primärvårdscentrum;433873513;202209;64510;Kontorsmaterial;Atea Sverige AB;5564480282;2 310,50
Region Östergötland;Centrum för kirurgi ortopedi och cancervård;433873532;202209;56339;Förbandsartiklar;Thuasne Begat AB;5565532859;695,25
Region Östergötland;Centrum för kirurgi ortopedi och cancervård;433873532;202209;67990;Övriga transporter o frakter;Thuasne Begat AB;5565532859;99
Region Östergötland;Barn- och kvinnocentrum;433873542;202209;64649;Övrigt förbrukningsmaterial;Lekolar AB;5566050646;51,57
Region Östergötland;Barn- och kvinnocentrum;433873542;202209;67990;Övriga transporter o frakter;Lekolar AB;5566050646;100
Region Östergötland;Inköp service och logistik;433873548;202209;24150;Prel levskuld Lager;Dolema AB;5566158373;9 900,00
Region Östergötland;Inköp service och logistik;433873549;202209;24150;Prel levskuld Lager;Dolema AB;5566158373;6 500,00
Region Östergötland;Primärvårdscentrum;433873558;202209;64510;Kontorsmaterial;Office Depot Svenska AB;5560249558;83,4
Region Östergötland;Primärvårdscentrum;433873558;202209;67990;Övriga transporter o frakter;Office Depot Svenska AB;5560249558;50
Region Östergötland;Centrum för kirurgi ortopedi och cancervård;433873566;202209;57131;Ortoser;Catell AB;5567699920;875,2
Region Östergötland;Hjärtcentrum;433873568;202209;56302;Infusion-tappnings-injektmtrl;One Med Sverige AB;5567644140;960
Region Östergötland;Diagnostikcentrum;433873575;202209;56390;Övrigt medicinskt material;Sono Sverige AB;5565957809;1 092,00
Region Östergötland;Diagnostikcentrum;433873575;202209;67990;Övriga transporter o frakter;Sono Sverige AB;5565957809;109,2
Region Östergötland;Diagnostikcentrum;433873575;202209;67990;Övriga transporter o frakter;Sono Sverige AB;5565957809;12,01
Region Östergötland;Diagnostikcentrum;433873579;202209;26004;Avräkning läkemedel SV;ApoEx AB;5566334149;9 488,12
Region Östergötland;Diagnostikcentrum;433873579;202209;26004;Avräkning läkemedel SV;ApoEx AB;5566334149;1 050,00
Region Östergötland;Diagnostikcentrum;433873579;202209;67990;Övriga transporter o frakter;ApoEx AB;5566334149;200
Region Östergötland;Centrum för kirurgi ortopedi och cancervård;433873602;202209;26004;Avräkning läkemedel SV;ApoEx AB;5566334149;17 497,83
Region Östergötland;Centrum för kirurgi ortopedi och cancervård;433873602;202209;26004;Avräkning läkemedel SV;ApoEx AB;5566334149;525
Region Östergötland;Diagnostikcentrum;433873620;202209;26004;Avräkning läkemedel SV;ApoEx AB;5566334149;388
Region Östergötland;Diagnostikcentrum;433873620;202209;26004;Avräkning läkemedel SV;ApoEx AB;5566334149;75
Region Östergötland;Diagnostikcentrum;433873620;202209;67990;Övriga transporter o frakter;ApoEx AB;5566334149;200
Region Östergötland;Primärvårdscentrum;433873640;202209;26004;Avräkning läkemedel SV;ApoEx AB;5566334149;38
Region Östergötland;Primärvårdscentrum;433873640;202209;26004;Avräkning läkemedel SV;ApoEx AB;5566334149;75
Region Östergötland;Primärvårdscentrum;433873641;202209;26004;Avräkning läkemedel SV;ApoEx AB;5566334149;912
Region Östergötland;Primärvårdscentrum;433873641;202209;26004;Avräkning läkemedel SV;ApoEx AB;5566334149;75
Region Östergötland;Primärvårdscentrum;433873645;202209;26004;Avräkning läkemedel SV;ApoEx AB;5566334149;1 140,00
Region Östergötland;Primärvårdscentrum;433873645;202209;26004;Avräkning läkemedel SV;ApoEx AB;5566334149;75
Region Östergötland;Närsjukvården i centrala Östergötland;433873646;202209;26004;Avräkning läkemedel SV;ApoEx AB;5566334149;73,6
Region Östergötland;Närsjukvården i centrala Östergötland;433873646;202209;26004;Avräkning läkemedel SV;ApoEx AB;5566334149;75
Region Östergötland;Närsjukvården i centrala Östergötland;433873655;202209;26004;Avräkning läkemedel SV;ApoEx AB;5566334149;184,14
Region Östergötland;Närsjukvården i centrala Östergötland;433873655;202209;26004;Avräkning läkemedel SV;ApoEx AB;5566334149;75
Region Östergötland;Hjärtcentrum;433873657;202209;26004;Avräkning läkemedel SV;ApoEx AB;5566334149;14 912,85
Region Östergötland;Hjärtcentrum;433873657;202209;26004;Avräkning läkemedel SV;ApoEx AB;5566334149;2 850,00
Region Östergötland;Primärvårdscentrum;433873663;202209;26004;Avräkning läkemedel SV;ApoEx AB;5566334149;1 448,00
Region Östergötland;Primärvårdscentrum;433873663;202209;26004;Avräkning läkemedel SV;ApoEx AB;5566334149;150
Region Östergötland;Hälso- och sjukvårdsnämnden;433873681;202209;26004;Avräkning läkemedel SV;ApoEx AB;5566334149;497,59
Region Östergötland;Hälso- och sjukvårdsnämnden;433873681;202209;26004;Avräkning läkemedel SV;ApoEx AB;5566334149;300
Region Östergötland;Hälso- och sjukvårdsnämnden;433873681;202209;67990;Övriga transporter o frakter;ApoEx AB;5566334149;200
Region Östergötland;Folktandvården;433873704;202209;53115;Köpt tandvård barn;GOTLANDS KOMMUN;2120000803;1 018,00
Region Östergötland;Finansförvaltningen;433873710;202209;25620;Varor från annat EG-land 25%;EU-företag utländska;;-4 972,50
Region Östergötland;Hjärtcentrum;433873710;202209;56390;Övrigt medicinskt material;EU-företag utländska;;19 890,01
Region Östergötland;Inköp service och logistik;433873724;202209;24150;Prel levskuld Lager;Lager;;12 432,09
Region Östergötland;Psykiatricentrum;433873742;202209;46725;Personalvård;Willy:s Lågpris AB;5561632232;25,36
Region Östergötland;Primärvårdscentrum;433873745;202209;46315;Intern representation;Lundbyhallen AB;5562696822;4 994,32
Region Östergötland;Barn- och kvinnocentrum;433873745;202209;46725;Personalvård;Lundbyhallen AB;5562696822;718,9
Region Östergötland;Närsjukvården i västra Östergötland;433873745;202209;46725;Personalvård;Lundbyhallen AB;5562696822;118,85
Region Östergötland;Psykiatricentrum;433873745;202209;46725;Personalvård;Lundbyhallen AB;5562696822;3 451,95
Region Östergötland;Psykiatricentrum;433873745;202209;46725;Personalvård;Lundbyhallen AB;5562696822;477,23
Region Östergötland;Centrum för kirurgi ortopedi och cancervård;433873758;202209;57114;Kosmetiska hjälpmed (peruk mm);Hårteknikerna Salong Gunv;5563495430;4 200,00
Region Östergötland;Centrum för kirurgi ortopedi och cancervård;433873759;202209;57114;Kosmetiska hjälpmed (peruk mm);Hårteknikerna Salong Gunv;5563495430;2 088,00
Region Östergötland;Centrum för kirurgi ortopedi och cancervård;433873762;202209;57114;Kosmetiska hjälpmed (peruk mm);Hårteknikerna Salong Gunv;5563495430;4 200,00
Region Östergötland;Centrum för kirurgi ortopedi och cancervård;433873763;202209;57114;Kosmetiska hjälpmed (peruk mm);Hårteknikerna Salong Gunv;5563495430;4 200,00
Region Östergötland;Centrum för kirurgi ortopedi och cancervård;433873772;202209;56390;Övrigt medicinskt material;NordiCare;5564934304;2 150,50
Region Östergötland;Närsjukvården i västra Östergötland;433873807;202209;55990;Köpt verksamhetsnära tjänster övr;Capio Movement AB;5565920864;26 688,00
Region Östergötland;Psykiatricentrum;433873832;202209;56118;Lt-subvention av läkemedel;Apotek Hjärtat Retail AB;5567738249;5 735,00
Region Östergötland;Medicincentrum;433873847;202209;64110;Inredning och textilier;Interflora Nya Blomsterhandeln;5568655145;156,8
Region Östergötland;Finansförvaltningen;433873850;202209;25620;Varor från annat EG-land 25%;EU-företag utländska;;-2 550,00
Region Östergötland;Sinnescentrum;433873850;202209;57111;Hörselhjälpmedel;EU-företag utländska;;10 200,00
Region Östergötland;Närsjukvården i västra Östergötland;433873855;202209;46160;Utbildning o konferens medarb. Sverige skattefritt;Meaconsulting;5569011199;3 495,41
Region Östergötland;Närsjukvården i västra Östergötland;433873855;202209;68310;Kost och logi Sverige;Meaconsulting;5569011199;2 232,00
Region Östergötland;Primärvårdscentrum;433873856;202209;57135;Kompressionsbandage;Juzo Scandinavia AB;5568789316;927,55
Region Östergötland;Folktandvården;433873872;202209;53210;Köpta tandtekntjänster vuxna;Torbjörns Team KB;9697303239;1 600,00
Region Östergötland;Inköp service och logistik;433873879;202209;24150;Prel levskuld Lager;Martin & Servera Restauranghandel AB;5591355549;1 395,28
Region Östergötland;Inköp service och logistik;433873888;202209;24150;Prel levskuld Lager;EU-företag utländska;;1 825,07
Region Östergötland;Finansförvaltningen;433873888;202209;25620;Varor från annat EG-land 25%;EU-företag utländska;;-456,28
Region Östergötland;Medicincentrum;433873896;202209;76720;Tidn tidskrift övr litteratur;Mediafy Magazines AB;5593707515;932,43
Region Östergötland;Närsjukvården i östra Östergötland;433873899;202209;57119;Hjälpmedel köp;Abbott Scandinavia;5560466137;3 052,00
Region Östergötland;Närsjukvården i östra Östergötland;433873900;202209;57119;Hjälpmedel köp;Abbott Scandinavia;5560466137;3 052,00
Region Östergötland;Närsjukvården i östra Östergötland;433873901;202209;57119;Hjälpmedel köp;Abbott Scandinavia;5560466137;3 052,00
Region Östergötland;Närsjukvården i östra Östergötland;433873902;202209;57119;Hjälpmedel köp;Abbott Scandinavia;5560466137;3 052,00
Region Östergötland;Närsjukvården i östra Östergötland;433873903;202209;57119;Hjälpmedel köp;Abbott Scandinavia;5560466137;3 052,00
Region Östergötland;Närsjukvården i östra Östergötland;433873904;202209;57119;Hjälpmedel köp;Abbott Scandinavia;5560466137;3 052,00
Region Östergötland;Närsjukvården i östra Östergötland;433873905;202209;57119;Hjälpmedel köp;Abbott Scandinavia;5560466137;3 430,00
Region Östergötland;Närsjukvården i östra Östergötland;433873906;202209;57119;Hjälpmedel köp;Abbott Scandinavia;5560466137;3 052,00
Region Östergötland;Närsjukvården i östra Östergötland;433873907;202209;57119;Hjälpmedel köp;Abbott Scandinavia;5560466137;3 052,00
Region Östergötland;Diagnostikcentrum;433873939;202209;55990;Köpt verksamhetsnära tjänster övr;Unilabs AB;5561187179;224 443,50
Region Östergötland;Diagnostikcentrum;433873940;202209;56309;Övr lab o provtagningsmaterial;VWR International AB;5561248153;5 092,50
Region Östergötland;Folktandvården;433873956;202209;60390;Övrig fastighetsservice;Bravida Sverige AB;5561974188;3 515,00
Region Östergötland;Centrum för kirurgi ortopedi och cancervård;433873958;202209;56759;Övriga implantat;Smith o Nephew;5561988345;1 780,20
Region Östergötland;Centrum för kirurgi ortopedi och cancervård;433873960;202209;56759;Övriga implantat;Smith o Nephew;5561988345;283,4
Region Östergötland;Diagnostikcentrum;433873983;202209;14511;Kem lab förråd;Thermo Fisher Diagnostics AB;5564013794;103 377,43
Region Östergötland;Närsjukvården i östra Östergötland;433874090;202209;60390;Övrig fastighetsservice;L&T FM AB;5564732260;3 360,00
Region Östergötland;Hälso- och sjukvården stab;433874117;202209;65220;Underhållmtrl med tekn utrustn;L&T FM AB;5564732260;762
Region Östergötland;Diagnostikcentrum;433874131;202209;56352;Flaskgas;L&T FM AB;5564732260;788
Region Östergötland;Diagnostikcentrum;433874144;202209;56352;Flaskgas;L&T FM AB;5564732260;730,5
Region Östergötland;Diagnostikcentrum;433874145;202209;56352;Flaskgas;L&T FM AB;5564732260;730
Region Östergötland;Diagnostikcentrum;433874146;202209;56352;Flaskgas;L&T FM AB;5564732260;560
Region Östergötland;Diagnostikcentrum;433874150;202209;56352;Flaskgas;L&T FM AB;5564732260;660
Region Östergötland;Centrum för kirurgi ortopedi och cancervård;433874162;202209;56352;Flaskgas;L&T FM AB;5564732260;2 648,00
Region Östergötland;Närsjukvården i östra Östergötland;433874186;202209;57119;Hjälpmedel köp;Medtronic-Vingmed AB;5565255964;4 500,00
Region Östergötland;Närsjukvården i östra Östergötland;433874187;202209;57119;Hjälpmedel köp;Medtronic-Vingmed AB;5565255964;4 500,00
Region Östergötland;Regionledning;433874195;202209;75420;Driftkostnad IT-system;Inera  AB;5565594230;40 612,70
Region Östergötland;Regionledning;433874196;202209;75420;Driftkostnad IT-system;Inera  AB;5565594230;719 158,39
Region Östergötland;Regionledning;433874197;202209;75420;Driftkostnad IT-system;Inera  AB;5565594230;787 782,94
Region Östergötland;Regionledning;433874198;202209;75420;Driftkostnad IT-system;Inera  AB;5565594230;895 851,17
Region Östergötland;Regionledning;433874199;202209;75420;Driftkostnad IT-system;Inera  AB;5565594230;87 349,06
Region Östergötland;Regionledning;433874200;202209;75420;Driftkostnad IT-system;Inera  AB;5565594230;93 656,85
Region Östergötland;Regionledning;433874201;202209;75420;Driftkostnad IT-system;Inera  AB;5565594230;44 535,71
Region Östergötland;Regionledning;433874202;202209;75420;Driftkostnad IT-system;Inera  AB;5565594230;57 338,88
Region Östergötland;Regionledning;433874203;202209;75420;Driftkostnad IT-system;Inera  AB;5565594230;37 869,96
Region Östergötland;Regionledning;433874204;202209;75420;Driftkostnad IT-system;Inera  AB;5565594230;259 514,36
Region Östergötland;Regionledning;433874205;202209;75420;Driftkostnad IT-system;Inera  AB;5565594230;896 941,52
Region Östergötland;Regionledning;433874206;202209;75420;Driftkostnad IT-system;Inera  AB;5565594230;69 422,65
Region Östergötland;Regionledning;433874207;202209;75420;Driftkostnad IT-system;Inera  AB;5565594230;472 312,31
Region Östergötland;Regionledning;433874208;202209;75420;Driftkostnad IT-system;Inera  AB;5565594230;107 955,82
Region Östergötland;Regionledning;433874209;202209;75420;Driftkostnad IT-system;Inera  AB;5565594230;158 426,62
Region Östergötland;Regionledning;433874210;202209;75420;Driftkostnad IT-system;Inera  AB;5565594230;335 321,73
Region Östergötland;Regionledning;433874211;202209;75420;Driftkostnad IT-system;Inera  AB;5565594230;65 938,03
Region Östergötland;Regionledning;433874212;202209;75420;Driftkostnad IT-system;Inera  AB;5565594230;20 941,45
Region Östergötland;Regionledning;433874213;202209;75420;Driftkostnad IT-system;Inera  AB;5565594230;178 154,07
Region Östergötland;Regionledning;433874214;202209;75420;Driftkostnad IT-system;Inera  AB;5565594230;364 199,13
Region Östergötland;Regionledning;433874215;202209;75420;Driftkostnad IT-system;Inera  AB;5565594230;62 010,08
Region Östergötland;Regionledning;433874216;202209;75420;Driftkostnad IT-system;Inera  AB;5565594230;43 152,13
Region Östergötland;Regionledning;433874217;202209;75420;Driftkostnad IT-system;Inera  AB;5565594230;25 617,59
Region Östergötland;Regionledning;433874218;202209;75420;Driftkostnad IT-system;Inera  AB;5565594230;17 581,54
Region Östergötland;Regionledning;433874219;202209;75420;Driftkostnad IT-system;Inera  AB;5565594230;402 743,53
Region Östergötland;Regionledning;433874220;202209;75420;Driftkostnad IT-system;Inera  AB;5565594230;118 072,46
Region Östergötland;Regionledning;433874221;202209;75420;Driftkostnad IT-system;Inera  AB;5565594230;92 196,33
Region Östergötland;Regionledning;433874222;202209;75420;Driftkostnad IT-system;Inera  AB;5565594230;15 327,58
Region Östergötland;Regionledning;433874223;202209;75420;Driftkostnad IT-system;Inera  AB;5565594230;418 143,31
Region Östergötland;Regionledning;433874224;202209;75420;Driftkostnad IT-system;Inera  AB;5565594230;176 940,08
Region Östergötland;Regionledning;433874225;202209;75420;Driftkostnad IT-system;Inera  AB;5565594230;17 581,54
Region Östergötland;Regionledning;433874226;202209;75420;Driftkostnad IT-system;Inera  AB;5565594230;179 463,48
Region Östergötland;Regionledning;433874227;202209;75420;Driftkostnad IT-system;Inera  AB;5565594230;239 382,24
Region Östergötland;Regionledning;433874228;202209;75420;Driftkostnad IT-system;Inera  AB;5565594230;84 045,04
Region Östergötland;Regionledning;433874229;202209;75420;Driftkostnad IT-system;Inera  AB;5565594230;51 358,82
Region Östergötland;Regionledning;433874230;202209;75420;Driftkostnad IT-system;Inera  AB;5565594230;329 618,44
Region Östergötland;Regionledning;433874231;202209;75420;Driftkostnad IT-system;Inera  AB;5565594230;137 890,97
Region Östergötland;Regionledning;433874232;202209;75420;Driftkostnad IT-system;Inera  AB;5565594230;75 065,02
Region Östergötland;Regionledning;433874233;202209;75420;Driftkostnad IT-system;Inera  AB;5565594230;40 090,62
Region Östergötland;Regionledning;433874234;202209;75420;Driftkostnad IT-system;Inera  AB;5565594230;113 767,26
Region Östergötland;Diagnostikcentrum;433874258;202209;46160;Utbildning o konferens medarb. Sverige skattefritt;Malmö Kongressbyrå AB;5566209986;7 900,00
Region Östergötland;Diagnostikcentrum;433874260;202209;46160;Utbildning o konferens medarb. Sverige skattefritt;Malmö Kongressbyrå AB;5566209986;7 900,00
Region Östergötland;Diagnostikcentrum;433874261;202209;46160;Utbildning o konferens medarb. Sverige skattefritt;Malmö Kongressbyrå AB;5566209986;7 900,00
Region Östergötland;Barn- och kvinnocentrum;433874279;202209;28520;Gåvomedel;Creativ Company Sverige AB;5566720875;4 330,75
Region Östergötland;Centrum för kirurgi ortopedi och cancervård;433874286;202209;56290;Övrigt tandvårdsmaterial;Plandent AB;5563471076;68,4
Region Östergötland;Inköp service och logistik;433874287;202209;24150;Prel levskuld Lager;Plandent AB;5563471076;8 204,73
Region Östergötland;Diagnostikcentrum;433874304;202209;57292;Mtrl för ers/gåva till blodgiv;Filmstaden AB;5560351651;37 675,00
Region Östergötland;Hjärtcentrum;433874308;202209;56759;Övriga implantat;Abbott Medical Sweden AB;5564922317;3 850,00
Region Östergötland;Hälso- och sjukvården stab;433874311;202209;65220;Underhållmtrl med tekn utrustn;Fisher & Paykel Healthcare AB;5567298822;2 970,00
Region Östergötland;Folktandvården;433874315;202209;56290;Övrigt tandvårdsmaterial;Dental AB;5560050048;2 506,08
Region Östergötland;Inköp service och logistik;433874317;202209;24150;Prel levskuld Lager;EU-företag utländska;;24 960,00
Region Östergötland;Finansförvaltningen;433874317;202209;25620;Varor från annat EG-land 25%;EU-företag utländska;;-6 240,00
Region Östergötland;Naturbruksgymnasiet Östergötland;433874357;202209;57259;Trädgårdsprodukter;Beijer Byggmaterial;5560125220;483,79
Region Östergötland;Hjärtcentrum;433874360;202209;56321;Narkos och sugmaterial;JoinTech;5568009558;5 500,00
Region Östergötland;Centrum för kirurgi ortopedi och cancervård;433874368;202209;56759;Övriga implantat;Swemac orthopaedics;5565494571;4 450,00
Region Östergötland;Diagnostikcentrum;433874384;202209;55990;Köpt verksamhetsnära tjänster övr;Universitetet i Linköping;2021003096;358 231,00
Region Östergötland;Diagnostikcentrum;433874385;202209;75990;Övr div främm tjänst/verksamh;Universitetet i Linköping;2021003096;138 889,00
Region Östergötland;Diagnostikcentrum;433874387;202209;55990;Köpt verksamhetsnära tjänster övr;Universitetet i Linköping;2021003096;5 966,25
Region Östergötland;Diagnostikcentrum;433874388;202209;75990;Övr div främm tjänst/verksamh;Universitetet i Linköping;2021003096;1 040,50
Region Östergötland;Centrum för kirurgi ortopedi och cancervård;433874391;202209;55265;Köpt magnetkameraundersökning;Universitetet i Linköping;2021003096;5 490,00
Region Östergötland;Hälso- och sjukvårdsnämnden;433874395;202209;55910;Köpt ambulanstjänst;Kollektivtrafikmyndigheten i Västernorrlands län;2220002923;191
Region Östergötland;Regionfastigheter;433874406;202209;11710;Pågående till/ombyggn årets invest;Assemblin Ventilation AB;5567289177;40 000,00
Region Östergötland;Naturbruksgymnasiet Östergötland;433874410;202209;64649;Övrigt förbrukningsmaterial;Jula Sverige AB;5569447856;497,16
Region Östergötland;Psykiatricentrum;433874411;202209;55510;Inhyrd läkare;;;29 535,00
Region Östergötland;Psykiatricentrum;433874413;202209;55510;Inhyrd läkare;;;252 600,00
Region Östergötland;Psykiatricentrum;433874415;202209;55510;Inhyrd läkare;;;210 710,50
Region Östergötland;Sinnescentrum;433874660;202209;46720;Uppvaktning blommor kondoleans;Voky AB;5568159072;409
Region Östergötland;Diagnostikcentrum;433874661;202209;64649;Övrigt förbrukningsmaterial;Voky AB;5568159072;970
Region Östergötland;Centrum för kirurgi ortopedi och cancervård;433874664;202209;46160;Utbildning o konferens medarb. Sverige skattefritt;Svensk Kirurgisk Förenings Verksamheter AB;5569930554;16 000,00
Region Östergötland;Sinnescentrum;433874673;202209;68110;Biljetter och resor i Sverige;Lingmerths Resebyrå AB;5560542747;683,24
Region Östergötland;Sinnescentrum;433874673;202209;68310;Kost och logi Sverige;Lingmerths Resebyrå AB;5560542747;1 141,28
Region Östergötland;Sinnescentrum;433874674;202209;68110;Biljetter och resor i Sverige;Lingmerths Resebyrå AB;5560542747;639,85
Region Östergötland;Sinnescentrum;433874674;202209;68310;Kost och logi Sverige;Lingmerths Resebyrå AB;5560542747;2 362,71
Region Östergötland;Sinnescentrum;433874676;202209;68110;Biljetter och resor i Sverige;Lingmerths Resebyrå AB;5560542747;1 187,01
Region Östergötland;Sinnescentrum;433874676;202209;68310;Kost och logi Sverige;Lingmerths Resebyrå AB;5560542747;1 730,58
Region Östergötland;Medicincentrum;433874677;202209;68310;Kost och logi Sverige;Lingmerths Resebyrå AB;5560542747;4 479,68
Region Östergötland;Medicincentrum;433874681;202209;68110;Biljetter och resor i Sverige;Lingmerths Resebyrå AB;5560542747;2 001,29
Region Östergötland;Sinnescentrum;433874683;202209;68110;Biljetter och resor i Sverige;Lingmerths Resebyrå AB;5560542747;870,87
Region Östergötland;Sinnescentrum;433874683;202209;68310;Kost och logi Sverige;Lingmerths Resebyrå AB;5560542747;5 577,00
Region Östergötland;Sinnescentrum;433874684;202209;68110;Biljetter och resor i Sverige;Lingmerths Resebyrå AB;5560542747;2 224,96
Region Östergötland;Sinnescentrum;433874684;202209;68310;Kost och logi Sverige;Lingmerths Resebyrå AB;5560542747;13 220,08
Region Östergötland;Centrum för kirurgi ortopedi och cancervård;433874685;202209;68110;Biljetter och resor i Sverige;Lingmerths Resebyrå AB;5560542747;2 525,58
Region Östergötland;Sinnescentrum;433874686;202209;68110;Biljetter och resor i Sverige;Lingmerths Resebyrå AB;5560542747;148
Region Östergötland;Diagnostikcentrum;433874687;202209;68310;Kost och logi Sverige;Lingmerths Resebyrå AB;5560542747;2 818,07
Region Östergötland;Centrum för kirurgi ortopedi och cancervård;433874688;202209;68110;Biljetter och resor i Sverige;Lingmerths Resebyrå AB;5560542747;778,83
Region Östergötland;Folktandvården;433874694;202209;68310;Kost och logi Sverige;Lingmerths Resebyrå AB;5560542747;6 542,20
Region Östergötland;Folktandvården;433874694;202209;68310;Kost och logi Sverige;Lingmerths Resebyrå AB;5560542747;13 494,60
Region Östergötland;Hjärtcentrum;433874695;202209;68310;Kost och logi Sverige;Lingmerths Resebyrå AB;5560542747;5 475,42
Region Östergötland;Psykiatricentrum;433874700;202209;68110;Biljetter och resor i Sverige;Lingmerths Resebyrå AB;5560542747;72,53
Region Östergötland;Psykiatricentrum;433874703;202209;68110;Biljetter och resor i Sverige;Lingmerths Resebyrå AB;5560542747;716,15
Region Östergötland;Sinnescentrum;433874711;202209;68120;Biljetter och resor i utlandet;Lingmerths Resebyrå AB;5560542747;4 887,00
Region Östergötland;Sinnescentrum;433874711;202209;68410;Kost och logi utlandet;Lingmerths Resebyrå AB;5560542747;7 232,00
Region Östergötland;Sinnescentrum;433874712;202209;68310;Kost och logi Sverige;Lingmerths Resebyrå AB;5560542747;7 353,79
Region Östergötland;Barn- och kvinnocentrum;433874714;202209;68110;Biljetter och resor i Sverige;Lingmerths Resebyrå AB;5560542747;5 415,43
Region Östergötland;Regionfastigheter;433874721;202209;12055;Påg arb årets inv byggninv omb;Cedervall arkitekter;5561845073;37 635,50
Region Östergötland;Diagnostikcentrum;433874722;202209;56303;Reagensmaterial;XboXLab AB;5569453136;1 769,00
Region Östergötland;Naturbruksgymnasiet Östergötland;433874744;202209;57210;Livsmedel råvaror;Martin & Servera Restauranghandel AB;5591355549;12 628,93
Region Östergötland;Naturbruksgymnasiet Östergötland;433874744;202209;57221;Konditori-/ kioskvaror;Martin & Servera Restauranghandel AB;5591355549;5 762,89
Region Östergötland;Naturbruksgymnasiet Östergötland;433874744;202209;57229;Övriga färdiglagade livsmedel;Martin & Servera Restauranghandel AB;5591355549;1 159,57
Region Östergötland;Naturbruksgymnasiet Östergötland;433874744;202209;64810;Skydds-/arbkläder o skyddsmtrl;Martin & Servera Restauranghandel AB;5591355549;518
Region Östergötland;Regionfastigheter;433874746;202209;11710;Pågående till/ombyggn årets invest;Bygg GG i Östergötland AB;5569068330;1 300 000,00
Region Östergötland;Diagnostikcentrum;433874753;202209;14511;Kem lab förråd;Hamilton Nordic AB;5568721244;31 451,18
Region Östergötland;Diagnostikcentrum;433874753;202209;57930;Omkostnader vid inköp;Hamilton Nordic AB;5568721244;550
Region Östergötland;Regionfastigheter;433874760;202209;60110;Hyra lokaler;Norrköpingsporten Åby AB;5590636758;1 638,00
Region Östergötland;Regionfastigheter;433874764;202209;11710;Pågående till/ombyggn årets invest;Sweco Sverige AB;5567679849;6 345,00
Region Östergötland;Regionfastigheter;433874765;202209;11710;Pågående till/ombyggn årets invest;Sweco Sverige AB;5567679849;34 830,00
Region Östergötland;Regionfastigheter;433874768;202209;11885;Pågående markanl årets invest;Sweco Sverige AB;5567679849;1 494,00
Region Östergötland;Sinnescentrum;433874779;202209;56390;Övrigt medicinskt material;Legeakademiet Aps;5020846191;212
Region Östergötland;Sinnescentrum;433874779;202209;67990;Övriga transporter o frakter;Legeakademiet Aps;5020846191;89
Region Östergötland;Inköp service och logistik;433874785;202209;24150;Prel levskuld Lager;Gama Dental AB;5560395161;2 804,75
Region Östergötland;Inköp service och logistik;433874787;202209;24150;Prel levskuld Lager;Gama Dental AB;5560395161;2 536,80
Region Östergötland;Diagnostikcentrum;433874800;202209;56309;Övr lab o provtagningsmaterial;Sarstedt AB;5561857565;34,37
Region Östergötland;Inköp service och logistik;433874802;202209;56390;Övrigt medicinskt material;Kungshusen Medicinska AB;5561960641;17 500,00
Region Östergötland;Centrum för kirurgi ortopedi och cancervård;433874811;202209;56390;Övrigt medicinskt material;Liko AB;5562026004;45 438,00
Region Östergötland;Sinnescentrum;433874816;202209;56329;Övrigt operationsmaterial;B.Braun Medical AB;5562515170;1 977,00
Region Östergötland;Närsjukvården i östra Östergötland;433874819;202209;56302;Infusion-tappnings-injektmtrl;B.Braun Medical AB;5562515170;3 520,00
Region Östergötland;Barn- och kvinnocentrum;433874825;202209;56329;Övrigt operationsmaterial;Hartmann - SCANDICARE AB;5563669828;731,86
Region Östergötland;Inköp service och logistik;433874830;202209;24150;Prel levskuld Lager;INTRAMEDIC;5564413853;1 700,00
Region Östergötland;Inköp service och logistik;433874830;202209;67990;Övriga transporter o frakter;INTRAMEDIC;5564413853;450
Region Östergötland;Primärvårdscentrum;433874835;202209;64510;Kontorsmaterial;Atea Sverige AB;5564480282;718,33
Region Östergötland;Närsjukvården i västra Östergötland;433874840;202209;57131;Ortoser;Össur Nordic AB;5564834173;2 110,50
Region Östergötland;Sinnescentrum;433874849;202209;56323;Kirurgiska instrument;Medtronic-Vingmed AB;5565255964;18 298,80
Region Östergötland;Inköp service och logistik;433874850;202209;24150;Prel levskuld Lager;Medtronic-Vingmed AB;5565255964;6 510,00
Region Östergötland;Centrum för kirurgi ortopedi och cancervård;433874866;202209;57119;Hjälpmedel köp;RESMED Egnell AB;5565822920;27 712,00
Region Östergötland;Sinnescentrum;433874867;202209;57140;Förbrukningshjälpmedel;RESMED Egnell AB;5565822920;20 120,00
Region Östergötland;Sinnescentrum;433874885;202209;56390;Övrigt medicinskt material;3M;5560219684;7 301,40
Region Östergötland;Psykiatricentrum;433874888;202209;56390;Övrigt medicinskt material;Office Depot Svenska AB;5560249558;7 359,25
Region Östergötland;Hjärtcentrum;433874891;202209;56301;Katetrar ledare;Abbott Medical Sweden AB;5564922317;12 500,00
Region Östergötland;Inköp service och logistik;433874898;202209;24150;Prel levskuld Lager;Abena AB;5563618817;8 644,00
Region Östergötland;Diagnostikcentrum;433874920;202209;26004;Avräkning läkemedel SV;ApoEx AB;5566334149;1 451,92
Region Östergötland;Diagnostikcentrum;433874920;202209;26004;Avräkning läkemedel SV;ApoEx AB;5566334149;225
Region Östergötland;Hjärtcentrum;433874936;202209;26004;Avräkning läkemedel SV;ApoEx AB;5566334149;100
Region Östergötland;Hjärtcentrum;433874936;202209;26004;Avräkning läkemedel SV;ApoEx AB;5566334149;75
Region Östergötland;Hälso- och sjukvårdsnämnden;433874940;202209;26004;Avräkning läkemedel SV;ApoEx AB;5566334149;562,74
Region Östergötland;Hälso- och sjukvårdsnämnden;433874940;202209;26004;Avräkning läkemedel SV;ApoEx AB;5566334149;225
Region Östergötland;Hälso- och sjukvårdsnämnden;433874940;202209;67990;Övriga transporter o frakter;ApoEx AB;5566334149;200
Region Östergötland;Psykiatricentrum;433874966;202209;26004;Avräkning läkemedel SV;ApoEx AB;5566334149;44 632,00
Region Östergötland;Primärvårdscentrum;433874971;202209;26004;Avräkning läkemedel SV;ApoEx AB;5566334149;476,34
Region Östergötland;Primärvårdscentrum;433874971;202209;26004;Avräkning läkemedel SV;ApoEx AB;5566334149;150
Region Östergötland;Hjärtcentrum;433874972;202209;26004;Avräkning läkemedel SV;ApoEx AB;5566334149;9 453,56
Region Östergötland;Hjärtcentrum;433874972;202209;26004;Avräkning läkemedel SV;ApoEx AB;5566334149;150
Region Östergötland;Centrum för kirurgi ortopedi och cancervård;433874975;202209;26004;Avräkning läkemedel SV;ApoEx AB;5566334149;141,84
Region Östergötland;Centrum för kirurgi ortopedi och cancervård;433874975;202209;26004;Avräkning läkemedel SV;ApoEx AB;5566334149;225
Region Östergötland;Närsjukvården i centrala Östergötland;433874980;202209;26004;Avräkning läkemedel SV;ApoEx AB;5566334149;940,97
Region Östergötland;Närsjukvården i centrala Östergötland;433874980;202209;26004;Avräkning läkemedel SV;ApoEx AB;5566334149;300
Region Östergötland;Centrum för kirurgi ortopedi och cancervård;433874989;202209;26004;Avräkning läkemedel SV;ApoEx AB;5566334149;11 581,37
Region Östergötland;Centrum för kirurgi ortopedi och cancervård;433874989;202209;26004;Avräkning läkemedel SV;ApoEx AB;5566334149;2 400,00
Region Östergötland;Inköp service och logistik;433875002;202209;24150;Prel levskuld Lager;Lager;;3 510,00
Region Östergötland;Inköp service och logistik;433875022;202209;24150;Prel levskuld Lager;Lager;;30 408,96
Region Östergötland;Naturbruksgymnasiet Östergötland;433875041;202209;64290;Programvara IT-system;Crayon AB;5566359799;1 500,00
Region Östergötland;Naturbruksgymnasiet Östergötland;433875041;202209;64290;Programvara IT-system;Crayon AB;5566359799;1 065,00
Region Östergötland;Diagnostikcentrum;433875059;202209;64510;Kontorsmaterial;Procurator Sverige AB;5560576554;87,37
Region Östergötland;Diagnostikcentrum;433875059;202209;67990;Övriga transporter o frakter;Procurator Sverige AB;5560576554;148,54
Region Östergötland;Medicincentrum;433875062;202209;56302;Infusion-tappnings-injektmtrl;Baxter Medical AB;5561710657;2 400,00
Region Östergötland;Medicincentrum;433875062;202209;56302;Infusion-tappnings-injektmtrl;Baxter Medical AB;5561710657;2 400,00
Region Östergötland;Centrum för kirurgi ortopedi och cancervård;433875065;202209;67990;Övriga transporter o frakter;TNT Sverige AB;5562177807;287,63
Region Östergötland;Regionfastigheter;433875128;202209;11710;Pågående till/ombyggn årets invest;APC Elinstallatören AB;5564730801;150 000,00
Region Östergötland;Regionledning;433875149;202209;75990;Övr div främm tjänst/verksamh;ProjektForum;8020084102;900
Region Östergötland;Regionledning;433875149;202209;76810;Medlemsavgifter;ProjektForum;8020084102;100
Region Östergötland;Centrum för kirurgi ortopedi och cancervård;433875157;202209;55194;Köpt operationsresurs;Capio Movement AB;5565920864;800 000,00
Region Östergötland;Naturbruksgymnasiet Östergötland;433875184;202209;57410;Undervisningsmaterial;OTH Blommor Filial;5164116914;10 110,00
Region Östergötland;Diagnostikcentrum;433875192;202209;56309;Övr lab o provtagningsmaterial;Clas Ohlson AB;5560358672;116
Region Östergötland;Hälso- och sjukvårdsnämnden;433875197;202209;57111;Hörselhjälpmedel;Oticon AB;5560443185;86 450,00
Region Östergötland;Hälso- och sjukvårdsnämnden;433875198;202209;57111;Hörselhjälpmedel;Oticon AB;5560443185;33 400,00
Region Östergötland;Sinnescentrum;433875200;202209;57111;Hörselhjälpmedel;Oticon AB;5560443185;30 980,00
Region Östergötland;Närsjukvården i östra Östergötland;433875204;202209;57119;Hjälpmedel köp;Abbott Scandinavia;5560466137;3 052,00
Region Östergötland;Närsjukvården i östra Östergötland;433875205;202209;57119;Hjälpmedel köp;Abbott Scandinavia;5560466137;3 052,00
Region Östergötland;Närsjukvården i östra Östergötland;433875206;202209;57119;Hjälpmedel köp;Abbott Scandinavia;5560466137;3 052,00
Region Östergötland;Närsjukvården i östra Östergötland;433875207;202209;57119;Hjälpmedel köp;Abbott Scandinavia;5560466137;3 430,00
Region Östergötland;Närsjukvården i östra Östergötland;433875208;202209;57119;Hjälpmedel köp;Abbott Scandinavia;5560466137;3 430,00
Region Östergötland;Närsjukvården i östra Östergötland;433875209;202209;57119;Hjälpmedel köp;Abbott Scandinavia;5560466137;3 430,00
Region Östergötland;Närsjukvården i östra Östergötland;433875210;202209;57119;Hjälpmedel köp;Abbott Scandinavia;5560466137;3 430,00
Region Östergötland;Närsjukvården i östra Östergötland;433875211;202209;57119;Hjälpmedel köp;Abbott Scandinavia;5560466137;3 430,00
Region Östergötland;Närsjukvården i östra Östergötland;433875212;202209;57119;Hjälpmedel köp;Abbott Scandinavia;5560466137;3 430,00
Region Östergötland;Närsjukvården i östra Östergötland;433875213;202209;57119;Hjälpmedel köp;Abbott Scandinavia;5560466137;3 430,00
Region Östergötland;Sinnescentrum;433875234;202209;57111;Hörselhjälpmedel;Widex AB;5560869769;1 700,00
Region Östergötland;Hälso- och sjukvårdsnämnden;433875236;202209;57111;Hörselhjälpmedel;Widex AB;5560869769;1 550,00
Region Östergötland;Sinnescentrum;433875237;202209;57111;Hörselhjälpmedel;Widex AB;5560869769;2 395,00
Region Östergötland;Hälso- och sjukvårdsnämnden;433875241;202209;57111;Hörselhjälpmedel;Widex AB;5560869769;1 800,00
Region Östergötland;Sinnescentrum;433875242;202209;57111;Hörselhjälpmedel;Widex AB;5560869769;3 330,00
Region Östergötland;Hälso- och sjukvårdsnämnden;433875244;202209;57111;Hörselhjälpmedel;Widex AB;5560869769;1 085,00
Region Östergötland;Hälso- och sjukvården stab;433875247;202209;65220;Underhållmtrl med tekn utrustn;Labora;5560951401;343
Region Östergötland;Primärvårdscentrum;433875250;202209;64649;Övrigt förbrukningsmaterial;Gingi Produkter AB;5561070276;2 505,00
Region Östergötland;Närsjukvården i västra Östergötland;433875252;202209;64649;Övrigt förbrukningsmaterial;Gingi Produkter AB;5561070276;1 119,00
Region Östergötland;Diagnostikcentrum;433875256;202209;85510;Dröjsmålsränta (kostnad);Unilabs AB;5561187179;360,5
Region Östergötland;Diagnostikcentrum;433875256;202209;85510;Dröjsmålsränta (kostnad);Unilabs AB;5561187179;360,5
Region Östergötland;Diagnostikcentrum;433875256;202209;85510;Dröjsmålsränta (kostnad);Unilabs AB;5561187179;360,5
Region Östergötland;Regionfastigheter;433875264;202209;11710;Pågående till/ombyggn årets invest;Byggritningar AB;5561884270;23 071,00
Region Östergötland;Regionfastigheter;433875265;202209;11710;Pågående till/ombyggn årets invest;Byggritningar AB;5561884270;13 680,00
Region Östergötland;Barn- och kvinnocentrum;433875277;202209;56325;Laparoskopimaterial engångs;B.Braun Medical AB;5562515170;1 700,00
Region Östergötland;Centrum för kirurgi ortopedi och cancervård;433875298;202209;56301;Katetrar ledare;Boston Scientific Nordic;5563794139;1 210,00
Region Östergötland;Centrum för kirurgi ortopedi och cancervård;433875298;202209;56324;Skopimaterial;Boston Scientific Nordic;5563794139;11 990,00
Region Östergötland;Hälso- och sjukvården stab;433875300;202209;65220;Underhållmtrl med tekn utrustn;Medema Physio AB;5563997542;592
Region Östergötland;Sinnescentrum;433875311;202209;57111;Hörselhjälpmedel;Sonova Nordic AB;5564413762;300
Region Östergötland;Centrum för kirurgi ortopedi och cancervård;433875350;202209;60390;Övrig fastighetsservice;L&T FM AB;5564732260;3 775,00
Region Östergötland;Hjärtcentrum;433875377;202209;56390;Övrigt medicinskt material;Getinge Sverige AB;5565099511;45 802,00
Region Östergötland;Centrum för kirurgi ortopedi och cancervård;433875378;202209;56752;Höftimplantat;Stryker AB;5565161352;16 270,00
Region Östergötland;Centrum för kirurgi ortopedi och cancervård;433875379;202209;56752;Höftimplantat;Stryker AB;5565161352;17 430,00
Region Östergötland;Centrum för kirurgi ortopedi och cancervård;433875382;202209;56752;Höftimplantat;Stryker AB;5565161352;-16 270,00
Region Östergötland;Centrum för kirurgi ortopedi och cancervård;433875388;202209;56759;Övriga implantat;Zimmer Biomet Sweden AB;5565335238;320
Region Östergötland;Centrum för kirurgi ortopedi och cancervård;433875389;202209;56759;Övriga implantat;Zimmer Biomet Sweden AB;5565335238;320
Region Östergötland;Regionledning;433875393;202209;75420;Driftkostnad IT-system;Inera  AB;5565594230;17 581,54
Region Östergötland;Sinnescentrum;433875399;202209;55960;Köpt logi, resor patient;Hotell Ekoxen AB;5565883567;973,21
Region Östergötland;Primärvårdscentrum;433875400;202209;46230;Handledning av personal;Psykologernas W&W AB;5565925368;4 200,00
Region Östergötland;Primärvårdscentrum;433875400;202209;46230;Handledning av personal;Psykologernas W&W AB;5565925368;2 100,00
Region Östergötland;Primärvårdscentrum;433875401;202209;46230;Handledning av personal;Psykologernas W&W AB;5565925368;2 000,00
Region Östergötland;Diagnostikcentrum;433875412;202209;46160;Utbildning o konferens medarb. Sverige skattefritt;Malmö Kongressbyrå AB;5566209986;7 900,00
Region Östergötland;Hjärtcentrum;433875413;202209;46160;Utbildning o konferens medarb. Sverige skattefritt;Malmö Kongressbyrå AB;5566209986;2 700,00
Region Östergötland;Folktandvården;433875430;202209;56290;Övrigt tandvårdsmaterial;Dentalmind AB;5566232483;4 672,60
Region Östergötland;Närsjukvården i östra Östergötland;433875433;202209;57119;Hjälpmedel köp;Nordicinfu Care AB;5566491790;50
Region Östergötland;Närsjukvården i östra Östergötland;433875441;202209;57119;Hjälpmedel köp;Nordicinfu Care AB;5566491790;9 040,00
Region Östergötland;Regionfastigheter;433875451;202209;11710;Pågående till/ombyggn årets invest;Åhlin & Ekeroth i Lkpg Byggn;5566847926;304 544,00
Region Östergötland;Regionfastigheter;433875452;202209;12055;Påg arb årets inv byggninv omb;Åhlin & Ekeroth i Lkpg Byggn;5566847926;39 503,00
Region Östergötland;Barn- och kvinnocentrum;433875461;202209;64188;Övriga förbrukningsinventarier;IKEA;5560747569;597,6
Region Östergötland;Inköp service och logistik;433875463;202209;24150;Prel levskuld Lager;Plandent AB;5563471076;494,48
Region Östergötland;Diagnostikcentrum;433875476;202209;64510;Kontorsmaterial;Office Depot Svenska AB;5560249558;1 822,86
Region Östergötland;Primärvårdscentrum;433875490;202209;60390;Övrig fastighetsservice;Bokbackens Fastigheter AB;5563405538;544
Region Östergötland;Centrum för kirurgi ortopedi och cancervård;433875500;202209;56759;Övriga implantat;Aktiebolaget Grogrunden Nr 2318;5567553432;6 635,25
Region Östergötland;Hälso- och sjukvårdsnämnden;433875508;202209;67110;Patienttransporter;YDRE KOMMUN;2120000381;2 407,00
Region Östergötland;Diagnostikcentrum;433875509;202209;56302;Infusion-tappnings-injektmtrl;Fresenius Medical Care Sverige AB;5561980904;30 360,00
Region Östergötland;Centrum för kirurgi ortopedi och cancervård;433875512;202209;56302;Infusion-tappnings-injektmtrl;Ewimed Sweden AB;5566908207;30 680,00
Region Östergötland;Centrum för kirurgi ortopedi och cancervård;433875514;202209;56759;Övriga implantat;Swemac orthopaedics;5565494571;8 190,00
Region Östergötland;Regionfastigheter;433875554;202209;11710;Pågående till/ombyggn årets invest;Sandbäckens Rör i Motala AB;5566770441;55 000,00
Region Östergötland;Regionfastigheter;433875557;202209;11710;Pågående till/ombyggn årets invest;Sandbäckens Rör AB;5565830568;200 000,00
Region Östergötland;Regionfastigheter;433875559;202209;11710;Pågående till/ombyggn årets invest;Sandbäckens Rör AB;5565830568;300 000,00
Region Östergötland;Regionfastigheter;433875564;202209;11710;Pågående till/ombyggn årets invest;Teknikbyggarna i Linköping AB;5566757000;350 000,00
Region Östergötland;Närsjukvården i östra Östergötland;433875574;202209;57119;Hjälpmedel köp;Rubin Medical AB;5566676721;10 134,00
Region Östergötland;IT;433875577;202209;64290;Programvara IT-system;Crayon AB;5566359799;489
Region Östergötland;Regionfastigheter;433875587;202209;60110;Hyra lokaler;FastPartner;5568247281;1 785,00
Region Östergötland;Regionfastigheter;433875589;202209;11710;Pågående till/ombyggn årets invest;Assemblin El AB;5560134628;200 000,00
Region Östergötland;Regionfastigheter;433875591;202209;12055;Påg arb årets inv byggninv omb;Assemblin El AB;5560134628;300 000,00
Region Östergötland;Regionfastigheter;433875594;202209;11710;Pågående till/ombyggn årets invest;Assemblin El AB;5560134628;12 651,00
Region Östergötland;Regionfastigheter;433875600;202209;11710;Pågående till/ombyggn årets invest;Assemblin El AB;5560134628;50 000,00
Region Östergötland;Centrum för kirurgi ortopedi och cancervård;433875799;202209;46160;Utbildning o konferens medarb. Sverige skattefritt;SVERIGES LANTBRUKSUNIVERS;2021002817;400
Region Östergötland;Regionledning;433875800;202209;69990;Övr marknadsföring o informat;Voky AB;5568159072;3 040,30
Region Östergötland;Hälso- och sjukvården stab;433875803;202209;65220;Underhållmtrl med tekn utrustn;Siemens Healthcare Diagnostics AB;5561572636;11 235,00
Region Östergötland;Centrum för kirurgi ortopedi och cancervård;433875812;202209;68310;Kost och logi Sverige;Lingmerths Resebyrå AB;5560542747;3 202,00
Region Östergötland;Naturbruksgymnasiet Östergötland;433875813;202209;68110;Biljetter och resor i Sverige;Lingmerths Resebyrå AB;5560542747;454,94
Region Östergötland;Naturbruksgymnasiet Östergötland;433875813;202209;68310;Kost och logi Sverige;Lingmerths Resebyrå AB;5560542747;2 480,78
Region Östergötland;Regionledning;433875817;202209;68110;Biljetter och resor i Sverige;Lingmerths Resebyrå AB;5560542747;811,54
Region Östergötland;Regionledning;433875822;202209;68110;Biljetter och resor i Sverige;Lingmerths Resebyrå AB;5560542747;633,14
Region Östergötland;Medicincentrum;433875831;202209;68110;Biljetter och resor i Sverige;Lingmerths Resebyrå AB;5560542747;2 590,29
Region Östergötland;Medicincentrum;433875831;202209;68310;Kost och logi Sverige;Lingmerths Resebyrå AB;5560542747;14 103,33
Region Östergötland;Sinnescentrum;433875833;202209;68310;Kost och logi Sverige;Lingmerths Resebyrå AB;5560542747;77
Region Östergötland;Folktandvården;433875834;202209;68310;Kost och logi Sverige;Lingmerths Resebyrå AB;5560542747;1 344,86
Region Östergötland;Centrum för kirurgi ortopedi och cancervård;433875839;202209;57210;Livsmedel råvaror;Beans in Cup AB;5590855564;2 391,84
Region Östergötland;Närsjukvården i centrala Östergötland;433875842;202209;57210;Livsmedel råvaror;Beans in Cup AB;5590855564;1 848,00
Region Östergötland;Primärvårdscentrum;433875852;202209;46725;Personalvård;Selecta AB Stockholm;5560693318;9 794,01
Region Östergötland;Medicincentrum;433875853;202209;55520;Inhyrd sjuksköterska;;;67 141,00
Region Östergötland;Närsjukvården i centrala Östergötland;433875854;202209;55520;Inhyrd sjuksköterska;;;83 267,25
Region Östergötland;Regionfastigheter;433875855;202209;60820;Konsulter fastighetsunderhåll;Sweco Sverige AB;5567679849;23 100,00
Region Östergötland;Primärvårdscentrum;433875857;202209;46725;Personalvård;Borgs Specerier AB;5592795990;1 004,85
Region Östergötland;Hälso- och sjukvården stab;433875863;202209;76710;Facklitteratur;Bokus AB;5564930492;501,89
Region Östergötland;Barn- och kvinnocentrum;433875881;202209;56390;Övrigt medicinskt material;Gingi Produkter AB;5561070276;680
Region Östergötland;Barn- och kvinnocentrum;433875881;202209;67990;Övriga transporter o frakter;Gingi Produkter AB;5561070276;99,2
Region Östergötland;Barn- och kvinnocentrum;433875885;202209;56390;Övrigt medicinskt material;Dandent Ab;5561336487;11 320,00
Region Östergötland;Barn- och kvinnocentrum;433875885;202209;67990;Övriga transporter o frakter;Dandent Ab;5561336487;975,2
Region Östergötland;Hjärtcentrum;433875889;202209;64171;Sjukvårdsutrustning;Mediplast AB;5561409011;1 113,60
Region Östergötland;Diagnostikcentrum;433875893;202209;56390;Övrigt medicinskt material;Mediplast AB;5561409011;1 110,50
Region Östergötland;Centrum för kirurgi ortopedi och cancervård;433875900;202209;56390;Övrigt medicinskt material;Olympus Sverige AB;5561892794;7 600,00
Region Östergötland;Centrum för kirurgi ortopedi och cancervård;433875901;202209;56390;Övrigt medicinskt material;Kungshusen Medicinska AB;5561960641;13 690,40
Region Östergötland;Centrum för kirurgi ortopedi och cancervård;433875905;202209;56339;Förbandsartiklar;Smith o Nephew;5561988345;740
Region Östergötland;Närsjukvården i östra Östergötland;433875906;202209;56339;Förbandsartiklar;Smith o Nephew;5561988345;198,41
Region Östergötland;Sinnescentrum;433875912;202209;56322;Sutur;B.Braun Medical AB;5562515170;890
Region Östergötland;Medicincentrum;433875914;202209;56323;Kirurgiska instrument;Histolab Products AB;5560986811;7 040,00
Region Östergötland;Centrum för kirurgi ortopedi och cancervård;433875923;202209;56309;Övr lab o provtagningsmaterial;Boston Scientific Nordic;5563794139;8 360,00
Region Östergötland;Diagnostikcentrum;433875928;202209;64510;Kontorsmaterial;Atea Sverige AB;5564480282;10 500,08
Region Östergötland;Närsjukvården i östra Östergötland;433875929;202209;64510;Kontorsmaterial;Atea Sverige AB;5564480282;2 784,03
Region Östergötland;Sinnescentrum;433875933;202209;56390;Övrigt medicinskt material;Medtronic-Vingmed AB;5565255964;7 153,30
Region Östergötland;Centrum för kirurgi ortopedi och cancervård;433875937;202209;56390;Övrigt medicinskt material;Medtronic-Vingmed AB;5565255964;10 979,28
Region Östergötland;Hjärtcentrum;433875953;202209;64171;Sjukvårdsutrustning;Care of Sweden;5565240578;865
Region Östergötland;Närsjukvården i centrala Östergötland;433875954;202209;56339;Förbandsartiklar;MediRoyal Nordic AB;5566307970;5 512,50
Region Östergötland;Närsjukvården i centrala Östergötland;433875954;202209;57131;Ortoser;MediRoyal Nordic AB;5566307970;1 458,00
Region Östergötland;Primärvårdscentrum;433875959;202209;56356;Förbruknmaterial diagnostik;Medidyne;5566978796;1 078,30
Region Östergötland;Primärvårdscentrum;433875959;202209;64171;Sjukvårdsutrustning;Medidyne;5566978796;4 819,40
Region Östergötland;Inköp service och logistik;433875986;202209;24150;Prel levskuld Lager;Intersurgical AB;5568988868;6 201,00
Region Östergötland;Centrum för kirurgi ortopedi och cancervård;433875987;202209;56390;Övrigt medicinskt material;Intersurgical AB;5568988868;2 704,80
Region Östergötland;Hjärtcentrum;433876014;202209;26004;Avräkning läkemedel SV;ApoEx AB;5566334149;249,96
Region Östergötland;Hjärtcentrum;433876044;202209;26004;Avräkning läkemedel SV;ApoEx AB;5566334149;868,56
Region Östergötland;Hjärtcentrum;433876044;202209;26004;Avräkning läkemedel SV;ApoEx AB;5566334149;75
Region Östergötland;Medicincentrum;433876075;202209;26004;Avräkning läkemedel SV;ApoEx AB;5566334149;1 761,11
Region Östergötland;Medicincentrum;433876075;202209;26004;Avräkning läkemedel SV;ApoEx AB;5566334149;675
Region Östergötland;Närsjukvården i västra Östergötland;433876076;202209;26004;Avräkning läkemedel SV;ApoEx AB;5566334149;7 150,00
Region Östergötland;Närsjukvården i västra Östergötland;433876076;202209;26004;Avräkning läkemedel SV;ApoEx AB;5566334149;225
Region Östergötland;Diagnostikcentrum;433876078;202209;26004;Avräkning läkemedel SV;ApoEx AB;5566334149;33 817,00
Region Östergötland;Diagnostikcentrum;433876078;202209;26004;Avräkning läkemedel SV;ApoEx AB;5566334149;450
Region Östergötland;Diagnostikcentrum;433876078;202209;67990;Övriga transporter o frakter;ApoEx AB;5566334149;200
Region Östergötland;Diagnostikcentrum;433876090;202209;26004;Avräkning läkemedel SV;ApoEx AB;5566334149;10 272,35
Region Östergötland;Diagnostikcentrum;433876090;202209;26004;Avräkning läkemedel SV;ApoEx AB;5566334149;600
Region Östergötland;Hjärtcentrum;433876110;202209;57332;Steril o desinfektionsmaterial;Cleanhouse Städmaterial & Hygien in Scandinavia AB;5568937329;102,92
Region Östergötland;Diagnostikcentrum;433876113;202209;57310;Rengörings och hygienmaterial;Cleanhouse Städmaterial & Hygien in Scandinavia AB;5568937329;75,88
Region Östergötland;Inköp service och logistik;433876128;202209;24150;Prel levskuld Lager;Smiths Medical Sverige AB;5565631537;500
Region Östergötland;Centrum för kirurgi ortopedi och cancervård;433876132;202209;68110;Biljetter och resor i Sverige;Lingmerths Resebyrå AB;5560542747;-836,08
Region Östergötland;Närsjukvården i västra Östergötland;433876143;202209;55395;Köpt ospec diagnostisk provanalys;Wieslab Analys AB;5564309903;13 615,00
Region Östergötland;Inköp service och logistik;433876148;202209;24150;Prel levskuld Lager;Smiths Medical Sverige AB;5565631537;1 260,00
Region Östergötland;Sinnescentrum;433876162;202209;56390;Övrigt medicinskt material;Smiths Medical Sverige AB;5565631537;895
Region Östergötland;Primärvårdscentrum;433876167;202209;56390;Övrigt medicinskt material;Cellcomb;5568735111;1 350,50
Region Östergötland;Centrum för kirurgi ortopedi och cancervård;433876168;202209;68110;Biljetter och resor i Sverige;Lingmerths Resebyrå AB;5560542747;-604,83
Region Östergötland;Finansförvaltningen;433876179;202209;25620;Varor från annat EG-land 25%;EU-företag utländska;;-17 500,00
Region Östergötland;Sinnescentrum;433876179;202209;56759;Övriga implantat;EU-företag utländska;;70 000,00
Region Östergötland;Närsjukvården i västra Östergötland;433876186;202209;55395;Köpt ospec diagnostisk provanalys;Wieslab Analys AB;5564309903;521
Region Östergötland;Regionledning;433876199;202209;68110;Biljetter och resor i Sverige;Lingmerths Resebyrå AB;5560542747;-466,04
Region Östergötland;Centrum för kirurgi ortopedi och cancervård;433876201;202209;56390;Övrigt medicinskt material;ConvaTec (Sweden) AB;5567548473;2 850,50
Region Östergötland;Finansförvaltningen;433876214;202209;25620;Varor från annat EG-land 25%;EU-företag utländska;;-35 438,34
Region Östergötland;Regionledning;433876214;202209;75990;Övr div främm tjänst/verksamh;EU-företag utländska;;141 753,35
Region Östergötland;Folktandvården;433876215;202209;56290;Övrigt tandvårdsmaterial;Nordenta AB;5560494899;112,82
Region Östergötland;Närsjukvården i östra Östergötland;433876219;202209;57119;Hjälpmedel köp;Abbott Scandinavia;5560466137;3 052,00
Region Östergötland;Närsjukvården i östra Östergötland;433876220;202209;57119;Hjälpmedel köp;Abbott Scandinavia;5560466137;3 052,00
Region Östergötland;Närsjukvården i östra Östergötland;433876221;202209;57119;Hjälpmedel köp;Abbott Scandinavia;5560466137;3 052,00
Region Östergötland;Närsjukvården i östra Östergötland;433876222;202209;57119;Hjälpmedel köp;Abbott Scandinavia;5560466137;3 052,00
Region Östergötland;Närsjukvården i östra Östergötland;433876223;202209;57119;Hjälpmedel köp;Abbott Scandinavia;5560466137;3 052,00
Region Östergötland;Närsjukvården i östra Östergötland;433876224;202209;57119;Hjälpmedel köp;Abbott Scandinavia;5560466137;3 052,00
Region Östergötland;Närsjukvården i östra Östergötland;433876225;202209;57119;Hjälpmedel köp;Abbott Scandinavia;5560466137;3 052,00
Region Östergötland;Närsjukvården i östra Östergötland;433876226;202209;57119;Hjälpmedel köp;Abbott Scandinavia;5560466137;3 052,00
Region Östergötland;Närsjukvården i östra Östergötland;433876227;202209;57119;Hjälpmedel köp;Abbott Scandinavia;5560466137;3 052,00
Region Östergötland;Närsjukvården i östra Östergötland;433876228;202209;57119;Hjälpmedel köp;Abbott Scandinavia;5560466137;3 052,00
Region Östergötland;Närsjukvården i östra Östergötland;433876229;202209;57119;Hjälpmedel köp;Abbott Scandinavia;5560466137;3 052,00
Region Östergötland;Närsjukvården i östra Östergötland;433876230;202209;57119;Hjälpmedel köp;Abbott Scandinavia;5560466137;3 052,00
Region Östergötland;Primärvårdscentrum;433876247;202209;57119;Hjälpmedel köp;Abbott Scandinavia;5560466137;4 360,00
Region Östergötland;Primärvårdscentrum;433876248;202209;57119;Hjälpmedel köp;Abbott Scandinavia;5560466137;5 232,00
Region Östergötland;Närsjukvården i västra Östergötland;433876251;202209;56390;Övrigt medicinskt material;Gunnar Engstrand AB;5560485194;1 824,00
Region Östergötland;Hälso- och sjukvården stab;433876276;202209;64148;Kontorsutrustning;Wurth Svenska AB;5561093021;546,56
Region Östergötland;Regionledning;433876290;202209;76810;Medlemsavgifter;Sveriges Informationsföre;5561550202;1 350,00
Region Östergötland;Centrum för kirurgi ortopedi och cancervård;433876304;202209;56302;Infusion-tappnings-injektmtrl;Coloplast AB;5562075431;455
Region Östergötland;Centrum för kirurgi ortopedi och cancervård;433876309;202209;56390;Övrigt medicinskt material;Medela Medical AB;5562528652;1 602,00
Region Östergötland;Hälso- och sjukvården stab;433876324;202209;60390;Övrig fastighetsservice;Miljöbyggarna Entrepenad;5564411188;1 162,00
Region Östergötland;Regionledning;433876324;202209;60390;Övrig fastighetsservice;Miljöbyggarna Entrepenad;5564411188;1 743,00
Region Östergötland;Regionledning;433876324;202209;60390;Övrig fastighetsservice;Miljöbyggarna Entrepenad;5564411188;581
Region Östergötland;Regionledning;433876324;202209;60390;Övrig fastighetsservice;Miljöbyggarna Entrepenad;5564411188;1 162,00
Region Östergötland;Regionledningskontoret stab;433876324;202209;60390;Övrig fastighetsservice;Miljöbyggarna Entrepenad;5564411188;6 747,50
Region Östergötland;IT;433876324;202209;60390;Övrig fastighetsservice;Miljöbyggarna Entrepenad;5564411188;1 162,00
Region Östergötland;IT;433876324;202209;60390;Övrig fastighetsservice;Miljöbyggarna Entrepenad;5564411188;1 162,00
Region Östergötland;Regionfastigheter;433876327;202209;60820;Konsulter fastighetsunderhåll;Miljöbyggarna Entrepenad;5564411188;110 083,00
Region Östergötland;Regionfastigheter;433876328;202209;60820;Konsulter fastighetsunderhåll;Miljöbyggarna Entrepenad;5564411188;75 000,00
Region Östergötland;Regionfastigheter;433876329;202209;60820;Konsulter fastighetsunderhåll;Miljöbyggarna Entrepenad;5564411188;75 000,00
Region Östergötland;Hjärtcentrum;433876334;202209;56390;Övrigt medicinskt material;SorinGroup;5564411618;4 500,00
Region Östergötland;Lunnevads folkhögskola;433876364;202209;64127;IT-utrustning;Atea Sverige AB;5564480282;22 429,00
Region Östergötland;Regionfastigheter;433876378;202209;11710;Pågående till/ombyggn årets invest;L&T FM AB;5564732260;1 160,00
Region Östergötland;Regionfastigheter;433876381;202209;73150;Skadestånd;L&T FM AB;5564732260;84 128,04
Region Östergötland;Närsjukvården i centrala Östergötland;433876384;202209;65990;Service/underh/rep övr inv/utr;L&T FM AB;5564732260;63 000,00
Region Östergötland;Regionfastigheter;433876387;202209;60895;Felavhjälpande underhåll;L&T FM AB;5564732260;3 213,34
Region Östergötland;Regionfastigheter;433876411;202209;12055;Påg arb årets inv byggninv omb;L&T FM AB;5564732260;1 250,00
Region Östergötland;Regionfastigheter;433876414;202209;11710;Pågående till/ombyggn årets invest;L&T FM AB;5564732260;4 565,00
Region Östergötland;Hälso- och sjukvården stab;433876417;202209;65220;Underhållmtrl med tekn utrustn;Svenska Labex AB;5564764990;2 765,00
Region Östergötland;Sinnescentrum;433876424;202209;57111;Hörselhjälpmedel;Resound AB;5565101986;600
Region Östergötland;Sinnescentrum;433876429;202209;56329;Övrigt operationsmaterial;Zimmer Biomet Sweden AB;5565335238;17 600,00
Region Östergötland;Centrum för kirurgi ortopedi och cancervård;433876442;202209;46160;Utbildning o konferens medarb. Sverige skattefritt;Expo Medica AB;5565846978;3 300,00
Region Östergötland;Sinnescentrum;433876443;202209;55960;Köpt logi, resor patient;Hotell Ekoxen AB;5565883567;973,21
Region Östergötland;Psykiatricentrum;433876446;202209;75420;Driftkostnad IT-system;Psykologernas W&W AB;5565925368;2 917,00
Region Östergötland;Hälso- och sjukvårdsnämnden;433876447;202209;57110;Synhjälpmedel;Noroptik AB;5566075569;7 190,00
Region Östergötland;Hälso- och sjukvårdsnämnden;433876449;202209;57110;Synhjälpmedel;Noroptik AB;5566075569;5 600,00
Region Östergötland;Sinnescentrum;433876451;202209;56390;Övrigt medicinskt material;JJSV Norden AB;5566243258;1 100,00
Region Östergötland;Hjärtcentrum;433876454;202209;56759;Övriga implantat;Terumo Sweden AB;5566351176;9 100,00
Region Östergötland;Regionfastigheter;433876465;202209;12055;Påg arb årets inv byggninv omb;Torpheimer i Linköping AB;5566584685;75 000,00
Region Östergötland;Regionfastigheter;433876466;202209;11710;Pågående till/ombyggn årets invest;Torpheimer i Linköping AB;5566584685;17 080,00
Region Östergötland;Regionfastigheter;433876467;202209;11710;Pågående till/ombyggn årets invest;Torpheimer i Linköping AB;5566584685;100 000,00
Region Östergötland;Regionfastigheter;433876470;202209;11710;Pågående till/ombyggn årets invest;Åhlin & Ekeroth i Lkpg Byggn;5566847926;200 000,00
Region Östergötland;Regionfastigheter;433876472;202209;11710;Pågående till/ombyggn årets invest;Åhlin & Ekeroth i Lkpg Byggn;5566847926;105 000,00
Region Östergötland;Regionfastigheter;433876473;202209;11810;Pågående nybyggn årets invest;Åhlin & Ekeroth i Lkpg Byggn;5566847926;115 000,00
Region Östergötland;Regionfastigheter;433876474;202209;11810;Pågående nybyggn årets invest;Åhlin & Ekeroth i Lkpg Byggn;5566847926;827 000,00
Region Östergötland;Naturbruksgymnasiet Östergötland;433876482;202209;57210;Livsmedel råvaror;Dagab Snabbgross;5560003575;237,1
Region Östergötland;Naturbruksgymnasiet Östergötland;433876482;202209;57221;Konditori-/ kioskvaror;Dagab Snabbgross;5560003575;838
Region Östergötland;Folktandvården;433876483;202209;56290;Övrigt tandvårdsmaterial;Plandent AB;5563471076;60,44
Region Östergötland;Folktandvården;433876486;202209;56260;Implantat tandvård;Nobelpharma AB;5560020231;19 589,51
Region Östergötland;Folktandvården;433876491;202209;56260;Implantat tandvård;Nobelpharma AB;5560020231;8 038,40
Region Östergötland;Hälso- och sjukvården stab;433876493;202209;65220;Underhållmtrl med tekn utrustn;Ahlsell AB;5560129206;1 540,00
Region Östergötland;Diagnostikcentrum;433876510;202209;57292;Mtrl för ers/gåva till blodgiv;Filmstaden AB;5560351651;2 195,00
Region Östergötland;Hjärtcentrum;433876513;202209;56759;Övriga implantat;Abbott Medical Sweden AB;5564922317;45 000,00
Region Östergötland;Folktandvården;433876517;202209;65510;Service/underh/rep dental utr;Dental AB;5560050048;1 303,40
Region Östergötland;Folktandvården;433876518;202209;56290;Övrigt tandvårdsmaterial;Dental AB;5560050048;3 778,44
Region Östergötland;Primärvårdscentrum;433876523;202209;46230;Handledning av personal;Reneby Agneta;5412162447;4 987,50
Region Östergötland;Regionfastigheter;433876524;202209;11810;Pågående nybyggn årets invest;Tengbomgruppen AB;5563299113;9 282,00
Region Östergötland;Sinnescentrum;433876536;202209;57110;Synhjälpmedel;Iris Hjälpmedel;5565370359;39 698,00
Region Östergötland;Folktandvården;433876542;202209;46160;Utbildning o konferens medarb. Sverige skattefritt;Tandläkartidningen;8020034248;15 040,00
Region Östergötland;Hjärtcentrum;433876614;202209;46720;Uppvaktning blommor kondoleans;Blom Boutiquen Linköping AB;5568703333;360
Region Östergötland;Regionfastigheter;433876617;202209;11810;Pågående nybyggn årets invest;Nordomatic AB;5563622074;257 500,00
Region Östergötland;Naturbruksgymnasiet Östergötland;433876618;202209;64649;Övrigt förbrukningsmaterial;Blomsterlandet Syd AB;5564693520;413,66
Region Östergötland;Naturbruksgymnasiet Östergötland;433876620;202209;64649;Övrigt förbrukningsmaterial;Blomsterlandet Syd AB;5564693520;1 274,24
Region Östergötland;Närsjukvården i östra Östergötland;433876621;202209;57119;Hjälpmedel köp;Rubin Medical AB;5566676721;10 134,00
Region Östergötland;Närsjukvården i östra Östergötland;433876624;202209;57119;Hjälpmedel köp;Rubin Medical AB;5566676721;14 244,00
Region Östergötland;IT;433876629;202209;75490;Övriga IT-konsulttjänster;Crayon AB;5566359799;59 800,00
Region Östergötland;Sinnescentrum;433876637;202209;57110;Synhjälpmedel;Synsam i Motala;5567687248;800
Region Östergötland;Hälso- och sjukvårdsnämnden;433876641;202209;57110;Synhjälpmedel;Synsam i Motala;5567687248;800
Region Östergötland;Hälso- och sjukvårdsnämnden;433876642;202209;57110;Synhjälpmedel;Synsam i Motala;5567687248;800
Region Östergötland;Hälso- och sjukvårdsnämnden;433876643;202209;57110;Synhjälpmedel;Synsam i Motala;5567687248;800
Region Östergötland;Hälso- och sjukvårdsnämnden;433876644;202209;57110;Synhjälpmedel;Synsam i Motala;5567687248;800
Region Östergötland;Folktandvården;433876927;202209;53115;Köpt tandvård barn;Region Jönköpings län;2321000057;1 250,00
Region Östergötland;Diagnostikcentrum;433876929;202209;46720;Uppvaktning blommor kondoleans;Voky AB;5568159072;408,75
Region Östergötland;Regionfastigheter;433876944;202209;11710;Pågående till/ombyggn årets invest;Team Projektpartner AB;5569475576;6 276,00
Region Östergötland;Regionfastigheter;433876946;202209;12055;Påg arb årets inv byggninv omb;Team Projektpartner AB;5569475576;3 138,00
Region Östergötland;Regionfastigheter;433876947;202209;11810;Pågående nybyggn årets invest;Team Projektpartner AB;5569475576;1 046,00
Region Östergötland;Regionfastigheter;433876948;202209;11710;Pågående till/ombyggn årets invest;Team Projektpartner AB;5569475576;5 814,00
Region Östergötland;Regionfastigheter;433876949;202209;11710;Pågående till/ombyggn årets invest;Team Projektpartner AB;5569475576;2 092,00
Region Östergötland;Regionfastigheter;433876950;202209;11710;Pågående till/ombyggn årets invest;Team Projektpartner AB;5569475576;9 690,00
Region Östergötland;Regionfastigheter;433876951;202209;11710;Pågående till/ombyggn årets invest;Team Projektpartner AB;5569475576;17 442,00
Region Östergötland;Regionfastigheter;433876952;202209;11710;Pågående till/ombyggn årets invest;Team Projektpartner AB;5569475576;6 276,00
Region Östergötland;Centrum för kirurgi ortopedi och cancervård;433876956;202209;68120;Biljetter och resor i utlandet;Lingmerths Resebyrå AB;5560542747;4 865,00
Region Östergötland;Centrum för kirurgi ortopedi och cancervård;433876956;202209;68410;Kost och logi utlandet;Lingmerths Resebyrå AB;5560542747;7 466,00
Region Östergötland;Centrum för kirurgi ortopedi och cancervård;433876957;202209;68120;Biljetter och resor i utlandet;Lingmerths Resebyrå AB;5560542747;14 595,00
Region Östergötland;Centrum för kirurgi ortopedi och cancervård;433876957;202209;68410;Kost och logi utlandet;Lingmerths Resebyrå AB;5560542747;22 398,00
Region Östergötland;Medicincentrum;433876966;202209;68110;Biljetter och resor i Sverige;Lingmerths Resebyrå AB;5560542747;455,78
Region Östergötland;Medicincentrum;433876967;202209;68310;Kost och logi Sverige;Lingmerths Resebyrå AB;5560542747;5 355,57
Region Östergötland;Naturbruksgymnasiet Östergötland;433876971;202209;68110;Biljetter och resor i Sverige;Lingmerths Resebyrå AB;5560542747;339,74
Region Östergötland;Naturbruksgymnasiet Östergötland;433876971;202209;68310;Kost och logi Sverige;Lingmerths Resebyrå AB;5560542747;2 895,07
Region Östergötland;Centrum för kirurgi ortopedi och cancervård;433876975;202209;68110;Biljetter och resor i Sverige;Lingmerths Resebyrå AB;5560542747;1 104,48
Region Östergötland;Centrum för kirurgi ortopedi och cancervård;433876978;202209;68110;Biljetter och resor i Sverige;Lingmerths Resebyrå AB;5560542747;923,7
Region Östergötland;Centrum för kirurgi ortopedi och cancervård;433876978;202209;68310;Kost och logi Sverige;Lingmerths Resebyrå AB;5560542747;6 059,14
Region Östergötland;Sinnescentrum;433876979;202209;68110;Biljetter och resor i Sverige;Lingmerths Resebyrå AB;5560542747;338,15
Region Östergötland;Folktandvården;433876984;202209;68110;Biljetter och resor i Sverige;Lingmerths Resebyrå AB;5560542747;3 113,66
Region Östergötland;Folktandvården;433876984;202209;68110;Biljetter och resor i Sverige;Lingmerths Resebyrå AB;5560542747;3 430,64
Region Östergötland;Sinnescentrum;433876989;202209;57110;Synhjälpmedel;Insyn Scandinavia AB;5566202528;25 894,00
Region Östergötland;Sinnescentrum;433876990;202209;46160;Utbildning o konferens medarb. Sverige skattefritt;Hjälpmedelcenter Sverige AB;5569454076;34 500,00
Region Östergötland;Sinnescentrum;433876994;202209;55510;Inhyrd läkare;;;56 012,00
Region Östergötland;Regionfastigheter;433877003;202209;11710;Pågående till/ombyggn årets invest;LR Konsult och installation i Linköping AB;5564516101;7 550,00
Region Östergötland;Hälso- och sjukvårdsnämnden;433877009;202209;57110;Synhjälpmedel;KE Optik AB;5592388416;1 595,00
Region Östergötland;Regionledning;433877011;202209;75990;Övr div främm tjänst/verksamh;Future Me Agency AB;5592075005;66 625,00
Region Östergötland;Sinnescentrum;433877012;202209;55520;Inhyrd sjuksköterska;;;55 602,50
Region Östergötland;IT;433877022;202209;64290;Programvara IT-system;Qnister AB;5591166433;2 499,10
Region Östergötland;Sinnescentrum;433877028;202209;56759;Övriga implantat;Johnson & Johnson AB;5560632514;7 182,00
Region Östergötland;Sinnescentrum;433877032;202209;65220;Underhållmtrl med tekn utrustn;Philips AB;5561052613;1 968,00
Region Östergötland;Barn- och kvinnocentrum;433877035;202209;56321;Narkos och sugmaterial;Philips AB;5561052613;460
Region Östergötland;Närsjukvården i västra Östergötland;433877036;202209;64171;Sjukvårdsutrustning;Philips AB;5561052613;5 445,00
Region Östergötland;Primärvårdscentrum;433877037;202209;56390;Övrigt medicinskt material;Gingi Produkter AB;5561070276;1 190,00
Region Östergötland;Primärvårdscentrum;433877037;202209;67990;Övriga transporter o frakter;Gingi Produkter AB;5561070276;145,2
Region Östergötland;Sinnescentrum;433877052;202209;56323;Kirurgiska instrument;Mediplast AB;5561409011;1 250,00
Region Östergötland;Hjärtcentrum;433877054;202209;24150;Prel levskuld Lager;Mediplast AB;5561409011;1 980,00
Region Östergötland;Närsjukvården i västra Östergötland;433877056;202209;56302;Infusion-tappnings-injektmtrl;Becton Dickinsson AB;5561456756;594
Region Östergötland;Centrum för kirurgi ortopedi och cancervård;433877060;202209;56323;Kirurgiska instrument;Olympus Sverige AB;5561892794;2 490,50
Region Östergötland;Centrum för kirurgi ortopedi och cancervård;433877064;202209;64171;Sjukvårdsutrustning;Smith o Nephew;5561988345;690
Region Östergötland;Inköp service och logistik;433877065;202209;24150;Prel levskuld Lager;Coloplast AB;5562075431;5 692,50
Region Östergötland;Närsjukvården i västra Östergötland;433877067;202209;56339;Förbandsartiklar;Camp Scandinavia;5562218270;868
Region Östergötland;Centrum för kirurgi ortopedi och cancervård;433877068;202209;57131;Ortoser;Camp Scandinavia;5562218270;989
Region Östergötland;Inköp service och logistik;433877076;202209;24150;Prel levskuld Lager;Triolab AB;5563529295;5 368,75
Region Östergötland;Sinnescentrum;433877082;202209;56390;Övrigt medicinskt material;Boston Scientific Nordic;5563794139;3 986,00
Region Östergötland;Hjärtcentrum;433877083;202209;56301;Katetrar ledare;Boston Scientific Nordic;5563794139;3 180,00
Region Östergötland;Hjärtcentrum;433877083;202209;56302;Infusion-tappnings-injektmtrl;Boston Scientific Nordic;5563794139;12 300,00
Region Östergötland;Centrum för kirurgi ortopedi och cancervård;433877089;202209;57131;Ortoser;Össur Nordic AB;5564834173;6 330,50
Region Östergötland;Centrum för kirurgi ortopedi och cancervård;433877102;202209;56321;Narkos och sugmaterial;Dolema AB;5566158373;10 280,00
Region Östergötland;Inköp service och logistik;433877110;202209;24150;Prel levskuld Lager;Tamro AB;5560202169;15 750,00
Region Östergötland;Centrum för kirurgi ortopedi och cancervård;433877115;202209;56390;Övrigt medicinskt material;Office Depot Svenska AB;5560249558;2 978,00
Region Östergötland;Primärvårdscentrum;433877118;202209;56390;Övrigt medicinskt material;Office Depot Svenska AB;5560249558;2 270,50
Region Östergötland;Inköp service och logistik;433877134;202209;56339;Förbandsartiklar;One Med Sverige AB;5567644140;-80
Region Östergötland;Primärvårdscentrum;433877135;202209;56390;Övrigt medicinskt material;ETAC Sverige AB;5562032879;7 634,00
Region Östergötland;IT;433877140;202209;64290;Programvara IT-system;Crayon AB;5566359799;220 473,60
Region Östergötland;Sinnescentrum;433877150;202209;26004;Avräkning läkemedel SV;ApoEx AB;5566334149;12 372,82
Region Östergötland;Sinnescentrum;433877150;202209;26004;Avräkning läkemedel SV;ApoEx AB;5566334149;225
Region Östergötland;Barn- och kvinnocentrum;433877155;202209;26004;Avräkning läkemedel SV;ApoEx AB;5566334149;20 137,40
Region Östergötland;Barn- och kvinnocentrum;433877155;202209;26004;Avräkning läkemedel SV;ApoEx AB;5566334149;825
Region Östergötland;Sinnescentrum;433877169;202209;26004;Avräkning läkemedel SV;ApoEx AB;5566334149;11 683,20
Region Östergötland;Sinnescentrum;433877169;202209;26004;Avräkning läkemedel SV;ApoEx AB;5566334149;75
Region Östergötland;Centrum för kirurgi ortopedi och cancervård;433877181;202209;26004;Avräkning läkemedel SV;ApoEx AB;5566334149;550,94
Region Östergötland;Centrum för kirurgi ortopedi och cancervård;433877181;202209;26004;Avräkning läkemedel SV;ApoEx AB;5566334149;300
Region Östergötland;Diagnostikcentrum;433877196;202209;26004;Avräkning läkemedel SV;ApoEx AB;5566334149;11 000,00
Region Östergötland;Diagnostikcentrum;433877196;202209;26004;Avräkning läkemedel SV;ApoEx AB;5566334149;75
Region Östergötland;Centrum för kirurgi ortopedi och cancervård;433877211;202209;26004;Avräkning läkemedel SV;ApoEx AB;5566334149;796
Region Östergötland;Centrum för kirurgi ortopedi och cancervård;433877211;202209;26004;Avräkning läkemedel SV;ApoEx AB;5566334149;75
Region Östergötland;Centrum för kirurgi ortopedi och cancervård;433877214;202209;26004;Avräkning läkemedel SV;ApoEx AB;5566334149;5 094,61
Region Östergötland;Centrum för kirurgi ortopedi och cancervård;433877214;202209;26004;Avräkning läkemedel SV;ApoEx AB;5566334149;1 500,00
Region Östergötland;Centrum för kirurgi ortopedi och cancervård;433877222;202209;24150;Prel levskuld Lager;ConvaTec (Sweden) AB;5567548473;728,86
Region Östergötland;Sinnescentrum;433877224;202209;64649;Övrigt förbrukningsmaterial;Aura Light AB;5562752278;275,45
Region Östergötland;Sinnescentrum;433877224;202209;67990;Övriga transporter o frakter;Aura Light AB;5562752278;150,19
Region Östergötland;Inköp service och logistik;433877226;202209;24150;Prel levskuld Lager;Lager;;61 500,00
Region Östergötland;Barn- och kvinnocentrum;433877298;202209;56110;Läkemedel rekvisition;Apotek Hjärtat Retail AB;5567738249;1 657,60
Region Östergötland;Hälso- och sjukvårdsnämnden;433877302;202209;56124;ÖV totkostn klinikläkemed fil;Apotek Hjärtat Retail AB;5567738249;573
Region Östergötland;Diagnostikcentrum;433877311;202209;46160;Utbildning o konferens medarb. Sverige skattefritt;Travel Team Sweden AB;5566501739;800
Region Östergötland;Diagnostikcentrum;433877311;202209;68310;Kost och logi Sverige;Travel Team Sweden AB;5566501739;3 418,93
Region Östergötland;Regionfastigheter;433877314;202209;17105;Interimsbokade anläggningstillgångar;Köksmiljö i Uppsala AB;5561928481;258 075,25
Region Östergötland;Regionledning;433877318;202209;43620;Rep och service tjänstebil;Tylles Västervik AB;5590849625;1 412,00
Region Östergötland;Regionutvecklingsnämnden;433877339;202209;46131;Utbildning och konferens utland skattefritt;EU-företag utländska;;9 733,97
Region Östergötland;Centrum för kirurgi ortopedi och cancervård;433877383;202209;55395;Köpt ospec diagnostisk provanalys;Region Kalmar;2321000073;10 656,00
Region Östergötland;Folktandvården;433877386;202209;53110;Köpt tandvård vuxna;Region Värmland;2321000156;3 500,00
Region Östergötland;Folktandvården;433877405;202209;53110;Köpt tandvård vuxna;Västra Götalandsregionen;2321000131;5 250,00
Region Östergötland;Diagnostikcentrum;433877409;202209;56303;Reagensmaterial;Life Technologies Europe BV;5164025800;4 804,20
Region Östergötland;Folktandvården;433877472;202209;53110;Köpt tandvård vuxna;Region Halland;2321000115;5 250,00
Region Östergötland;Folktandvården;433877477;202209;56290;Övrigt tandvårdsmaterial;Nordenta AB;5560494899;1 960,00
Region Östergötland;Regionledning;433877478;202209;76965;Utbildning o konferens externa deltagare;Kodcentrum;8024772777;12 500,00
Region Östergötland;Folktandvården;433877483;202209;56290;Övrigt tandvårdsmaterial;Gama Dental AB;5560395161;1 266,48
Region Östergötland;Närsjukvården i centrala Östergötland;433877489;202209;57310;Rengörings och hygienmaterial;Procurator Sverige AB;5560576554;108,69
Region Östergötland;Närsjukvården i centrala Östergötland;433877489;202209;67990;Övriga transporter o frakter;Procurator Sverige AB;5560576554;148,89
Region Östergötland;Sinnescentrum;433877493;202209;57110;Synhjälpmedel;Glasögon City;5561568980;800
Region Östergötland;Närsjukvården i östra Östergötland;433877497;202209;57131;Ortoser;NordiCare;5564934304;495
Region Östergötland;Närsjukvården i östra Östergötland;433877497;202209;57131;Ortoser;NordiCare;5564934304;80,25
Region Östergötland;Primärvårdscentrum;433877501;202209;76720;Tidn tidskrift övr litteratur;Vacc-Guiden;5564989670;2 200,00
Region Östergötland;Regionfastigheter;433877508;202209;11710;Pågående till/ombyggn årets invest;Torpheimer i Linköping AB;5566584685;-1 200 000,00
Region Östergötland;Barn- och kvinnocentrum;433877516;202209;75330;Inkassotjänster;Alektum Inkasso AB;5563311678;240
Region Östergötland;Hälso- och sjukvårdsnämnden;433877518;202209;50009;Köpt länssjukvård rörlig ers;Capio Movement AB;5565920864;322 272,00
Region Östergötland;Närsjukvården i östra Östergötland;433877523;202209;46160;Utbildning o konferens medarb. Sverige skattefritt;Svenska Föreningen för Allergologi;8932018206;6 000,00
Region Östergötland;Närsjukvården i östra Östergötland;433877524;202209;46160;Utbildning o konferens medarb. Sverige skattefritt;Svenska Föreningen för Allergologi;8932018206;6 000,00
Region Östergötland;Finansförvaltningen;433877535;202209;25620;Varor från annat EG-land 25%;EU-företag utländska;;-75
Region Östergötland;Sinnescentrum;433877535;202209;57111;Hörselhjälpmedel;EU-företag utländska;;300
Region Östergötland;Barn- och kvinnocentrum;433877561;202209;56390;Övrigt medicinskt material;Kronans Droghandel Apotek AB;5567872048;111,6
Region Östergötland;Barn- och kvinnocentrum;433877561;202209;67990;Övriga transporter o frakter;Kronans Droghandel Apotek AB;5567872048;99,5
Region Östergötland;Barn- och kvinnocentrum;433877562;202209;56390;Övrigt medicinskt material;Kronans Droghandel Apotek AB;5567872048;103,21
Region Östergötland;Närsjukvården i östra Östergötland;433877573;202209;56390;Övrigt medicinskt material;Kronans Droghandel Apotek AB;5567872048;1 774,18
Region Östergötland;Närsjukvården i östra Östergötland;433877573;202209;67990;Övriga transporter o frakter;Kronans Droghandel Apotek AB;5567872048;98,7
Region Östergötland;Närsjukvården i centrala Östergötland;433877574;202209;56390;Övrigt medicinskt material;Kronans Droghandel Apotek AB;5567872048;78
Region Östergötland;Närsjukvården i centrala Östergötland;433877574;202209;67990;Övriga transporter o frakter;Kronans Droghandel Apotek AB;5567872048;99
Region Östergötland;Regionledning;433877580;202209;75420;Driftkostnad IT-system;Angry Creative AB;5568568918;2 000,00
Region Östergötland;Sinnescentrum;433877586;202209;64188;Övriga förbrukningsinventarier;Hallins Sales AB;5569686156;31 008,00
Region Östergötland;Naturbruksgymnasiet Östergötland;433877587;202209;72341;Datakommunikation abonnemang;NE Sverige AB;5569636904;22 930,67
Region Östergötland;Naturbruksgymnasiet Östergötland;433877587;202209;76710;Facklitteratur;NE Sverige AB;5569636904;22 930,67
Region Östergötland;Diagnostikcentrum;433877603;202209;68310;Kost och logi Sverige;Travel Team Sweden AB;5566501739;5 235,00
Region Östergötland;Diagnostikcentrum;433877615;202209;56390;Övrigt medicinskt material;Clas Ohlson AB;5560358672;464,82
Region Östergötland;Diagnostikcentrum;433877615;202209;67990;Övriga transporter o frakter;Clas Ohlson AB;5560358672;99,97
Region Östergötland;Närsjukvården i östra Östergötland;433877618;202209;57119;Hjälpmedel köp;Abbott Scandinavia;5560466137;13 624,00
Region Östergötland;Närsjukvården i östra Östergötland;433877619;202209;57119;Hjälpmedel köp;Abbott Scandinavia;5560466137;3 052,00
Region Östergötland;Närsjukvården i östra Östergötland;433877620;202209;57119;Hjälpmedel köp;Abbott Scandinavia;5560466137;3 052,00
Region Östergötland;Närsjukvården i östra Östergötland;433877621;202209;57119;Hjälpmedel köp;Abbott Scandinavia;5560466137;3 052,00
Region Östergötland;Närsjukvården i östra Östergötland;433877622;202209;57119;Hjälpmedel köp;Abbott Scandinavia;5560466137;3 052,00
Region Östergötland;Närsjukvården i östra Östergötland;433877623;202209;57119;Hjälpmedel köp;Abbott Scandinavia;5560466137;3 052,00
Region Östergötland;Närsjukvården i östra Östergötland;433877624;202209;57119;Hjälpmedel köp;Abbott Scandinavia;5560466137;3 052,00
Region Östergötland;Närsjukvården i östra Östergötland;433877625;202209;57119;Hjälpmedel köp;Abbott Scandinavia;5560466137;3 052,00
Region Östergötland;Närsjukvården i östra Östergötland;433877626;202209;57119;Hjälpmedel köp;Abbott Scandinavia;5560466137;3 052,00
Region Östergötland;Närsjukvården i östra Östergötland;433877627;202209;57119;Hjälpmedel köp;Abbott Scandinavia;5560466137;3 052,00
Region Östergötland;Närsjukvården i östra Östergötland;433877628;202209;57119;Hjälpmedel köp;Abbott Scandinavia;5560466137;3 430,00
Region Östergötland;Närsjukvården i östra Östergötland;433877629;202209;57119;Hjälpmedel köp;Abbott Scandinavia;5560466137;3 052,00
Region Östergötland;Närsjukvården i östra Östergötland;433877630;202209;57119;Hjälpmedel köp;Abbott Scandinavia;5560466137;3 052,00
Region Östergötland;Närsjukvården i östra Östergötland;433877631;202209;57119;Hjälpmedel köp;Abbott Scandinavia;5560466137;3 052,00
Region Östergötland;Närsjukvården i östra Östergötland;433877632;202209;57119;Hjälpmedel köp;Abbott Scandinavia;5560466137;3 052,00
Region Östergötland;Primärvårdscentrum;433877649;202209;57119;Hjälpmedel köp;Abbott Scandinavia;5560466137;2 616,00
Region Östergötland;Hälso- och sjukvården stab;433877657;202209;65220;Underhållmtrl med tekn utrustn;Philips AB;5561052613;1 345,50
Region Östergötland;Regionfastigheter;433877658;202209;73710;Larm och bevakning;Securitas Bevakning AB;5561086082;26 322,00
Region Östergötland;Regionfastigheter;433877658;202209;73710;Larm och bevakning;Securitas Bevakning AB;5561086082;1 417,00
Region Östergötland;Regionfastigheter;433877663;202209;73710;Larm och bevakning;Securitas Bevakning AB;5561086082;8 097,00
Region Östergötland;Regionfastigheter;433877668;202209;73710;Larm och bevakning;Securitas Bevakning AB;5561086082;18 974,00
Region Östergötland;Regionfastigheter;433877668;202209;73710;Larm och bevakning;Securitas Bevakning AB;5561086082;567
Region Östergötland;Regionfastigheter;433877668;202209;73710;Larm och bevakning;Securitas Bevakning AB;5561086082;3 199,00
Region Östergötland;Regionfastigheter;433877673;202209;73710;Larm och bevakning;Securitas Bevakning AB;5561086082;12 959,00
Region Östergötland;Regionfastigheter;433877678;202209;73710;Larm och bevakning;Securitas Bevakning AB;5561086082;1 047,00
Region Östergötland;Regionfastigheter;433877678;202209;73710;Larm och bevakning;Securitas Bevakning AB;5561086082;1 047,00
Region Östergötland;Primärvårdscentrum;433877679;202209;73710;Larm och bevakning;Securitas Bevakning AB;5561086082;94
Region Östergötland;Regionfastigheter;433877686;202209;60820;Konsulter fastighetsunderhåll;Securitas Bevakning AB;5561086082;698
Region Östergötland;Närsjukvården i centrala Östergötland;433877691;202209;73710;Larm och bevakning;Securitas Bevakning AB;5561086082;7 749,00
Region Östergötland;Regionfastigheter;433877693;202209;73710;Larm och bevakning;Securitas Bevakning AB;5561086082;92 598,80
Region Östergötland;Regionfastigheter;433877693;202209;73710;Larm och bevakning;Securitas Bevakning AB;5561086082;54 262,80
Region Östergötland;Regionfastigheter;433877693;202209;73710;Larm och bevakning;Securitas Bevakning AB;5561086082;20 348,55
Region Östergötland;Regionfastigheter;433877693;202209;73710;Larm och bevakning;Securitas Bevakning AB;5561086082;6 782,85
Region Östergötland;Närsjukvården i centrala Östergötland;433877706;202209;73710;Larm och bevakning;Securitas Bevakning AB;5561086082;4 833,00
Region Östergötland;Regionledning;433877710;202209;75420;Driftkostnad IT-system;Linköpings kommun;2120000449;162
Region Östergötland;Centrum för kirurgi ortopedi och cancervård;433877712;202209;55395;Köpt ospec diagnostisk provanalys;Unilabs AB;5561187179;3 244,13
Region Östergötland;Medicincentrum;433877713;202209;55395;Köpt ospec diagnostisk provanalys;Unilabs AB;5561187179;142,59
Region Östergötland;Medicincentrum;433877716;202209;55310;Köpt klin kemisk provanalys;Unilabs AB;5561187179;576,81
Region Östergötland;Regionfastigheter;433877740;202209;11710;Pågående till/ombyggn årets invest;Bravida Sverige AB;5561974188;2 556,00
Region Östergötland;Hälso- och sjukvården stab;433877743;202209;60390;Övrig fastighetsservice;Bravida Sverige AB;5561974188;2 738,00
Region Östergötland;Centrum för kirurgi ortopedi och cancervård;433877744;202209;56759;Övriga implantat;Smith o Nephew;5561988345;708,5
Region Östergötland;Centrum för kirurgi ortopedi och cancervård;433877745;202209;56759;Övriga implantat;Smith o Nephew;5561988345;141,7
Region Östergötland;Primärvårdscentrum;433877746;202209;46160;Utbildning o konferens medarb. Sverige skattefritt;Medicinsk Rätt AB;5562149061;2 995,00
Region Östergötland;Hälso- och sjukvården stab;433877751;202209;64649;Övrigt förbrukningsmaterial;Tente AB;5562704618;752
Region Östergötland;Sinnescentrum;433877754;202209;56390;Övrigt medicinskt material;Allytec AB;5562750454;3 400,00
Region Östergötland;Hälso- och sjukvårdsnämnden;433877759;202209;26030;Avräkning KUL;Region Stockholm;2321000016;194 078,00
Region Östergötland;Närsjukvården i centrala Östergötland;433877763;202209;46720;Uppvaktning blommor kondoleans;Terrahus AB;5563456036;1 600,00
Region Östergötland;Hälso- och sjukvårdsnämnden;433877769;202209;57111;Hörselhjälpmedel;Sonova Nordic AB;5564413762;3 000,00
Region Östergötland;Hälso- och sjukvårdsnämnden;433877771;202209;57111;Hörselhjälpmedel;Sonova Nordic AB;5564413762;400
Region Östergötland;Närsjukvården i östra Östergötland;433877818;202209;64510;Kontorsmaterial;Atea Sverige AB;5564480282;1 936,00
Region Östergötland;Centrum för kirurgi ortopedi och cancervård;433877822;202209;64510;Kontorsmaterial;Atea Sverige AB;5564480282;2 047,00
Region Östergötland;Centrum för kirurgi ortopedi och cancervård;433877826;202209;60390;Övrig fastighetsservice;L&T FM AB;5564732260;2 400,00
Region Östergötland;Folktandvården;433877831;202209;60390;Övrig fastighetsservice;L&T FM AB;5564732260;1 149,00
Region Östergötland;Närsjukvården i östra Östergötland;433877840;202209;60390;Övrig fastighetsservice;L&T FM AB;5564732260;385
Region Östergötland;Hälso- och sjukvårdsnämnden;433877856;202209;57111;Hörselhjälpmedel;Resound AB;5565101986;1 600,00
Region Östergötland;Sinnescentrum;433877860;202209;56759;Övriga implantat;Medilens AB;5565194171;4 830,00
Region Östergötland;Närsjukvården i östra Östergötland;433877861;202209;57119;Hjälpmedel köp;Medtronic-Vingmed AB;5565255964;4 350,00
Region Östergötland;Närsjukvården i östra Östergötland;433877862;202209;57119;Hjälpmedel köp;Medtronic-Vingmed AB;5565255964;14 565,00
Region Östergötland;Närsjukvården i östra Östergötland;433877863;202209;57119;Hjälpmedel köp;Medtronic-Vingmed AB;5565255964;12 247,50
Region Östergötland;Medicincentrum;433877868;202209;55310;Köpt klin kemisk provanalys;Capio Primärvård AB;5565703468;113
Region Östergötland;Sinnescentrum;433877890;202209;46160;Utbildning o konferens medarb. Sverige skattefritt;Malmö Kongressbyrå AB;5566209986;4 200,00
Region Östergötland;Hjärtcentrum;433877891;202209;46160;Utbildning o konferens medarb. Sverige skattefritt;Malmö Kongressbyrå AB;5566209986;12 000,00
Region Östergötland;Hjärtcentrum;433877892;202209;46160;Utbildning o konferens medarb. Sverige skattefritt;Malmö Kongressbyrå AB;5566209986;12 000,00
Region Östergötland;Primärvårdscentrum;433877893;202209;46160;Utbildning o konferens medarb. Sverige skattefritt;Malmö Kongressbyrå AB;5566209986;1 200,00
Region Östergötland;Närsjukvården i östra Östergötland;433877908;202209;57119;Hjälpmedel köp;Nordicinfu Care AB;5566491790;5 850,00
Region Östergötland;Närsjukvården i östra Östergötland;433877917;202209;57119;Hjälpmedel köp;Nordicinfu Care AB;5566491790;9 250,00
Region Östergötland;Folktandvården;433877925;202209;65510;Service/underh/rep dental utr;Plandent AB;5563471076;14 554,40
Region Östergötland;Inköp service och logistik;433877926;202209;24150;Prel levskuld Lager;Plandent AB;5563471076;4 720,56
Region Östergötland;Folktandvården;433877932;202209;56260;Implantat tandvård;Nobelpharma AB;5560020231;2 069,76
Region Östergötland;Naturbruksgymnasiet Östergötland;433877946;202209;64810;Skydds-/arbkläder o skyddsmtrl;Ahlsell AB;5560129206;3 310,80
Region Östergötland;Hjärtcentrum;433877960;202209;56324;Skopimaterial;Abbott Medical Sweden AB;5564922317;5 600,00
Region Östergötland;Hjärtcentrum;433877961;202209;64127;IT-utrustning;Dustin AB;5566661012;318
Region Östergötland;Hälso- och sjukvården stab;433877962;202209;64649;Övrigt förbrukningsmaterial;Dustin AB;5566661012;1 789,00
Region Östergötland;Folktandvården;433877963;202209;56270;Tandvårdinstrument;Dental AB;5560050048;2 824,24
Region Östergötland;Hälso- och sjukvårdsnämnden;433877982;202209;57110;Synhjälpmedel;Glasögoninstitutet;5566093646;800
Region Östergötland;Hälso- och sjukvårdsnämnden;433877983;202209;57110;Synhjälpmedel;Glasögoninstitutet;5566093646;800
Region Östergötland;Centrum för kirurgi ortopedi och cancervård;433877989;202209;85510;Dröjsmålsränta (kostnad);Universitetet i Linköping;2021003096;213,04
Region Östergötland;Sinnescentrum;433877989;202209;85510;Dröjsmålsränta (kostnad);Universitetet i Linköping;2021003096;397,12
Region Östergötland;Primärvårdscentrum;433877989;202209;85510;Dröjsmålsränta (kostnad);Universitetet i Linköping;2021003096;109,59
Region Östergötland;Regionledning;433877989;202209;85510;Dröjsmålsränta (kostnad);Universitetet i Linköping;2021003096;303,33
Region Östergötland;Sinnescentrum;433877989;202209;85610;Avgifter PG/BG/bankkonton;Universitetet i Linköping;2021003096;1 174,74
Region Östergötland;Hälso- och sjukvården stab;433877990;202209;65990;Service/underh/rep övr inv/utr;Toshiba Medical Systems Sweden;5164074667;18 000,00
Region Östergötland;Närsjukvården i östra Östergötland;433877999;202209;57119;Hjälpmedel köp;Rubin Medical AB;5566676721;10 214,00
Region Östergötland;Närsjukvården i östra Östergötland;433878001;202209;57119;Hjälpmedel köp;Rubin Medical AB;5566676721;2 100,00
Region Östergötland;Centrum för kirurgi ortopedi och cancervård;433878004;202209;56759;Övriga implantat;Lima Orthopaedics Sweden AB;5568749583;28 310,00
Region Östergötland;Regionledning;433878006;202209;75490;Övriga IT-konsulttjänster;Perido Skills AB;5566396387;60 900,00
Region Östergötland;Regionfastigheter;433878009;202209;11710;Pågående till/ombyggn årets invest;Assemblin Ventilation AB;5567289177;50 000,00
Region Östergötland;Psykiatricentrum;433878012;202209;46725;Personalvård;Pelican Rouge Coffee Solutions AB;5563072171;4 834,00
Region Östergötland;Medicincentrum;433878019;202209;62990;Hyra/leasing övr invent/utrust;Pelican Rouge Coffee Solutions AB;5563072171;963
Region Östergötland;Centrum för kirurgi ortopedi och cancervård;433878025;202209;46160;Utbildning o konferens medarb. Sverige skattefritt;Prospector Marknadssupport i Norden AB;5569319337;13 300,00
Region Östergötland;Diagnostikcentrum;433878028;202209;65990;Service/underh/rep övr inv/utr;Hologic Sweden AB;5568454143;43 739,00
Region Östergötland;Diagnostikcentrum;433878029;202209;66410;Hyra/leasing fordon;Europacar Europeisk Bilut;5560840984;1 587,25
Region Östergötland;Hälso- och sjukvårdsnämnden;433878033;202209;57110;Synhjälpmedel;Synsam i Motala;5567687248;800
Region Östergötland;Hälso- och sjukvårdsnämnden;433878034;202209;57110;Synhjälpmedel;Synsam i Motala;5567687248;800
Region Östergötland;Sinnescentrum;433878187;202209;64120;TV video AU-hjälpmedel mm;HEAR Nordic AB;5569735979;3 044,00
Region Östergötland;Regionledning;433878188;202209;46160;Utbildning o konferens medarb. Sverige skattefritt;Föreningen för Regional Biblioteksverksamhet;8645019079;14 000,00
Region Östergötland;Regionfastigheter;433878193;202209;11810;Pågående nybyggn årets invest;Trebor Automation AB;5565860177;71 046,00
Region Östergötland;Folktandvården;433878203;202209;76909;Kostnad påminnelseavgifter/inkassoavgifter;ApoEx AB;5566334149;450
Region Östergötland;Folktandvården;433878214;202209;26004;Avräkning läkemedel SV;ApoEx AB;5566334149;450
Region Östergötland;Folktandvården;433878215;202209;57930;Omkostnader vid inköp;ApoEx AB;5566334149;450
Region Östergötland;Diagnostikcentrum;433878231;202209;85510;Dröjsmålsränta (kostnad);ApoEx AB;5566334149;450
Region Östergötland;Primärvårdscentrum;433878243;202209;76909;Kostnad påminnelseavgifter/inkassoavgifter;ApoEx AB;5566334149;450
Region Östergötland;Primärvårdscentrum;433878244;202209;76909;Kostnad påminnelseavgifter/inkassoavgifter;ApoEx AB;5566334149;450
Region Östergötland;Primärvårdscentrum;433878245;202209;76909;Kostnad påminnelseavgifter/inkassoavgifter;ApoEx AB;5566334149;450
Region Östergötland;Primärvårdscentrum;433878247;202209;76909;Kostnad påminnelseavgifter/inkassoavgifter;ApoEx AB;5566334149;450
Region Östergötland;Primärvårdscentrum;433878248;202209;76909;Kostnad påminnelseavgifter/inkassoavgifter;ApoEx AB;5566334149;450
Region Östergötland;Regionledning;433878279;202209;68110;Biljetter och resor i Sverige;Lingmerths Resebyrå AB;5560542747;11 041,88
Region Östergötland;Regionledning;433878279;202209;68310;Kost och logi Sverige;Lingmerths Resebyrå AB;5560542747;6 921,86
Region Östergötland;Regionledning;433878282;202209;68110;Biljetter och resor i Sverige;Lingmerths Resebyrå AB;5560542747;510,91
Region Östergötland;Regionledning;433878283;202209;68110;Biljetter och resor i Sverige;Lingmerths Resebyrå AB;5560542747;538,26
Region Östergötland;Centrum för kirurgi ortopedi och cancervård;433878287;202209;68110;Biljetter och resor i Sverige;Lingmerths Resebyrå AB;5560542747;302
Region Östergötland;Sinnescentrum;433878289;202209;68110;Biljetter och resor i Sverige;Lingmerths Resebyrå AB;5560542747;291,62
Region Östergötland;Regionledning;433878297;202209;68110;Biljetter och resor i Sverige;Lingmerths Resebyrå AB;5560542747;895,4
Region Östergötland;Centrum för kirurgi ortopedi och cancervård;433878301;202209;68110;Biljetter och resor i Sverige;Lingmerths Resebyrå AB;5560542747;1 162,49
Region Östergötland;Hälso- och sjukvården stab;433878304;202209;64649;Övrigt förbrukningsmaterial;Elfa Distrelec AB;5567511414;339,06
Region Östergötland;Naturbruksgymnasiet Östergötland;433878310;202209;57289;Djurhållning;MEST Djur AB;5569659179;1 416,00
Region Östergötland;Centrum för kirurgi ortopedi och cancervård;433878316;202209;57210;Livsmedel råvaror;Beans in Cup AB;5590855564;179
Region Östergötland;Naturbruksgymnasiet Östergötland;433878320;202209;57210;Livsmedel råvaror;Martin & Servera Restauranghandel AB;5591355549;19 195,68
Region Östergötland;Naturbruksgymnasiet Östergötland;433878320;202209;57221;Konditori-/ kioskvaror;Martin & Servera Restauranghandel AB;5591355549;3 781,43
Region Östergötland;Naturbruksgymnasiet Östergötland;433878320;202209;57310;Rengörings och hygienmaterial;Martin & Servera Restauranghandel AB;5591355549;679
Region Östergötland;Psykiatricentrum;433878321;202209;66310;Reparation o underhåll fordon;Carspect A-Besiktning AB;5567741110;440,86
Region Östergötland;Närsjukvården i centrala Östergötland;433878327;202209;46725;Personalvård;Selecta AB Stockholm;5560693318;3 551,50
Region Östergötland;Hälso- och sjukvårdsnämnden;433878332;202209;57110;Synhjälpmedel;KE Optik AB;5592388416;800
Region Östergötland;Primärvårdscentrum;433878334;202209;58410;Bidrag till utbildning;Kry Primärvård AB;5566658364;368 278,00
Region Östergötland;Hälso- och sjukvården stab;433878342;202209;76710;Facklitteratur;Bokus AB;5564930492;412,26
Region Östergötland;Närsjukvården i centrala Östergötland;433878343;202209;64649;Övrigt förbrukningsmaterial;Swedsign AB;5560783465;530
Region Östergötland;Medicincentrum;433878348;202209;64148;Kontorsutrustning;Swedsign AB;5560783465;111
Region Östergötland;Hälso- och sjukvården stab;433878350;202209;64510;Kontorsmaterial;Swedsign AB;5560783465;638
Region Östergötland;Närsjukvården i centrala Östergötland;433878353;202209;64649;Övrigt förbrukningsmaterial;Swedsign AB;5560783465;265
Region Östergötland;Centrum för kirurgi ortopedi och cancervård;433878355;202209;64649;Övrigt förbrukningsmaterial;Swedsign AB;5560783465;53
Region Östergötland;Sinnescentrum;433878356;202209;64148;Kontorsutrustning;Swedsign AB;5560783465;55
Region Östergötland;Närsjukvården i östra Östergötland;433878358;202209;64649;Övrigt förbrukningsmaterial;Swedsign AB;5560783465;116
Region Östergötland;Primärvårdscentrum;433878364;202209;64649;Övrigt förbrukningsmaterial;Swedsign AB;5560783465;106
Region Östergötland;Diagnostikcentrum;433878375;202209;56309;Övr lab o provtagningsmaterial;Fisher Scientific GTF AB;5561017111;678
Region Östergötland;Närsjukvården i västra Östergötland;433878382;202209;64171;Sjukvårdsutrustning;Henrik Eriksson AB;5561502963;882,4
Region Östergötland;Hjärtcentrum;433878383;202209;65220;Underhållmtrl med tekn utrustn;Henrik Eriksson AB;5561502963;158,4
Region Östergötland;Inköp service och logistik;433878393;202209;24150;Prel levskuld Lager;Lager;;280
Region Östergötland;Sinnescentrum;433878400;202209;56390;Övrigt medicinskt material;Atos Medical AB;5562687607;2 775,00
Region Östergötland;Sinnescentrum;433878400;202209;67990;Övriga transporter o frakter;Atos Medical AB;5562687607;95
Region Östergötland;Närsjukvården i östra Östergötland;433878436;202209;56344;Förbrukningsmtrl fysioterapi;Fysioline Sweden AB;5566275672;3 420,00
Region Östergötland;Närsjukvården i östra Östergötland;433878442;202209;57131;Ortoser;MediRoyal Nordic AB;5566307970;4 816,00
Region Östergötland;Närsjukvården i östra Östergötland;433878443;202209;57131;Ortoser;MediRoyal Nordic AB;5566307970;118
Region Östergötland;Sinnescentrum;433878445;202209;56390;Övrigt medicinskt material;MeritMedical Systems AB;5567084115;3 660,00
Region Östergötland;Inköp service och logistik;433878461;202209;24150;Prel levskuld Lager;Fisher & Paykel Healthcare AB;5567298822;11 590,00
Region Östergötland;Barn- och kvinnocentrum;433878462;202209;56390;Övrigt medicinskt material;Solann AB;5566566286;2 900,00
Region Östergötland;Närsjukvården i östra Östergötland;433878466;202209;57131;Ortoser;Catell AB;5567699920;1 314,40
Region Östergötland;Närsjukvården i västra Östergötland;433878467;202209;56339;Förbandsartiklar;Catell AB;5567699920;124,8
Region Östergötland;Närsjukvården i västra Östergötland;433878468;202209;56390;Övrigt medicinskt material;Catell AB;5567699920;3 144,00
Region Östergötland;Närsjukvården i östra Östergötland;433878469;202209;56339;Förbandsartiklar;Catell AB;5567699920;1 576,80
Region Östergötland;Närsjukvården i centrala Östergötland;433878470;202209;56339;Förbandsartiklar;Catell AB;5567699920;564
Region Östergötland;Närsjukvården i östra Östergötland;433878471;202209;56339;Förbandsartiklar;Catell AB;5567699920;1 531,20
Region Östergötland;Närsjukvården i västra Östergötland;433878480;202209;56339;Förbandsartiklar;One Med Sverige AB;5567644140;383,71
Region Östergötland;Hjärtcentrum;433878485;202209;56301;Katetrar ledare;EPS Vasculator AB;5567803183;6 000,00
Region Östergötland;Folktandvården;433878490;202209;64510;Kontorsmaterial;Sono Sverige AB;5565957809;4 672,37
Region Östergötland;Folktandvården;433878490;202209;67990;Övriga transporter o frakter;Sono Sverige AB;5565957809;350
Region Östergötland;Inköp service och logistik;433878493;202209;24150;Prel levskuld Lager;Lager;;3 600,00
Region Östergötland;Diagnostikcentrum;433878500;202209;26004;Avräkning läkemedel SV;ApoEx AB;5566334149;1 791,00
Region Östergötland;Diagnostikcentrum;433878500;202209;26004;Avräkning läkemedel SV;ApoEx AB;5566334149;75
Region Östergötland;Diagnostikcentrum;433878500;202209;67990;Övriga transporter o frakter;ApoEx AB;5566334149;200
Region Östergötland;Närsjukvården i centrala Östergötland;433878506;202209;26004;Avräkning läkemedel SV;ApoEx AB;5566334149;14 224,30
Region Östergötland;Närsjukvården i centrala Östergötland;433878506;202209;26004;Avräkning läkemedel SV;ApoEx AB;5566334149;1 500,00
Region Östergötland;Hjärtcentrum;433878511;202209;26004;Avräkning läkemedel SV;ApoEx AB;5566334149;35,7
Region Östergötland;Hjärtcentrum;433878511;202209;26004;Avräkning läkemedel SV;ApoEx AB;5566334149;75
Region Östergötland;Sinnescentrum;433878518;202209;26004;Avräkning läkemedel SV;ApoEx AB;5566334149;41,12
Region Östergötland;Sinnescentrum;433878518;202209;26004;Avräkning läkemedel SV;ApoEx AB;5566334149;75
Region Östergötland;Hälso- och sjukvårdsnämnden;433878523;202209;26004;Avräkning läkemedel SV;ApoEx AB;5566334149;61,68
Region Östergötland;Hälso- och sjukvårdsnämnden;433878523;202209;26004;Avräkning läkemedel SV;ApoEx AB;5566334149;75
Region Östergötland;Primärvårdscentrum;433878542;202209;26004;Avräkning läkemedel SV;ApoEx AB;5566334149;6 005,38
Region Östergötland;Primärvårdscentrum;433878542;202209;26004;Avräkning läkemedel SV;ApoEx AB;5566334149;825
Region Östergötland;Primärvårdscentrum;433878545;202209;26004;Avräkning läkemedel SV;ApoEx AB;5566334149;3 182,00
Region Östergötland;Primärvårdscentrum;433878545;202209;26004;Avräkning läkemedel SV;ApoEx AB;5566334149;195
Region Östergötland;Hjärtcentrum;433878546;202209;26004;Avräkning läkemedel SV;ApoEx AB;5566334149;19 393,38
Region Östergötland;Hjärtcentrum;433878546;202209;26004;Avräkning läkemedel SV;ApoEx AB;5566334149;1 350,00
Region Östergötland;Sinnescentrum;433878551;202209;26004;Avräkning läkemedel SV;ApoEx AB;5566334149;191,1
Region Östergötland;Sinnescentrum;433878551;202209;26004;Avräkning läkemedel SV;ApoEx AB;5566334149;75
Region Östergötland;Sinnescentrum;433878552;202209;26004;Avräkning läkemedel SV;ApoEx AB;5566334149;2 364,48
Region Östergötland;Sinnescentrum;433878552;202209;26004;Avräkning läkemedel SV;ApoEx AB;5566334149;300
Region Östergötland;Primärvårdscentrum;433878558;202209;26004;Avräkning läkemedel SV;ApoEx AB;5566334149;50 270,40
Region Östergötland;Primärvårdscentrum;433878558;202209;26004;Avräkning läkemedel SV;ApoEx AB;5566334149;375
Region Östergötland;Sinnescentrum;433878571;202209;26004;Avräkning läkemedel SV;ApoEx AB;5566334149;12 981,58
Region Östergötland;Sinnescentrum;433878571;202209;26004;Avräkning läkemedel SV;ApoEx AB;5566334149;1 050,00
Region Östergötland;Centrum för kirurgi ortopedi och cancervård;433878587;202209;26004;Avräkning läkemedel SV;ApoEx AB;5566334149;109,84
Region Östergötland;Centrum för kirurgi ortopedi och cancervård;433878587;202209;26004;Avräkning läkemedel SV;ApoEx AB;5566334149;75
Region Östergötland;Närsjukvården i centrala Östergötland;433878589;202209;26004;Avräkning läkemedel SV;ApoEx AB;5566334149;686,51
Region Östergötland;Närsjukvården i centrala Östergötland;433878589;202209;26004;Avräkning läkemedel SV;ApoEx AB;5566334149;75
Region Östergötland;Närsjukvården i centrala Östergötland;433878598;202209;26004;Avräkning läkemedel SV;ApoEx AB;5566334149;362,88
Region Östergötland;Närsjukvården i centrala Östergötland;433878598;202209;26004;Avräkning läkemedel SV;ApoEx AB;5566334149;75
